{"text_format":"1","workbook":"xlsx","n_sheets":6,"sheets":["Offerta it dt ","Impresa_Info_Firma ","in","Prog_Info_Planer","Prezzario IPES_Preisver WOBI_18","voce agg_Zusatzpos"],"not_rendered":{"charts":0,"images":1,"macros":1,"external_links":1,"defined_names":9,"comments":1,"pivot_tables":0},"unopened":[],"bounds":{"document_bytes":16777216,"sheet_cells":100000,"rows_first":2000,"rows_last":500,"rows_between":2000,"halvings":0,"cell_chars":16384,"cell_head_chars":4096},"cells_cut":0,"cells_raw":0,"read":"whole","date_system":"1900"}

{"sheet":"Offerta it dt ","index":0,"n_rows":127,"n_cols":488,"rows_kept":127,"cut":false,"hidden":false,"merged":[[33,7,33,9],[1,0,1,1],[0,4,0,5],[1,4,1,5],[0,0,0,1],[0,6,1,7],[27,3,27,6],[25,4,25,6],[0,2,0,3],[1,2,1,3],[32,8,32,9],[28,4,28,6],[28,8,28,9],[29,4,29,6],[29,8,29,9],[26,8,26,9],[8,4,8,6],[31,4,31,6],[31,8,31,9],[8,8,8,9],[25,8,25,9],[27,8,27,9],[24,4,24,6],[24,8,24,9]]}
["neue Positionen\nnuove posizioni",null,"Baustellenbezeichnung",null,"ANGEBOT",null,1,null,"Baustellenkodex\nCodice cantiere","xxxx"]
[{"$f":"COUNT(Zusatz)","v":5},null,"Denominazione cantiere",null,"OFFERTA"]
[null,null,"Info per il salvataggio del file","Info für das Abspeichern der Datei:"]
["Nr.","POS","Descrizione","Beschreibung","Masseinheit\nunità di misura","Menge\nQ.tà","Korr. Menge\nQ.tà corr","à €","In Worte\nin lettere","Totale"]
[]
[]
[]
[]
[null,null,null,null,"Gesamtbetrag der  Arbeiten\nTot. Lavori",null,null,null,{"$f":"SUM(J5:J8)","v":0}]
[]
[null,"20","Sicurezza","Sicherheit"]
[null,"2011-01-20","Totale ","Gesamtkosten","a forfait",1,null,null,{"$f":"IF($G$1=2,inParole(H12),inWorten(H12))","v":"null,00"},{"$f":"IF(G12=0,F12*H12,G12*H12)","v":0}]
[]
[]
[]
[null,"ZP/pa","Zusatzposition (ZP)","Posizione aggiuntiva (pa)"]
[null,1,null,null,null,null,null,null,{"$f":"IF($G$1=2,inParole(H17),inWorten(H17))","v":"null,00"},{"$f":"IF(G17=0,\"\",G17*H17)","v":""}]
[null,2,null,null,null,null,null,null,{"$f":"IF($G$1=2,inParole(H18),inWorten(H18))","v":"null,00"},{"$f":"IF(G18=0,\"\",G18*H18)","v":""}]
[null,3,null,null,null,null,null,null,{"$f":"IF($G$1=2,inParole(H19),inWorten(H19))","v":"null,00"},{"$f":"IF(G19=0,\"\",G19*H19)","v":""}]
[null,4,null,null,null,null,null,null,{"$f":"IF($G$1=2,inParole(H20),inWorten(H20))","v":"null,00"},{"$f":"IF(G20=0,\"\",G20*H20)","v":""}]
[null,5,null,null,null,null,null,null,{"$f":"IF($G$1=2,inParole(H21),inWorten(H21))","v":"null,00"},{"$f":"IF(G21=0,\"\",G21*H21)","v":""}]
[null,"Ende",null,null,null,null,null,null,"Gesamt Zusatzpositionen\nTotale posizioni aggiuntive",{"$f":"SUM(J17:J21)","v":0}]
[null,0]
[]
[]
[null,null,null,null,"Angebotsbetrag\nImporto di offerta",null,null,null,{"$f":"I9+J12+J22","v":0}]
[null,null,null,null,null,null,null,null,{"$f":"IF($G$1=2,inParole(I26),inWorten(I26))","v":"null,00"}]
[null,null,null,"Gesamtbetrag der  Arbeiten laut Ausschreibung\nTot. Lavori a base d'asta"]
[null,null,null,null,"Sicherheit\nsicurezza",null,null,null,{"$f":"J12","v":0}]
[null,null,null,null,"Ausschreibungsbetrag\nTot. importo a base d'asta",null,null,null,{"$f":"SUM(I28:J29)","v":0}]
[]
[null,null,"Abschlag in %\nRibasso in %","Aufschlag in %\nAumento in %",{"$f":"IF(I32>=0,C32,D32)","v":"Abschlag in %\nRibasso in %"},null,null,null,{"$f":"IF(I9=0,\"\",100-((I9+J22)*100/I28))","v":""}]
[null,null,null,null,null,null,null,null,{"$f":"IF(I32=\"\",\"\",IF($G$1=1,inWorten(ROUND(I32,3)),inParole(ROUND(I32,3))))","v":""}]
[" © Ferdinand TAVERNINI & Paulo FELLIN - WOBI - 20120416",null,null,null,null,null,null,"ohne Sicherheitskosten\nal netto della sicurezza"]
[]
[]
[]
[]
[]
[]
[]
[]
[]
[]
[]
[]
[]
[]
[]
[]
[]
[]
[]
[]
[]
[]
[]
[]
[]
[]
[]
[]
[]
[]
[]
[]
[]
[]
[]
[]
[]
[]
[]
[]
[]
[]
[]
[]
[]
[]
[]
[]
[]
[]
[]
[]
[]
[]
[]
[]
[]
[]
[]
[]
[]
[]
[]
[]
[]
[]
[]
[]
[]
[]
[]
[]
[]
[]
[]
[]
[]
[]
[]
[]
[]
[]
[]
[]
[]
[]
[]
[]
[null,null,null,null,null,null,null,null,null,null,null,null,null,null,null,null,null,null,null,null,null,null,null,null,null,null,null,null,null,null,null,null,null,null,null,null,null,null,null,null,null,null,null,null,null,null,null,null,null,null,null,null,null,null,null,null,null,null,null,null,null,null,null,null,null,null,null,null,null,null,null,null,null,null,null,null,null,null,null,null,null,null,null,null,null,null,null,null,null,null,null,null,null,null,null,null,null,null,null,null,null,null,null,null,null,null,null,null,null,null,null,null,null,null,null,null,null,null,null,null,null,null,null,null,null,null,null,null,null,null,null,null,null,null,null,null,null,null,null,null,null,null,null,null,null,null,null,null,null,null,null,null,null,null,null,null,null,null,null,null,null,null,null,null,null,null,null,null,null,null,null,null,null,null,null,null,null,null,null,null,null,null,null,null,null,null,null,null,null,null,null,null,null,null,null,null,null,null,null,null,null,null,null,null,null,null,null,null,null,null,null,null,null,null,null,null,null,null,null,null,null,null,null,null,null,null,null,null,null,null,null,null,null,null,null,null,null,null,null,null,null,null,null,null,null,null,null,null,null,null,null,null,null,null,null,null,null,null,null,null,null,null,null,null,null,null,null,null,null,null,null,null,null,null,null,null,null,null,null,null,null,null,null,null,null,null,null,null,null,null,null,null,null,null,null,null,null,null,null,null,null,null,null,null,null,null,null,null,null,null,null,null,null,null,null,null,null,null,null,null,null,null,null,null,null,null,null,null,null,null,null,null,null,null,null,null,null,null,null,null,null,null,null,null,null,null,null,null,null,null,null,null,null,null,null,null,null,null,null,null,null,null,null,null,null,null,null,null,null,null,null,null,null,null,null,null,null,null,null,null,null,null,null,null,null,null,null,null,null,null,null,null,null,null,null,null,null,null,null,null,null,null,null,null,null,null,null,null,null,null,null,null,null,null,null,null,null,null,null,null,null,null,null,null,null,null,null,null,null,null,null,null,null,null,null,null,null,null,null,null,null,null,null,null,null,null,null,null,null,null,null,null,null,null,null,null,null,null,null,null,null,null,null,null,null,null,null,null,null,null,null,null,null,null,null,null,null,null,null,null,null,null,null,null,null,null,null,5]
[null,null,null,null,null,null,null,null,null,null,null,null,null,null,null,null,null,null,null,null,null,null,null,null,null,null,null,null,null,null,null,null,null,null,null,null,null,null,null,null,null,null,null,null,null,null,null,null,null,null,null,null,null,null,null,null,null,null,null,null,null,null,null,null,null,null,null,null,null,null,null,null,null,null,null,null,null,null,null,null,null,null,null,null,null,null,null,null,null,null,null,null,null,null,null,null,null,null,null,null,null,null,null,null,null,null,null,null,null,null,null,null,null,null,null,null,null,null,null,null,null,null,null,null,null,null,null,null,null,null,null,null,null,null,null,null,null,null,null,null,null,null,null,null,null,null,null,null,null,null,null,null,null,null,null,null,null,null,null,null,null,null,null,null,null,null,null,null,null,null,null,null,null,null,null,null,null,null,null,null,null,null,null,null,null,null,null,null,null,null,null,null,null,null,null,null,null,null,null,null,null,null,null,null,null,null,null,null,null,null,null,null,null,null,null,null,null,null,null,null,null,null,null,null,null,null,null,null,null,null,null,null,null,null,null,null,null,null,null,null,null,null,null,null,null,null,null,null,null,null,null,null,null,null,null,null,null,null,null,null,null,null,null,null,null,null,null,null,null,null,null,null,null,null,null,null,null,null,null,null,null,null,null,null,null,null,null,null,null,null,null,null,null,null,null,null,null,null,null,null,null,null,null,null,null,null,null,null,null,null,null,null,null,null,null,null,null,null,null,null,null,null,null,null,null,null,null,null,null,null,null,null,null,null,null,null,null,null,null,null,null,null,null,null,null,null,null,null,null,null,null,null,null,null,null,null,null,null,null,null,null,null,null,null,null,null,null,null,null,null,null,null,null,null,null,null,null,null,null,null,null,null,null,null,null,null,null,null,null,null,null,null,null,null,null,null,null,null,null,null,null,null,null,null,null,null,null,null,null,null,null,null,null,null,null,null,null,null,null,null,null,null,null,null,null,null,null,null,null,null,null,null,null,null,null,null,null,null,null,null,null,null,null,null,null,null,null,null,null,null,null,null,null,null,null,null,null,null,null,null,null,null,null,null,null,null,null,null,null,null,null,null,null,null,null,null,null,null,null,null,null,null,null,null,null,null,null,4]
[null,null,null,null,null,null,null,null,null,null,null,null,null,null,null,null,null,null,null,null,null,null,null,null,null,null,null,null,null,null,null,null,null,null,null,null,null,null,null,null,null,null,null,null,null,null,null,null,null,null,null,null,null,null,null,null,null,null,null,null,null,null,null,null,null,null,null,null,null,null,null,null,null,null,null,null,null,null,null,null,null,null,null,null,null,null,null,null,null,null,null,null,null,null,null,null,null,null,null,null,null,null,null,null,null,null,null,null,null,null,null,null,null,null,null,null,null,null,null,null,null,null,null,null,null,null,null,null,null,null,null,null,null,null,null,null,null,null,null,null,null,null,null,null,null,null,null,null,null,null,null,null,null,null,null,null,null,null,null,null,null,null,null,null,null,null,null,null,null,null,null,null,null,null,null,null,null,null,null,null,null,null,null,null,null,null,null,null,null,null,null,null,null,null,null,null,null,null,null,null,null,null,null,null,null,null,null,null,null,null,null,null,null,null,null,null,null,null,null,null,null,null,null,null,null,null,null,null,null,null,null,null,null,null,null,null,null,null,null,null,null,null,null,null,null,null,null,null,null,null,null,null,null,null,null,null,null,null,null,null,null,null,null,null,null,null,null,null,null,null,null,null,null,null,null,null,null,null,null,null,null,null,null,null,null,null,null,null,null,null,null,null,null,null,null,null,null,null,null,null,null,null,null,null,null,null,null,null,null,null,null,null,null,null,null,null,null,null,null,null,null,null,null,null,null,null,null,null,null,null,null,null,null,null,null,null,null,null,null,null,null,null,null,null,null,null,null,null,null,null,null,null,null,null,null,null,null,null,null,null,null,null,null,null,null,null,null,null,null,null,null,null,null,null,null,null,null,null,null,null,null,null,null,null,null,null,null,null,null,null,null,null,null,null,null,null,null,null,null,null,null,null,null,null,null,null,null,null,null,null,null,null,null,null,null,null,null,null,null,null,null,null,null,null,null,null,null,null,null,null,null,null,null,null,null,null,null,null,null,null,null,null,null,null,null,null,null,null,null,null,null,null,null,null,null,null,null,null,null,null,null,null,null,null,null,null,null,null,null,null,null,null,null,null,null,null,null,null,null,null,null,null,null,null,null,null,null,3]
[null,null,null,null,null,null,null,null,null,null,null,null,null,null,null,null,null,null,null,null,null,null,null,null,null,null,null,null,null,null,null,null,null,null,null,null,null,null,null,null,null,null,null,null,null,null,null,null,null,null,null,null,null,null,null,null,null,null,null,null,null,null,null,null,null,null,null,null,null,null,null,null,null,null,null,null,null,null,null,null,null,null,null,null,null,null,null,null,null,null,null,null,null,null,null,null,null,null,null,null,null,null,null,null,null,null,null,null,null,null,null,null,null,null,null,null,null,null,null,null,null,null,null,null,null,null,null,null,null,null,null,null,null,null,null,null,null,null,null,null,null,null,null,null,null,null,null,null,null,null,null,null,null,null,null,null,null,null,null,null,null,null,null,null,null,null,null,null,null,null,null,null,null,null,null,null,null,null,null,null,null,null,null,null,null,null,null,null,null,null,null,null,null,null,null,null,null,null,null,null,null,null,null,null,null,null,null,null,null,null,null,null,null,null,null,null,null,null,null,null,null,null,null,null,null,null,null,null,null,null,null,null,null,null,null,null,null,null,null,null,null,null,null,null,null,null,null,null,null,null,null,null,null,null,null,null,null,null,null,null,null,null,null,null,null,null,null,null,null,null,null,null,null,null,null,null,null,null,null,null,null,null,null,null,null,null,null,null,null,null,null,null,null,null,null,null,null,null,null,null,null,null,null,null,null,null,null,null,null,null,null,null,null,null,null,null,null,null,null,null,null,null,null,null,null,null,null,null,null,null,null,null,null,null,null,null,null,null,null,null,null,null,null,null,null,null,null,null,null,null,null,null,null,null,null,null,null,null,null,null,null,null,null,null,null,null,null,null,null,null,null,null,null,null,null,null,null,null,null,null,null,null,null,null,null,null,null,null,null,null,null,null,null,null,null,null,null,null,null,null,null,null,null,null,null,null,null,null,null,null,null,null,null,null,null,null,null,null,null,null,null,null,null,null,null,null,null,null,null,null,null,null,null,null,null,null,null,null,null,null,null,null,null,null,null,null,null,null,null,null,null,null,null,null,null,null,null,null,null,null,null,null,null,null,null,null,null,null,null,null,null,null,null,null,null,null,null,null,null,null,null,null,null,null,null,null,null,2]
[null,null,null,null,null,null,null,null,null,null,null,null,null,null,null,null,null,null,null,null,null,null,null,null,null,null,null,null,null,null,null,null,null,null,null,null,null,null,null,null,null,null,null,null,null,null,null,null,null,null,null,null,null,null,null,null,null,null,null,null,null,null,null,null,null,null,null,null,null,null,null,null,null,null,null,null,null,null,null,null,null,null,null,null,null,null,null,null,null,null,null,null,null,null,null,null,null,null,null,null,null,null,null,null,null,null,null,null,null,null,null,null,null,null,null,null,null,null,null,null,null,null,null,null,null,null,null,null,null,null,null,null,null,null,null,null,null,null,null,null,null,null,null,null,null,null,null,null,null,null,null,null,null,null,null,null,null,null,null,null,null,null,null,null,null,null,null,null,null,null,null,null,null,null,null,null,null,null,null,null,null,null,null,null,null,null,null,null,null,null,null,null,null,null,null,null,null,null,null,null,null,null,null,null,null,null,null,null,null,null,null,null,null,null,null,null,null,null,null,null,null,null,null,null,null,null,null,null,null,null,null,null,null,null,null,null,null,null,null,null,null,null,null,null,null,null,null,null,null,null,null,null,null,null,null,null,null,null,null,null,null,null,null,null,null,null,null,null,null,null,null,null,null,null,null,null,null,null,null,null,null,null,null,null,null,null,null,null,null,null,null,null,null,null,null,null,null,null,null,null,null,null,null,null,null,null,null,null,null,null,null,null,null,null,null,null,null,null,null,null,null,null,null,null,null,null,null,null,null,null,null,null,null,null,null,null,null,null,null,null,null,null,null,null,null,null,null,null,null,null,null,null,null,null,null,null,null,null,null,null,null,null,null,null,null,null,null,null,null,null,null,null,null,null,null,null,null,null,null,null,null,null,null,null,null,null,null,null,null,null,null,null,null,null,null,null,null,null,null,null,null,null,null,null,null,null,null,null,null,null,null,null,null,null,null,null,null,null,null,null,null,null,null,null,null,null,null,null,null,null,null,null,null,null,null,null,null,null,null,null,null,null,null,null,null,null,null,null,null,null,null,null,null,null,null,null,null,null,null,null,null,null,null,null,null,null,null,null,null,null,null,null,null,null,null,null,null,null,null,null,null,null,null,null,null,null,null,1]

{"sheet":"Impresa_Info_Firma ","index":1,"n_rows":4,"n_cols":2,"rows_kept":4,"cut":false,"hidden":false,"merged":[]}
["ISTRUZIONI","ANWEISUNGEN"]
[]
["Salvataggio del file:","Abspeichern der Datei:"]
["IIl file é da salvare come \"cartella di lavoro con attivazione macro di Excel\", \naltrimenti non funziona píu la stesura del prezzo in lettere.","Die Datei ist als \"Excel-Arbeitsmappe mit Makros\" abzuspeichern, \nansonsten funktioniert das Ausschreiben des Preises in Worte nicht mehr.\n"]

{"sheet":"in","index":2,"n_rows":40,"n_cols":6,"rows_kept":40,"cut":false,"hidden":false,"merged":[]}
["Code","Descrizione italiano","Beschreibung deutsch","Menge\nquantità","ME\nUM","Preis\nprezzo"]
["02.01","DEMOLIZIONI E RIMOZIONI","ABBRUCH UND ABTRAGARBEITEN"]
["02.01.01","DEMOLIZIONI TOTALI","TOTALABBRUCH"]
["02.01.01.01","Demolizione completa di fabbricato con:","Totalabbruch Gebäude:"]
[null,"a) muratura pietrame, solai in legno, ferro o voltine","a) Steinmauerwerk, Holzbalkendecken, Stahlträger, Kappengewölbe",1,"m³",7.68]
[null,"b) muratura con blocchi di cemento o laterizio, solai in legno, ferro o voltine","b) Betonblock- oder Ziegelmauerwerk, Holzbalkendecken, Stahlträger, Kappengewölbe",1,"m³",7.68]
[null,"c) muratura con blocchi di cemento o laterizio, solai in c.a. oppure laterocemento, tetto in legno, acciaio oppure come solai","c) Betonblock- oder Ziegelmauerwerk, Massiv- oder Hohlsteindecken, Dachkonstruktion aus Holz, Stahl oder wie Decken",1,"m³",8.6]
[null,"d) struttura portante in c.a. con solai in c.a. oppure laterocemento, tetto in legno,acciaio o come solai","d) Tragende Struktur aus Stahlbeton, Massiv- oder Hohlsteindecken, Dachkonstruktion aus Holz, Stahl oder wie Decken",1,"m³",9.2100000000000009]
["02.01.02","DEMOLIZIONI PARZIALI","TEILABBRUCH"]
["02.01.02.01","Demolizione parziale di fabbricato con:","Teilabbruch Gebäude:"]
[null,"a) muratura pietrame ","a) Steinmauerwerk, Holzbalkendecken, Stahlträgern, Kappengewölbe",1,"m³",150.09]
[null,"b) muratura di calcestruzzo o mattoni","b) Betonblock- oder Ziegelmauerwerk, Holzbalkendecken, Stahlträgern, Kappengewölbe",1,"m³",253.15]
[null,"c) struttura in muratura con blocchi di cemento o laterizio, solai in c.a. oppure laterocemento, tetto in legno, acciaio oppure come solai","c) Betonblock- oder Ziegelmauerwerk, Massiv- oder Hohlsteindecken, Dachkonstruktion aus Holz, Stahl oder wie Decken",1,"m³",271.37]
[null,"d) struttura portante in c.a. con solai in c.a. oppure laterocemento, tetto in legno, acciaio o come solai","d) Tragende Struktur aus Stahlbeton, Massiv- oder Hohlsteindecken, Dachkonstruktion aus Holz, Stahl oder wie Decken",1,"m³",302.45]
["02.01.02.02","Demolizione in breccia, sovrapprezzo alla voce 02.01.02.01","Abbruch nach Querschnitt Zuschlag Pos. 02.01.02.01",1,"%",15.35]
["02.01.03","RIMOZIONI DI ELEMENTI COSTRUTTIVI","ABTRAGEN VON BAUTEILEN"]
["02.01.03.01","Rimozione:","Abtragen:"]
[null,"a) tetto in legno","a) Abtragen: Dachgerüst aus Holz",1,"m²",18.510000000000002]
[null,"b) solaio in legno","b) Holzbalkendecke",1,"m²",19.649999999999999]
[null,"c) parete con ossatura in legno, ossatura in pietra","c) Riegelwand",1,"m²",18.510000000000002]
[null,"d) tramezze in blocchi di laterizio pieni o semipieni compreso intonaco spessore 15 cm","d) Trennwand aus Vollziegel einschließlich Verputz Stärke 15 cm",1,"m²",17.5]
[null,"e) parete in mattoni forati compreso intonaco spessore 15 cm","e) Trennwand aus Hohlziegel einschließlich Verputz Stärke 15 cm",1,"m²",15.71]
[null,"f) soffittature","f) Deckenverkleidung",1,"m²",9.9]
[null,"g) pavimento in legno","g) Holzfußboden",1,"m²",9.81]
[null,"h) cappa sfusa","h) Schüttungen",1,"m²",8.5399999999999991]
[null,"i) pavimento in marmette","i) Plattenboden",1,"m²",15.93]
[null,"j) massetto in calcestruzzo","j) Betonestrich",1,"m²cm",1.57]
[null,"k) rivestimento in piastrelle","k) Wandverkleidung aus Fliesen",1,"m²",10.32]
[null,"l) intonaco su pareti e soffitti","l) Wand- und Deckenputz",1,"m²",10.32]
[null,"m) intonaco su pareti e soffitti, oltre spessore 2 cm per ogni cm di spessore in più","m) Wand- und Deckenputz, Dicke über 2 cm, für jeden weiteren cm Mehrdicke",1,"m²",1.75]
[null,"n) solaio di travetti e blocchi spessore 21-30 cm","n) Hohlsteindecken aus vorgefertigten Stahlbetonrippen und Füllkörpern aus Ziegelstein, Dicke 21 bis 30 cm",1,"m²",20.57]
[null,"o) solaio a lastra e blocchi spessore 21-30 cm","o) Plattendecke aus bewehrten Betonplatten mit Füllkörpern, Dicke 21 bis 30 cm",1,"m²",22.58]
["02.01.03.02","Rimozione serramento","Ausbauen von Fenster- und Türstock",1,"m²",26.58]
["02.01.03.03","Rimozione apparecchi idrosanitari","Abtragen von sanit. Gegenständen",1,"St/pz",23.33]
["02.01.03.04","Rimozione tubazioni fognature (gres e ghisa)","Abtragen Abwasserleitung",1,"m",4.54]
["02.01.03.05","Rimozione tubazioni in ferro","Abnehmen Verteilerleitungen aus Eisen",1,"m",3.29]
["02.01.03.06","Rimozione selciato:","Aufnehmen Pflaster:"]
[null,"a) Demolizione di pavimentazione in cubetti posti su letto di sabbia, cubetti di qualsiasi natura e dimensione.","a) Abbruch von Pflasterbelag",1,"m²",4.5199999999999996]
[null,"b) Demolizione di selciati a secco, spessore fino a 40 cm","b) Abbruch von Trocken-Grobpflaster",1,"m²",10.029999999999999]
["02.01.03.07","Asporto di cordonata","Abheben von Randstein",1,"m",13.97]

{"sheet":"Prog_Info_Planer","index":3,"n_rows":30,"n_cols":2,"rows_kept":30,"cut":false,"hidden":false,"merged":[]}
["ISTRUZIONI","ANWEISUNGEN"]
[]
["Word 97: Apertura del file","Word 97: Öffnen des Dokuments "]
["Durante l'apertura del file confermare il comando \"attivare macro\" (nel word 2010 questo comando viene eseguito in automatico).","Beim Öffnen des Dokumentes den Befehl \"Makros aktivieren\" bestätigen (im Word 2010 erfolgt das automatisch)."]
[]
["Foglio di lavoro \"Prezzario IPES_Preisverzeichnis WOBI\"","Tabellenblatt \"Prezzario IPES_Preisverzeichnis WOBI\""]
["Questo foglio di lavoro corrisponde al prezzario Ipes. I prezzi predefiniti sono vincolanti e non possono essere variati!","Dieses Tabellenblatt entspricht dem Preisverzeichnis Wobi. Die vorgegebenen Preise sind bindent und dürfen nicht abgeändert werden!"]
[]
["Foglio di lavoro \"in\" ","Tabellenblatt \"in\" "]
["Con questo foglio \"in \" viene data la possibilitá di inserire nella tabella \"Offerta it dt\" le relative voci di un progetto in modo automatico.","Mit der Tabellenblatt \"in \" besteht die Möglichkeit die jeweiligen Projektpositionen automatisch in die Tabelle \"Offerta it dt\" zu importieren."]
["Le voci di progetto, con relativa quantitá, sono da inserire nel foglio \"in\" secondo le colonne predefinite.","Die Projektpositionen mit Mengenangabe sind in das Tabellenblatt \"in\"  gemäß vorgegebenen Spalten einzufügen."]
["Con l' attivazione del pulsante verde [Tabelle \"in\" einfügen-inserire tabella\"in\"] vengono importate le voci di progetto nella tabella \" Offerta it dt\". Le voci di progetto con indicazione della quantitá verranno numerate in automatico. Dopodiché sparisce il pulsante verde.","Mit dem Anklicken des grünen Knopfes [Tabelle \"in\" einfügen-inserire tabella\"in\"] werden die Projektpositionen in die Tabelle \" Offerta it dt\" importiert. Jede Projektposition mit  Mengenangabe wird automatisch fortlaufend nummeriert. Anschließend verschwindet der grüne Knopf."]
["Il prezzo compare in automatico in lettere nella lingua attivata (dt o it). Nella cella\" Lingua/Sprache\"  si può scegliere tra lingua italiana e tedesca. Per la stesura del modulo offerta devono essere eliminati i prezzi unitari di progetto.","Der Preis wird automatisch als Text in der aktivierten Sprache (dt oder it)  angezeigt. Im Feld \"Lingua/Sprache\" kann zwischen der Sprache Deutsch und Italienisch gewählt werden. Für die Erstellung des  Angebotsformular sind die Projektpreise zu entfernen."]
[]
["Foglio di lavoro modulo offerta \"Offerta it dt\"","Tabellenblatt  Angebotsformular \"Offerta it dt\""]
["Il modullo offerta é da preparare in formato excel secondo la tabella predefinita \"Offerta it dt\".","Das Angebotsformular ist im excelformat laut Vorlage Tabellenblatt \"Offerta it dt\" zu erstellen."]
["I testi blu sono da sostituire con i dati del relativo progetto (denominazione cantiere e codice cantiere).","Die blauen Texte sind mit den jeweiligen Projektangaben (Baustellenbezeichnung und Baustellenkodex) zu erstetzen."]
["Devono essere inserite le voci di progetti. Per questo lavoro puo essere utillizzata anche la tabella \"in\" (vedi descrizione sovrastante).","Es sind die Projektpositionen einzufügen. Dazu kann auch die Tabelle \"in\" verwendet werden (siehe Beschreibung oben)."]
["Si possono aggiungere eventuali somme parziali verificandone la somma totale \"Totale lavori\".","Gewünschte Zwischensummen sind zu ergänzen und die Berechnung der Endsumme \"Gesamtbetrag der Arbeiten\" zu überprüfen."]
["Arrotondamenti: la tabella calcola con \"imposta approssimazione come visualizzato\". I prezzi e le quantitá sono da indicare in numeri con 2 cifre decimali, come il loro prodotto. Il ribasso, che si calcola in automatico, viene visualizzato con 3 cifre decimali.","Rundungen: Die Tabelle rechnet mit \"Genauigkeit wie angezeigt\". Die Preise und Mengen sind mit Zahlen mit 2 Kommastellen anzugeben, ebenso das aus deren Multiplikation erhaltene Produkt. Der sich daraus berechnete Gesamtabschlag wird mit einem Wert mit 3 Kommastellen angezeigt."]
["É necessario inserire l'importo per la sicurezza nella posizione 20.01.","Es ist  der Betrag der Sicherheitskosten in der Position 20.01 einzufügen."]
["Nella cella gialla dell'ultima pagina bisogna inserire l'importo totale dei lavori a base d'asta. L'importo per la sicurezza viene riportato in automatico dalla posizione 20.01. L'importo totale a base d'asta si calcola automaticamente.","Im letzten Blatt ist der Gesamtbetrag der Arbeiten in das gelbe Feld \"Gesamtbetrag der  Arbeiten laut Ausschreibung\" einzutragen. Der Betrag der Sicherheit wird automatisch von der Position 20.01 übertragen. Der Betrag der Ausschschreibung berechnet sich automatisch."]
["Per l'impresa offerente","Für das anbietende Unternehmen:"]
["L'impresa offerente ha la possibilità di correggere quantità e/o di inserire posizioni mancanti. Le quantità possono essere corrette nella colonna G \"Q.tà corr\".  Le posizioni mancanti possono essere inserite alla fine della tabella.  ","Dem anbietenden Unternehmen ist die Möglichkeit gewährleistet Mengen zu korrigieren, bzw. fehlende Positionen einzufügen. Die Mengen können in der Spalte G \"korr. Menge\" korrigiert werden. Die Zusatzpositionen können am Ende der Tabelle  hinzugefügt werden.  "]
["Protezione foglio:","Blattschutz:"]
["Il modulo offerta é da proteggere con \" proteggi foglio\". Prima deve essere tolto il blocco delle celle, che possono essere elaborate dall'impresa offerente. Queste sono le celle per l'inserimento delle quantità corrette e per l'inserimento dei prezzi.","Das Angebotsformular ist mit Blattschutz zu versehen. Vorher müssen jene Zellen freigeschalten werden, welche vom anbietendem Unternehmen bearbeitet werden können.Das sind die Zellen für die Eingabe der korrigierten Mengen und der Preise."]
["Le relative celle devono essere selezionate / click mouse destro / formato celle / Protezione e disattivare il comando bloccata.","Die entsprechenden Zellen werden markiert / Mausklick rechts / Zellen formatieren / Schutz und den Hacken bei gesperrt entfernen."]
["Dopodiché selezionare sotto revisione / \"proteggi  foglio\", inserire la password e confermare con OK (la password viene definita dal \"direttore di progetto\").","Anschließend unter Überprüfen, den Befehl Blatt schützen anklicken, Kennwort eingeben und mit \"OK\" bestätigen (das Kennwort wird vom \"direttore di progetto\" festgelegt)."]
["Salvataggio del file:","Abspeichern der Datei:"]
["Il file é da salvare come \"cartella di lavoro con attivazione macro di Excel\".","Die Datei wird mit Speichern unter \"Excel-Arbeitsmappe mit Makros\" abgespeichert."]

{"sheet":"Prezzario IPES_Preisver WOBI_18","index":4,"n_rows":2532,"n_cols":6,"rows_kept":2532,"cut":false,"hidden":false,"merged":[]}
["02.01","DEMOLIZIONI E RIMOZIONI","ABBRUCH UND ABTRAGARBEITEN"]
["02.01.01","DEMOLIZIONI TOTALI","TOTALABBRUCH"]
["02.01.01.01","Demolizione completa di fabbricato con:","Totalabbruch Gebäude:"]
[null,"a) muratura pietrame, solai in legno, ferro o voltine","a) Steinmauerwerk, Holzbalkendecken, Stahlträger, Kappengewölbe","m³","m³",7.68]
[null,"b) muratura con blocchi di cemento o laterizio, solai in legno, ferro o voltine","b) Betonblock- oder Ziegelmauerwerk, Holzbalkendecken, Stahlträger, Kappengewölbe","m³","m³",7.68]
[null,"c) muratura con blocchi di cemento o laterizio, solai in c.a. oppure laterocemento, tetto in legno, acciaio oppure come solai","c) Betonblock- oder Ziegelmauerwerk, Massiv- oder Hohlsteindecken, Dachkonstruktion aus Holz, Stahl oder wie Decken","m³","m³",8.6]
[null,"d) struttura portante in c.a. con solai in c.a. oppure laterocemento, tetto in legno,acciaio o come solai","d) Tragende Struktur aus Stahlbeton, Massiv- oder Hohlsteindecken, Dachkonstruktion aus Holz, Stahl oder wie Decken","m³","m³",9.2100000000000009]
["02.01.02","DEMOLIZIONI PARZIALI","TEILABBRUCH"]
["02.01.02.01","Demolizione parziale di fabbricato con:","Teilabbruch Gebäude:"]
[null,"a) muratura pietrame ","a) Steinmauerwerk, Holzbalkendecken, Stahlträgern, Kappengewölbe","m³","m³",150.09]
[null,"b) muratura di calcestruzzo o mattoni","b) Betonblock- oder Ziegelmauerwerk, Holzbalkendecken, Stahlträgern, Kappengewölbe","m³","m³",253.15]
[null,"c) struttura in muratura con blocchi di cemento o laterizio, solai in c.a. oppure laterocemento, tetto in legno, acciaio oppure come solai","c) Betonblock- oder Ziegelmauerwerk, Massiv- oder Hohlsteindecken, Dachkonstruktion aus Holz, Stahl oder wie Decken","m³","m³",271.37]
[null,"d) struttura portante in c.a. con solai in c.a. oppure laterocemento, tetto in legno, acciaio o come solai","d) Tragende Struktur aus Stahlbeton, Massiv- oder Hohlsteindecken, Dachkonstruktion aus Holz, Stahl oder wie Decken","m³","m³",302.45]
["02.01.02.02","Demolizione in breccia, sovrapprezzo alla voce 02.01.02.01","Abbruch nach Querschnitt Zuschlag Pos. 02.01.02.01","%","%",15.35]
["02.01.03","RIMOZIONI DI ELEMENTI COSTRUTTIVI","ABTRAGEN VON BAUTEILEN"]
["02.01.03.01","Rimozione:","Abtragen:"]
[null,"a) tetto in legno","a) Abtragen: Dachgerüst aus Holz","m²","m²",18.510000000000002]
[null,"b) solaio in legno","b) Holzbalkendecke","m²","m²",19.649999999999999]
[null,"c) parete con ossatura in legno, ossatura in pietra","c) Riegelwand","m²","m²",18.510000000000002]
[null,"d) tramezze in blocchi di laterizio pieni o semipieni compreso intonaco spessore 15 cm","d) Trennwand aus Vollziegel einschließlich Verputz Stärke 15 cm","m²","m²",17.5]
[null,"e) parete in mattoni forati compreso intonaco spessore 15 cm","e) Trennwand aus Hohlziegel einschließlich Verputz Stärke 15 cm","m²","m²",15.71]
[null,"f) soffittature","f) Deckenverkleidung","m²","m²",9.9]
[null,"g) pavimento in legno","g) Holzfußboden","m²","m²",9.81]
[null,"h) cappa sfusa","h) Schüttungen","m²","m²",8.5399999999999991]
[null,"i) pavimento in marmette","i) Plattenboden","m²","m²",15.93]
[null,"j) massetto in calcestruzzo","j) Betonestrich","m²cm","m²cm",1.57]
[null,"k) rivestimento in piastrelle","k) Wandverkleidung aus Fliesen","m²","m²",10.32]
[null,"l) intonaco su pareti e soffitti","l) Wand- und Deckenputz","m²","m²",10.32]
[null,"m) intonaco su pareti e soffitti, oltre spessore 2 cm per ogni cm di spessore in più","m) Wand- und Deckenputz, Dicke über 2 cm, für jeden weiteren cm Mehrdicke","m²","m²",1.75]
[null,"n) solaio di travetti e blocchi spessore 21-30 cm","n) Hohlsteindecken aus vorgefertigten Stahlbetonrippen und Füllkörpern aus Ziegelstein, Dicke 21 bis 30 cm","m²","m²",20.57]
[null,"o) solaio a lastra e blocchi spessore 21-30 cm","o) Plattendecke aus bewehrten Betonplatten mit Füllkörpern, Dicke 21 bis 30 cm","m²","m²",22.58]
["02.01.03.02","Rimozione serramento","Ausbauen von Fenster- und Türstock","m²","m²",26.58]
["02.01.03.03","Rimozione apparecchi idrosanitari","Abtragen von sanit. Gegenständen","cad","St",23.33]
["02.01.03.04","Rimozione tubazioni fognature (gres e ghisa)","Abtragen Abwasserleitung","m","m",4.54]
["02.01.03.05","Rimozione tubazioni in ferro","Abnehmen Verteilerleitungen aus Eisen","m","m",3.29]
["02.01.03.06","Rimozione selciato:","Aufnehmen Pflaster:"]
[null,"a) Demolizione di pavimentazione in cubetti posti su letto di sabbia, cubetti di qualsiasi natura e dimensione.","a) Abbruch von Pflasterbelag","m²","m²",4.5199999999999996]
[null,"b) Demolizione di selciati a secco, spessore fino a 40 cm","b) Abbruch von Trocken-Grobpflaster","m²","m²",10.029999999999999]
["02.01.03.07","Asporto di cordonata","Abheben von Randstein","m","m",13.97]
["02.02","MOVIMENTI DI TERRA","ERDBEWEGUNGSARBEITEN"]
["02.02.01","MANTO SUPERFICIALE","OBERBODEN"]
["02.02.01.01","Rimozione di strato superficiale di terra di coltivo fino alla profondità di 30 cm","Oberboden in einer Abtragdicke von 30 cm abtragen","m²","m²",1.74]
["02.02.02","SCAVO GENERALE","BAUGRUBEN"]
["02.02.02.01","Scavo generale con mezzo meccanico:","Boden Baugrube lösen:"]
[null,"a) con trasporto e scarico a pubbliche discariche compresi i diritti di discarica","a) maschinell mit Abtransport","m³","m³",6.55]
[null,"b) con trasporto e sistemazione entro cantiere","b) maschinell, Lagerung auf Baugelände","m³","m³",4.3099999999999996]
[null,"c) sovrapprezzo per scavo sotto il pelo delle acque sorgive","c) Aufpreis für Bodenaushub unter der freien Abflussquote von Quell- und Sickerwasser","m³","m³",2.82]
[null,"d)sovrapprezzo per demolizione trovanti non asportabili","d) Aufpreis für Findlinge, die nicht maschinell entfernt werden können","m³","m³",17.399999999999999]
["02.02.03","SCAVO A SEZIONE OBBLIGATA","GRÄBEN, SCHÄCHTE"]
["02.02.03.01","Scavo a sezione obbligata per fondazione fino ad 1,50 m compresi eventuali diritti di discarica:","Boden für Fundamente profilgerecht bis zu einer Tiefe von 1,50 m ausheben, einschließlich Vergütung ev. Deponiegebühren:"]
[null,"a) a mano","a) händisch","m³","m³",73.89]
[null,"b) con mezzo meccanico con trasporto entro cantiere","b) maschinell, Lagerung auf Baugelände","m³","m³",11.79]
["02.02.03.02","Scavo per condotte:","Boden der Gräben für Leitungen ausheben:"]
[null,"a) a mano profondità 2,0 m","a) händisch, Tiefe bis zu 2,0 m","m³","m³",98.8]
[null,"b) a mano profondità da 2,0 m fino a 4,0 m","b) händisch, Tiefe von 2,0 bis 4,0 m","m³","m³",119.74]
[null,"c) con mezzi meccanici profondità 2,0 m","c) maschinell, Tiefe bis zu 2,0 m","m³","m³",10.71]
[null,"d) con mezzi meccanici da 2,0 m fino a 4,0 m","d) maschinell, Tiefe von 2,0 bis 4,0 m","m³","m³",12.84]
["02.02.03.03","Sovrapprezzo scavo per opere di sottomurazione:","Aufpreis bei Unterfangungen:"]
[null,"a) a mano all'interno di fabbricati  ","a) händisch im Gebäude","m³","m³",119.74]
[null,"b) a mano all'esterno","b) händisch im Freien","m³","m³",111.55]
[null,"c) con mezzi meccanici all'interno","c) maschinell im Gebäude","m³","m³",38.99]
[null,"d) con mezzi meccanici all'esterno","d) maschinell im Freien","m³","m³",19.440000000000001]
["02.02.03.04","Sovrapprezzo scavi subacquei","Aufpreis für Aushub unter Wasser"]
["02.02.04","RINTERRI E RILEVATI","HINTERFÜLLEN UND ANSCHÜTTUNGEN"]
["02.02.04.01","Rinterro con materiale di scavo: (nr. 530)","Anfüllen mit Aushubmaterial: (Nr. 530)"]
[null,"a) a mano","a) händisch","m³","m³",57.06]
[null,"b) con mezzi meccanici","b) maschinell","m³","m³",4.4400000000000004]
["02.02.04.02","Rinterro e rilevato con materiale di cava","Hinterfüllen mit Grubenschotter:"]
[null,"a) a mano","a) händisch","m³","m³",64.2]
[null,"b) con mezzi meccanici","b) maschinell","m³","m³",25.64]
["02.02.04.03","Rinterro e rilevati con RB-granulato 0/70 (nr. 531)","Hinterfüllen mit RB-Granulat 0/70: (Nr. 531)"]
[null,"a) a mano","a) händisch","m³","m³",62.78]
[null,"b) con mezzi meccanici","b) maschinell","m³","m³",22.44]
["02.02.04.04","Livellamento di superfici","Boden planieren","m²","m²",2.4300000000000002]
["02.02.04.05","Spianamento terra vegetale di accumulo","Verteilen und Einebnen des gelagerten Oberbodens","m²","m²",3.14]
["02.03","FONDAZIONI SPECIALI: PALI TRIVELLATI, PALI BATTUTI, DIAFRAMMI ED INIEZIONI","SONDERGRUNDUNGEN: BOHRPFHÄLE, RAMMPFHÄLE, SCHLITZWÄNDE UND EINPRESSUNGEN"]
["02.03.01","PALI TRIVELLATI","BOHRPFHÄLE"]
["02.03.01.01","Micropalo:","Wurzelpfahl:"]
[null,"a) ø fino 110 mm","a) ø bis 110 mm","m","m",66.31]
[null,"b) ø 110-130 mm","b) ø 110-130 mm","m","m",71.42]
[null,"c) ø 130-150 mm","c) ø 130-150 mm","m","m",80.59]
[null,"d) ø 150-200 mm","d) ø 150-200 mm","m","m",92.83]
["02.03.01.02","Armature tubolari","Bohrrohre aus Stahl","kg","kg",1.02]
["02.03.01.03","Tirante d'ancoraggio:","Zuganker:"]
[null,"a) 150 kN","a) 150 kN","m","m",79.040000000000006]
[null,"b) 300 kN","b) 300 kN","m","m",81.63]
[null,"c) 450 kN","c) 450 kN","m","m",84.16]
[null,"d) 600 kN","d) 600 kN","m","m",91.81]
["02.03.01.04","Palo trivellato in c.a.:","Bohrpfahl aus Stahlbeton:"]
[null,"a) diametro esterno 600 mm","a) Außendurchmesser: 600 mm","m","m",122.39]
[null,"b) diametro esterno 800 mm","b) Außendurchmesser: 800 mm","m","m",135.69]
[null,"c) diametro esterno 1000 mm","c) Außendurchmesser: 1000 mm","m","m",162.22]
["02.03.02","ARMATURE","VERBAUARBEITEN"]
["02.03.02.01","Travi in acciaio:","Gurte aus Stahl:"]
[null,"a) Fe 360","a) Fe 360","kg","kg",2.15]
[null,"b) Fe 430","b) Fe 430","kg","kg",2.19]
["02.03.03","PALI BATTUTI","RAMMPFHÄLE"]
["02.03.03.01","Palo pilota in c.a.:","Rammpfahl aus Stahlbeton:"]
[null,"a) lunghezza da 9 m a 10 m, portata assiale in testa 500 kN","a) Länge von 9 bis 10 m, Traglast 500 kN","m","m",38.28]
[null,"b) lunghezza da 10 m a 12 m, portata assiale in testa 600 kN","b) Länge von 10 bis 12 m, Traglast 600 kN","m","m",41.84]
[null,"c) lunghezza da 12 m a 16 m, portata assiale in testa 1000 kN","c) Länge von 12 bis 16 m, Traglast 1000 kN","m","m",55.05]
["02.03.04","DIAFRAMMI","SCHLITZWÄNDE"]
["02.03.04.01","Diaframma o paratia c.a.:","Spund- oder Schlitzwände Stahlbeton:"]
[null,"a) diaframma 60 cm, profondità fino 20 m","a) Wanddicke: 60 cm, Tiefe bis 20 m","m²","m²",140.58000000000001]
[null,"b) diaframma da 80 cm, profondità fino 20 m","b) Wanddicke: 80 cm, Tiefe bis 20 m","m²","m²",176.46]
[null,"c) diaframma da 100 cm, profondità fino 20 m","c) Wanddicke: 100 cm, Tiefe bis 20 m","m²","m²",218.83]
["02.03.05","INIEZIONI","EINPRESSUNGEN"]
["02.03.05.01","Perforazioni:","Bohrung:"]
[null,"a) ø 56 fino 86 mm","a) ø 56 bis 86 mm","m","m",65.77]
[null,"b) ø 86 fino 116 mm","b) ø 86 bis 116 mm","m","m",69.88]
["02.03.05.02","Miscela cementizia dosata a 400 kg di cemento per m³ d'impasto","Einpreßgut im M.V. von 400 kg Zement pro m³ Fertiggemisch","kg","kg",0.18]
["02.03.06","Prestazioni ausiliarie","SONSTIGE LEISTUNGEN"]
["02.03.06.01","Cordolo di collegamento pali:","Verteilungsträger Pfahlköpfe:"]
[null,"a) Rck 200kg/cm²","a) Rck 200kg/cm²","m","m",174.99]
[null,"b) Rck 250kg/cm²","b) Rck 250kg/cm²","m","m",178.5]
[null,"c) Rck 300kg/cm²","c) Rck 300kg/cm²","m","m",182.11]
[null,"d) Rck 350kg/cm²","d) Rck 350kg/cm²","m","m",185.67]
["02.04","CALCESTRUZZI, ACCIAI PER C.A., SOLAI E CASSERI","STAHLBETONARBEITEN: BETON, BEWEHRUNG, DECKEN , SCHALUNGEN und ZUBEHÖR"]
["02.04.01","CASSERI","SCHALUNGEN"]
["02.04.01.01","Casseri ad andamento rettilineo e con altezza netta dal piano di appoggio fino a 3.50m, per getto di calcestruzzo; sono compresi i distanziatori, i listelli angolari, la puntellazione, le sbatacchiature, l'appliccazione del disarmante, il disarmo e la formazione di eventuali fori, nicchie,canali e passaggi per impianti e camini.","Waagrechte Schalung, Höhe der Betonunterkante bis zu 3,50 m; einschließlich Verstreben, das Brechen von scharfen Betonkanten mit Dreikantleisten, Abstützungen, Ausrüsten, Herstellen von Aussparungen, Schalungsausschnitten und Schlitzen für Anlagen und Kamine."]
[null,"a) per fondazioni continue, plinti, platee, travi rovesce ","a) Für Streifenfundamente, Einzelfundamente, Fundamentplatten und Streifenfundamenten","m²","m²",15.01]
[null,"b) per muri in elevazione","b) Für aufsteigende Mauern","m²","m²",19.86]
[null,"c) per solette piene","c) Für Ortbetondecken","m²","m²",25.59]
[null,"d) per pilastri, travi e cordoli","d) Für Stützen, Träger, Deckenkränze","m²","m²",26.85]
[null,"e) per parapetti ,rampe ,scale e pianerottoli","e) Für Brüstungen, Rampen, Treppen und Podeste","m²","m²",27.18]
["02.04.01.02","Sovrapprezzo al codice 02.04.01.01","Aufpreis auf Kode 02.04.01.01"]
[null,"a) per superfici curve","a) Aufpreis für runde Flächen","m²","m²",21.07]
[null,"b) sovrapprezzo per casseri con altezza superiore a 3,50m dal piano di appoggio,per ogni metro o frazione di metro oltre i 3,50m","b) Aufpreis für Schalungen mit einer Betonunterkante mehr als 3,50 m Höhe, für jeden weiteren Meter oder Bruchteil von Meter über 3,50 m","%","%",10.23]
[null,"c) Sovrapprezzo per casseratura controterra per getti di muri monofaccia","c) Aufpreis für  einhäuptige (einseitige) Schalung ","m²","m²",20.75]
["02.04.02","ACCIAI","STAHLBEWEHRUNG"]
["02.04.02.01","Acciaio per c.a","Stahlbewehrung"]
[null,"a) Acciaio in barre ad aderenza migliorata B450C","a) Gerippter Betonstahl B450C","kg","kg",0.99]
[null,"b) Profilati e tubolari in acciaio per travi REP","b) Stahlprofile und Stahlrohre für REP-Träger","kg","kg",1.54]
[null,"c) Rete in acciaio B450C con fili ad aderenza migliorata","c) Betonstahlmatte B450C aus geripptem Stahl","kg","kg",0.96]
[null,"d) Chiodi antipunzonamento tipo Peikko, Jordahl, Halfen oppure equivalente e tralicci antipunzonamento tipo Filigran oppure equivalente","d) Durchstanzbewehrung Typ Peikko, Jordahl, Halfen oder gleichartige und Fachwerke gegen Durchstanzen Typ Filigran oder gleichwertige ","kg","kg",12.28]
["02.04.03","CALCESTRUZZI","BETON"]
["02.04.03.01","Calcestruzzo, fornito, posato e costipato. ","Liefern, Einbauen und Verdichten des Betons "]
[null,"a) per magrone di sottofondazione C12/15","a) Magerbeton für Sauberkeitsschicht C12/15","m³","m³",107.91]
[null,"b) per fondazioni continue ,platee, plinti, travi rovesce  C20/25","b) Für Streifenfundamente, Einzelfundamente, Fundamentplatten und Fundamentbalken C20/25","m³","m³",120.72]
[null,"c) per fondazioni continue ,platee, plinti, travi rovesce  C25/30","c) Für Streifenfundamente, Einzelfundamente, Fundamentplatten und Fundamentbalken C25/30","m³","m³",125.42]
[null,"d) per muri in elevazione di qualsiasi spessore C20/25","d) Für aufgehende Mauern C20/25","m³","m³",120.72]
[null,"e) per muri in elevazione di qualsiasi spessore C25/30","e) Für aufgehende Mauern C25/30","m³","m³",125.42]
[null,"f) per solai pieni, di completamento per solai in laterizio e solai a lastra, travi, pilastri, cordoli, scale, parapetti, pianerottoli            C20/25","f) Für Massivdecken, Gießen des Aufbetons bei Hohlstein- und Plattendecken, Träger, Stützen, Kränze, Treppen, Brüstungen, Podeste            C20/25","m³","m³",122.88]
[null,"g) per solai pieni, di completamento per solai in laterizio e solai a lastra, travi, pilastri, cordoli, scale, parapetti, pianerottoli            C25/30","g) Für Massivdecken, Gießen des Aufbetons bei Hohlstein- und Plattendecken, Träger, Stützen, Kränze, Treppen, Brüstungen, Podeste            C25/30","m³","m³",126.75]
[null,"h) per solai pieni, di completamento per solai in laterizio e solai a lastra, travi, pilastri, cordoli, scale, parapetti, pianerottoli            C30/37","h) Für Massivdecken, Gießen des Aufbetons bei Hohlstein- und Plattendecken, Träger, Stützen, Kränze, Treppen, Brüstungen, Podeste            C30/37","m³","m³",135.08000000000001]
[null,"i) Stagionatura del calcestruzzo di solai e platee per mezzo di agenti stagionanti (curing compound)","i) Betonnachbehandlung mit Anwendung von Nachbehandlungshilfen (curing compound);","m²","m²",5.12]
[null,"l) Stagionatura del calcestruzzo tramite l'applicazione di teli in plastica oppure tramite l'applicazione di un tessuto non tessuto o di una stuoia di iuta bagnati permanentemente ","l) Betonnachbehandlung mit Verlegung von Plastikfolien oder Vliesen, oder einer ständig nass gehaltenen Jutematte.","m²","m²",1.02]
["02.04.04","SOLAI","DECKEN"]
["02.04.04.01","Solai in laterizio Solai di travetti prefabbricati in calcestruzzo armato e blocchi interposti in laterizio; ","Hohlsteindecken bestehend aus vorgefertigten Gitterträgern aus Stahlbeton und Füllkörpern aus Ziegelstein. "]
[null,"a) Altezza laterizio (escluso l'altezza dello strato di  completamento) H=16cm","a) Höhe des Füllkörpers (ausgenommen Aufbeton) H=16cm","m²","m²",35]
[null,"b) Altezza laterizio (escluso l'altezza dello strato di  completamento) H=20cm","b) Höhe des Füllkörpers (ausgenommen Aufbeton) H=20cm","m²","m²",35.31]
[null,"c) Altezza laterizio (escluso l'altezza dello strato di  completamento) H=24cm","c) Höhe des Füllkörpers (ausgenommen Aufbeton) H=24cm","m²","m²",38.79]
[null,"d) Sovrapprezzo per solaio inclinato sul piano orizzontale in misura maggiore al 10%","d) Aufpreis für Decken mit einer Neigung zur Horizontalen über 10%","%","%",10.23]
["02.04.04.02","Solai a lastra (predalle) Solaio di lastre prefabbricate in calcestruzzo con blocchi di alleggerimento in laterizio","Plattendecken bestehend aus vorgefertigten Betonplatten und Füllkörpern aus Ziegelstein"]
[null,"a) altezza solaio senza lo spessore della cappa di completamento: H=4+12","a) Deckenhöhe ausgenommen Aufbeton: H=4+12","m²","m²",30.7]
[null,"b) Altezza solaio senza lo spessore della cappa di completamento: H=4+16","b) Deckenhöhe ausgenommen Aufbeton: H=4+16","m²","m²",32.75]
[null,"c) Altezza solaio senza lo spessore della cappa di completamento: H=4+20","c) Deckenhöhe ausgenommen Aufbeton: H=4+20","m²","m²",34.799999999999997]
[null,"d) Altezza solaio senza lo spessore della cappa di completamento: H=4+24","d) Deckenhöhe ausgenommen Aufbeton: H=4+24","m²","m²",36.840000000000003]
[null,"e) Altezza solaio senza lo spessore della cappa di completamento: H=4+28","e) Deckenhöhe ausgenommen Aufbeton: H=4+28","m²","m²",38.89]
[null,"f) Sovrapprezzo per solaio inclinato sul piano orizzontale in misura maggiore al 10%","f) Aufpreis für Decken mit einer Neigung über 10%","%","%",12.28]
[null,"g) per solai resistenti al fuoco (solai REI) bisogna aumentare lo spessore degli elementi prefabbricati.sovrapprezzo per ogni ulteriore centimetro di spessore della lastra prefabbricata","g) Für Brandschutzdecken (Decken REI) wird die Stärke der vorgefertigten Platte erhöht. Aufpreis für jeden cm Mehrstärke","cm/m²","cm/m²",1.02]
["02.04.05","SOVRAPPREZZI PER CALCESTRUZZI PARTICOLARI, TRATTAMENTI DI CALCESTRUZZO E PROVE SU CALCESTRUZZO","AUFPREISE FÜR BESONDERE BETONE, BETONBEHANDLUNGEN UND BETONPROBEN"]
["02.04.05.01","Sovrapprezzi per calcestruzzi speciali","Aufpreis für besondere Betone"]
[null,"a) Sovrapprezzo al m³ di calcestruzzo per la richiesta di un Dmax dell'aggregato diverso da quanto indicato nella statica a parità della resistenza e delle altre proprietà del calcestruzzo (cioè il sovrapprezzo tiene conto del fatto che passando a un valore Dmax più basso la quantità di cemento necessaria a parità di resistenza aumenta ….) passaggio da Dmax = 32 mm a Dmax = 16 mm                                                       ","a) Aufpreis pro m³ Beton für einen gemäß Statik anderen Dmax des Zuschlagsmaterials, bei derselben Festigkeit sowie derselben Betoneigenschaften (der Aufpreis berücksichtigt, dass sich die Zementmenge bei derselben Festigkeit erhöht wenn ein niedriger Dmax eingesetzt wird, …) \nDmax = 16 mm anstatt Dmax = 32 mm    ","m³","m³",1.54]
[null,"b) Sovrapprezzo come sopra descritto, però con :passaggio da Dmax = 16 mm a Dmax = 8 mm                                                         ","b) Aufpreis wie oben beschrieben bei:\nDmax = 8 mm anstatt Dmax = 16 mm    ","m³","m³",1.54]
[null,"c) Sovrapprezzo al m³ di calcestruzzo per il passaggio da un cemento di tipo CEM II ad un cemento d'altoforno CEM III","c) Aufpreis pro m³ Beton für die Verwendung eines Hochofenzementes Typ   CEM III anstatt Zement Typ CEM II","m³","m³",7.16]
["02.04.05.02","Sovrapprezzi per calcestruzzi speciali (classe di espsosizione) Per l'IPES la classe di esposizione minima per calcestruzzi è XC2. Se il progetto statico prevede classi di esposizione superiori,nessun compenso aggiuntivo spetta all'Appaltatore.Se invece in fase esecutiva viene richiesto un calcestruzzo con classe di esposizione superiore (cioè una classe di esposizione non stabilita dal progetto statico) ,si stabiliscono i seguenti sovrapprezzi (sempre riferiti al calcestruzzo con classe XC2))","Aufpreis für Betone mit besonderen Eigenschaften (vorgegeben durch die jeweilige Expositionsklasse). Die Mindest-Expositions= klasse für Betonbauteile des Wohnbauinstitutes ist XC2. Sieht das Statikprojekt eine höher Expositionsklasse vor, so wird diese nicht gesondert vergütet. Wird hingegen während der Bauphase ein Beton mit höherer Expositionsklasse verlangt, ohne daß diese im Statikprojekt vorgesehen ist, so kommen die folgenden Aufpreise (immer bezogen auf Beton mit der Expositionsklasse XC2 ) zur Anwendung"]
[null,"a) per un calcestruzzo XC3","a) für Beton XC3","m³","m³",2.0499999999999998]
[null,"b) per un calcestruzzo XC4","b) für Beton XC4","m³","m³",2.0499999999999998]
[null,"c) per un calcestruzzo XF1","c) für Beton XF1","m³","m³",1.5]
[null,"d) per un calcestruzzo XF2","d) für Beton XF2","m³","m³",4]
[null,"e) per un calcestruzzo XF3","e) für Beton XF3","m³","m³",8.5]
[null,"f) per un calcestruzzo XF4","f) für Beton XF4","m³","m³",10.5]
[null,"g) per un calcestruzzo XD1","g) für Beton XD1","m³","m³",7.16]
[null,"h) per un calcestruzzo XD2","h) für Beton XD2","m³","m³",7.16]
[null,"i) per un calcestruzzo XD3","i) für Beton XD3","m³","m³",12.28]
["02.04.05.03","Sovrapprezzo al m³ di calcestruzzo per aggiunta di additivo SRA (Shringkage Reducing Admixtures). Prodotto: BASF RHEOMAC 815 o equivalente.Prezzo unitario per kg di additivo","Aufpreis pro m³ Beton für die Verwendung eines SRA-Zusatzmittels ( Shringkage Reducing Admix= tures). Produkt: BASF RHEOMAC 815 oder gleichwertig. \nPreis für 1 kg des Zusatzmittels","kg","kg",5.63]
["02.04.05.04","Sovrapprezzo al m³ di calcestruzzo per aggiunta di un modificatore di viscosità.Prodotto: BASF RHEOMATRIX 150 oppure prodotto equivalente.Prezzo unitario per litro di additivo","Aufpreis pro m³ Beton für die Verwendung eines Viskositätsreglers.Produkt: BASF RHEOMATRIX 150 oder gleichwertig. \nPreis für 1 Liter des Zusatzmittels","lt","lt",4.5]
["02.04.05.05","Sovrapprezzo per il passaggio da un calcestruzzo ordinario con determinate caratteristiche di resistenza, consistenza, classe di esposizione … ad un calcestruzzo a ritiro nullo (Shrinkage-Free concrete) mantenendo inalterate tutte le altre caratteristiche.","Aufpreis für die Verwendung eines nicht schwindenden Betons (Shrinkage-Free concrete), anstatt eines normalen, bei Beibehaltung aller anderen Eigenschaften wie z.B. Festigkeit, Konsistenz, Expositionsklasse….."]
[null,"a) Prezzo unitario per kg di Stabilmac:","a) Einheitspreis für 1 kg Stabilmac","kg","kg",0.72]
[null,"b) Prezzo unitario per kg di Rheomac 815","b) Einheitspreis für 1 kg Rheomac 815","kg","kg",5.63]
["02.04.05.06","Applicazione di una protezione idrorepellente su superfici in calcestruzzo KIBOCONE o equivalente:Prodotto : BASF KIBOCONE o equivalente.Prezzo unitario ","Aufbringen eines wasserabweisenden Oberflächenschutzes vom Typ BASF KIBOCONE oder gleichwertig Eine solche Behandlung  ist besonders angezeigt für Sichtbeton= flächen zum Schutz gegen UmwelteinflüsseVerbrauch: 0.1 – 0.5 lt/m2 behandelter Oberfläche;\nEinheitspreis","m²","m²",3.58]
["02.04.05.07","Applicazione di disattivante di superficie Prodotto: BASF RHEOFACE 474 o BASF RHEOFACE 480 oppure prodotti equivalenti.prezzo unitario al kg di prodotto applicato","Aufbringen eines Oberflächenverzögerers. Produkt: BASF RHEOFACE 474 oder BASF RHEOFACE 480 oder gleichwertig. \nEinheitspreis für 1 kg des aufgetragenen Produktes","kg","kg",13.3]
["02.04.05.08","Applicazione dello stagionante BASF MASTERKURE 127 oppure equivalente per scasseratura precoce di elementi in calcestruzzo Prezzo unitario per m2 di superficie trattata:","Aufbringen eines Verdunstungsschutzes vom Typ  BASF MASTERKURE 127 oder gleichwertig für vorzeitig ausgeschalte Elemente in Stahlbeton Einheitspreis pro  m2 behandelter Fläche:","m²","m²",3.07]
["02.04.05.09","Sovrapprezzi per prove su calcestruzzo","Aufpreise für besondere Betonprüfungen"]
[null,"a) Prova per la misurazione del contenuto d'aria sui calcestruzzi XF freschi eseguita da un laboratorio esterno riconosciuto. La prova viene esequita in base alla UNI EN 12350-7.","a) Prüfung für die Ermittlung des Luftgehaltes auf XF-Betone, durchgeführt von Seiten eines anerkannten externen Labors. Die Prüfung wird gemäß UNI EN 12350-7 ausgeführt..","m³","m³",102.34]
[null,"b) Prova per la determinazione della quantità di acqua essudata (bleeding) in base alla UNI 7122","b) Prüfung für die Ermittlung des austretenden Wassers (Bleeding) laut UNI 7122 Norm.","m³","m³",102.34]
["02.04.05.10","Profilati e tubi separatori per giunti","Profilrohre und Trennrohre"]
[null,"a) Profilato in PVC per giunti di ripresa, fornito e posto in opera; esecuzione e tipo (larghezza, spessore) secondo statica; s'intendono compresi morsetti d'aggancio, materiali di fissaggio, sovrapposizioni, saldature, pezzi speciali tipo a T o ad angolo, sfridi:","a) Profilrohre aus PVC für Anschlussfugen, liefern und einbauen, Ausführung und Typ (Breite, Durchmesser...) laut Statik, im Preis inbegriffen sind Haftklammern, Befestigungsmittel, Überdeckungen, Verschweißungen, spezielle Teile mit T- oder Eckform, Verschnitte:","m","m",20.47]
[null,"b) Profilato in PVC per giunti di dilatazione, fornito e posto in opera; esecuzione e tipo (larghezza, spessore….) secondo statica; s'intendono compresi morsetti d'aggancio, materiali di fissaggio, sovrapposizioni, saldature, pezzi speciali tipo a T o ad angolo, sfridi:","b) Profilrohre aus PVC für Abdichtungen über Bewegungsfugen, liefern und einbauen Ausführung und Typ (Breite, Durchmesser...) laut Statik, im Preis inbegriffen sind Haftklammern, Befestigungsmittel, Überdeckungen, Verschweißungen, spezielle Teile mit T- oder Eckform, Verschnitte:","m","m",25.59]
[null,"c) Tubo separatore (tipo Leschuplast Q1 oppure Stremaform 3515) per giunti apparenti, fornito e posto in opera; è compreso nel prezzo l'eventuale inserimento di listelli in legno in corrispondenza delle superfici esterne per indebolire la sezione di calcestruzzo.","c) Trennrohr (Typ Leschuplast Q1 oder Stremaform 3515) für Scheinfugen, liefern und einbauen, im Preis inbegriffen ist der eventuelle Einbau von Holzleisten an der Außenoberfläche zur Schwächung des Betonquerschnitts.","m²","m²",15.35]
["02.04.05.11","Fermagetto in rete nervata tipo Stremaform oppure Recostal,con o senza dentatura, eventualmente con gabbia per profilati waterstop, fornito e posto in opera; s'intendono compresi nel prezzo il materiale di fissaggio, l'eventuale foratura per fare passare l'armatura (se continua) ed ogni altro onere.","Gerippte Netze Typ Stremaform oder Recostal, mit oder ohne Verzahnung, eventuell mit Fugenband Typ waterstop, liefern und einbauen; im Preis inbegriffen sind die Befestigungsmittel, eventuelle Bohrungen, um die Bewehrung fortzuführen (falls durchgehend) und alle weiteren Aufwendungen"]
[null,"a) H=20cm","a) H=20cm","m","m",51.17]
[null,"b) H=40cm","b) H=40cm","m","m",64.47]
[null,"c) H=60cm","c) H=60cm","m","m",72.66]
["02.07","MURATURE, CASSONETTI E CAMINI","MAUERWERK, ROLLADENKÄSTEN UND SCHORNSTEINE"]
["02.07.01","MURATURA IN LATERIZIO","ZIEGELMAUERWERK"]
["02.07.01.01","Blocchi semipieni BS 11-31 per muratura portante, di controventamento e di tamponamento","Hochloch- Blöcke BS 11-31 für tragendes, aussteifendes und ausfachendes Mauerwerk "]
[null,"a) spessore 30 cm","a) Dicke 30 cm ","m²","m²",47.43]
[null,"b) spessore 38 cm","b) Dicke 38 cm ","m²","m²",55.27]
["02.07.01.02","Blocchi semipieni BS 11-21 per muratura portante, di controventamento e di tamponamento","Hochloch- Blöcke BS 11-21 für tragendes, aussteifendes und ausfachendes Mauerwerk"]
[null,"a) spessore 30 cm","a) Dicke 30 cm ","m²","m²",45.91]
[null,"b) spessore 38 cm","b) Dicke 38 cm ","m²","m²",51.2]
["02.07.01.03","Blocchi forati BF 00-21 per pareti divisorie interne","Langloch- Blöcke BF 00-21 für innere Trennwände"]
[null,"a) spessore 12 cm, da 800 Kg/m³","a) Dicke 12 cm, da 800 Kg/m³","m²","m²",25.5]
[null,"b) spessore 12 cm, da 1200 Kg/m³","b) Dicke 12 cm, da 1200 Kg/m³","m²","m²",26.16]
["02.07.01.04","Mattoni pieni MP 41","Vollziegel MP 41"]
[null,"a) spessore ≥ 25 cm, da 1700 Kg/m³","a) Dicke ≥ 25 cm, da 1700 Kg/m³","m³","m³",316.25]
[null,"b) spessore 12 cm, da 1700 Kg/m³","b) Dicke 12 cm, da 1700 Kg/m³","m²","m²",56.6]
["02.07.01.05","Mattoni semipieni MS 11-21","Hochloch- Ziegel MS 11-21"]
[null,"a) spessore ≥ 25 cm","a) Dicke ≥ 25 cm ","m³","m³",300.89]
[null,"b) spessore 12 cm","b) Dicke 12 cm ","m²","m²",53.2]
["02.07.01.06","Tavelle per rivestimenti","Ziegelplatten für Ummantelungen"]
[null,"a) spessore 3 cm","a) Dicke 3 cm ","m²","m²",15.36]
[null,"b) spessore 4 cm","b) Dicke 4 cm ","m²","m²",16.89]
["02.07.02","MURATURA IN CALCESTRUZZO","MAUERWERK AUS BETON"]
["02.07.02.01","Blocchi forati F4 per tramezze al piano interrato","Hochloch- Blöcke F4 für Trennwände im Untergeschoss"]
[null,"a) spessore 12 cm","a) Dicke 12 cm","m²","m²",29.23]
["02.07.02.02","Blocchi forati F4 per opere esterne","Hochloch- Blöcke F4 für Arbeiten im Außenbereich"]
[null,"a) spessore 20 cm","a) Dicke 20 cm","m²","m²",33.32]
[null,"b) spessore 25 cm","b) Dicke 25 cm","m²","m²",37.42]
[null,"c) spessore 30 cm","c) Dicke 30 cm","m²","m²",41.51]
["02.07.02.03","Sovrapprezzo per pigmentazione","Preiszuschlag für Pigmentierung","m²","m²",2.16]
["02.07.03","MURATURA IN PIETRA","MAUERWERK IN NATURSTEIN"]
["02.07.03.01","Conci per muratura","Werkstein für Mauerwerk"]
[null,"a) ordinaria","a) ohne Putz","m²","m²",372.36]
[null,"b) a corsi pressocchè regolari","b) mit nahezu regelmäßigen Steinschichten","m²","m²",418.19]
[null,"c) a corsi regolari","c) mit regelmäßigen Steinschichten","m²","m²",438.67]
["02.07.04","CASSONETTI PER AVVOLGIBILI","ROLLLADENKÄSTEN "]
[null,"a) Cassonetto, larghezza 36 cm","a) Rollladenkasten, Breite 36 cm","m","m",56.12]
["02.07.05","CAMINI","SCHORNSTEINE"]
["02.07.05.01","Camino come descritto al cod. 02.07.A5, completo di elementi speciali","Schornstein wie beschrieben in Kode 02.07.A5, komplett mit Sonderformstücken"]
[null,"a) diametro 12 cm","a) Durchmesser 12 cm","m","m",108.15]
[null,"b) diametro 16 cm","b) Durchmesser 16 cm","m","m",122.39]
["02.09","INTONACI E CAPPOTTI TERMICI","PUTZE UND VOLLWÄRMESCHUTZ"]
["02.09.01","INTONACI","PUTZE"]
["02.09.01.01","Rinzaffo in malta di cemento dosata a 500 kg di cemento per m³ d'impasto finito.","Spritzbewurf mit Zementmörtel im M.V. von 500 kg Zement pro m3 Fertiggemisch.","m²","m²",4.37]
["02.09.01.02","Intonaco interno grezzo a 2 mani:","Grobputz 2 Lagen:"]
[null,"a) primo strato con malta di cemento (rinzaffo) e secondo strato con malta di calce idrata dosata a 350 kg per m³ d'impasto","a) erste Lage aus Zementspritzbewurf und zweite Lage aus Weißkalkmörtel (Baukalk) im M.V. von 350 kg pro m3 Fertiggemisch","m²","m²",16.55]
[null,"b) primo strato con malta di cemento (rinzaffo) e secondo strato con malta bastarda dosata a 350 kg di calce idraulica e 100 kg di cemento R 325 per m³ d'impasto","b) erste Lage aus Zementspritzbewurf und zweite Lage aus Kalkzementmörtel im M.V. von 350 kg hydraulischem Kalk und 100 kg Zement R 325 pro m3 Fertiggemisch","m²","m²",16.600000000000001]
[null,"c) primo strato con malta di cemento (rinzaffo) e secondo strato con malta eminentemente idraulica dosata a 450 kg per m³ d'impasto","c) erste Lage aus Zementspritzbewurf und zweite Lage aus hydraulischem Kalkmörtel im M.V. von 450 kg pro m3 Fertiggemisch","m²","m²",17.059999999999999]
["02.09.01.03","Intonaco interno civile a 3 mani:","Innenputz 3 Lagen:"]
[null,"a) primo strato con malta di cemento (rinzaffo), secondo strato con malta di calce idrata dosata a 350 kg per m³ d'impasto e stabilitura con malta di calce dolce (grassello)","a) erste Lage aus Zementspritzbewurf, Unterputz aus Weißkalkhydrat (Baukalk) im M.V. von 350 kg pro m3 Fertiggemisch und Dünnschichtoberputz aus Kalkmörtel aus gelöschtem Weißkalk","m²","m²",17.489999999999998]
[null,"b) primo strato con malta di cemento (rinzaffo), secondo strato con malta bastarda dosata a 350 kg di calce eminentemente idraulica e 100 kg di cemento per m³ d'impasto e stabilitura con malta fina","b) erste Lage aus Zementspritzbewurf, Unterputz aus Kalkzementmörtel im M.V. von 350 kg hydraulischem Kalk und 100 kg Zement pro m3 Fertiggemisch und Dünnschichtoberputz aus Weißkalkfeinputz","m²","m²",17.489999999999998]
[null,"c) primo strato con malta di cemento (rinzaffo), secondo strato con malta eminentemente idraulica dosata a 550 kg per m³ d'impasto e stabilitura con calce idrata","c) erste Lage aus Zementspritzbewurf, Unterputz aus hydraulischem Kalkmörtel in M.V. von 550 kg pro m3 Fertiggemisch und Dünnschichtoberputz aus Kalk-Abrieb-Feinputz","m²","m²",18.66]
["02.09.01.04","Intonaco esterno a 2 mani","Außenputz 2 Lagen"]
[null,"a) primo strato con malta di cemento (rinzaffo) e secondo strato con malta bastarda dosata a 350 kg di calce eminentemente idraulica e a 100 kg di cemento per m³ d'impasto","a) erste Lage aus Zementspritzbewurf und zweite Lage aus Kalkzementmörtel im M.V. von 350 kg hochhydraulischem Kalk und 100 kg Zement pro m3 Fertiggemisch","m²","m²",18.239999999999998]
[null,"b) primo strato con malta di cemento (rinzaffo), secondo strato con malta di calce eminentemente idraulica dosata a 500 kg per m³ d'impasto{lingua: tedesco","b) erste Lage aus Zementspritzbewurf und zweite Lage aus hochhydraulischem Kalk im M.V. von 500 kg pro m3 Fertiggemisch","m²","m²",18.239999999999998]
["02.09.01.05","Intonaco esterno a 3 mani:","Außenputz 3 Lagen:"]
[null,"a) primo strato con malta di cemento (rinzaffo), secondo strato con malta di calce idrata dosata 400 kg per m³ d'impasto e terzo strato con malta di calce dolce (grassello)","a) erste Lage aus Zementspritzbewurf, Unterputz aus Weißkalkhydrat (Baukalk) im M.V. von 400 kg pro m3 Fertiggemisch und Oberputz aus Kalkmörtel aus gelöschtem Weißkalk","m²","m²",20.23]
[null,"b) primo strato con malta di cemento (rinzaffo), secondo strato con malta bastarda dosata a 400 kg di calce eminentemente idraulica e a 100 kg di cemento per m³ d'impasto e terzo strato con malta di calce idrata","b) erste Lage aus Zementspritzbewurf, Unterputz aus Kalkzementmörtel im M.V. von 400 kg hoch-hydraulischem Kalk und 100 kg Zement pro m3 Fertiggemisch und Oberputz aus Weißkalkhydrat","m²","m²",20.23]
[null,"c) primo strato con malta in cemento (rinzaffo), secondo strato con malta di cemento dosata a 400 kg per m³ d'impasto e terzo strato con malta eminentemente idraulica","c) erste Lage aus Zementspritzbewurf, Unterputz aus Zementmörtel im M.V. von 400 kg pro m3 Fertiggemisch und Oberschicht aus hydraulischem Kalkmörtel","m²","m²",20.03]
["02.09.01.06","Strato di finitura:","Dünnschicht-Oberputz:"]
[null,"a) superficie a frattazzo","a) Oberfläche verreiben","m²","m²",6.01]
[null,"b) superficie grumosa data a spruzzo (tipo terralba)","b) Besenspritzputz (Mörtelüberzug mit feinster Körnung - leicht gerauhte Fläche)","m²","m²",5.75]
[null,"c) superficie scabra data a cazzuola, sabbia 3-5 mm","c) Kellenspritzputz (mit Kellenspitze anwerfen), Sandkorn: 3-5 mm","m²","m²",6.07]
[null,"d) superficie grattata (malta con sabbia da 2-3 mm ottenuta con passaggio ripetuto di frattazzo)","d) Scheibenputz (Mörtel mit Sandkorn 2-3 mm mit mehrmaligem verreiben mittels Holzscheibe)","m²","m²",6.07]
["02.09.02","RETI DI ARMATURA E PROFILI PORTAINTONACO","PUTZTRÄGER, PUTZBEWEHRUNGEN"]
["02.09.02.01","Rete portaintonaco in lamiera stirata e nervata per soffitti ed aggetti di gronda","Putzträger aus Rippenstreckmetall für Überböden und Vordachschalungen:"]
[null,"a) superficie piana","a) Fläche eben","m²","m²",17.03]
[null,"b) superficie modanata","b) Fläche gegliedert","m²","m²",17.03]
["02.09.02.02","Rete portaintonaco in lamiera stirata e nervata per raccordi verticali:","Putzträger aus Rippenstreckmetall für Wandanschluß:"]
[null,"a) fino a 50 cm","a) für Abwicklungen bis 50 cm","m","m",14.26]
[null,"b) sviluppo da 50 cm a 75 cm","b) für Abwicklungen über 50 bis 75 cm","m","m",16.28]
[null,"c) sviluppo da 75 cm a 100 cm","c) für Abwicklungen über 75 bis 100 cm","m","m",20.02]
["02.09.02.03","Rete di armatura:","Putzbewehrung:"]
[null,"a) in ferro zincato, maglia 20x20 mm, spess. 0,6 mm","a) aus verzinktem Drahtgewebe, Maschenweite: 20x20 mm, Dicke: 0,6 mm","m²","m²",4.67]
[null,"b) in fibra sintetica","b) aus Gittergewebe aus Kunststofffasern","m²","m²",4.67]
[null,"c) in acciaio inox AISI 304","c) aus Inox AISI 304","m²","m²",5.27]
["02.09.03","CAPPOTTO TERMICO","VOLLWÄRMESCHUTZ"]
["02.09.03.01","Rivestimento a cappotto con pannelli di sughero:","Vollwärmeschutz aus Korkplatten"]
[null,"a) spessore lastre 8 cm","a) Plattenstärke 8 cm","m²","m²",74.2]
[null,"b) spessore lastre 10 cm","b) Plattenstärke 10 cm","m²","m²",79.31]
[null,"c) spessore lastre 12 cm","c) Plattenstärke 12 cm","m²","m²",84.43]
[null,"d) spessore lastre 14 cm","d) Plattenstärke 14 cm","m²","m²",91.59]
[null,"e) spessore lastre 16 cm","e) Plattenstärke 16 cm","m²","m²",98.76]
["02.09.03.02","Rivestimento a cappotto con pannelli a base minerale:","Vollwärmeschutz aus Mineralschaumplatten"]
[null,"a) spessore lastre 8 cm","a) Plattenstärke 8 cm","m²","m²",69.08]
[null,"b) spessore lastre 10 cm","b) Plattenstärke 10 cm","m²","m²",74.2]
[null,"c) spessore lastre 12 cm","c) Plattenstärke 12 cm","m²","m²",79.31]
[null,"d) spessore lastre 14 cm","d) Plattenstärke 14 cm","m²","m²",84.43]
[null,"e) spessore lastre 16 cm","e) Plattenstärke 16 cm","m²","m²",89.55]
["02.09.03.03","Rivestimento a cappotto con pannelli in lana di roccia:","Vollwärmeschutz aus Mineralwolle-Dämmplatten"]
[null,"a) spessore lastre 8 cm","a) Plattenstärke 8 cm","m²","m²",71.64]
[null,"b) spessore lastre 10 cm","b) Plattenstärke 10 cm","m²","m²",76.760000000000005]
[null,"c) spessore lastre 12 cm","c) Plattenstärke 12 cm","m²","m²",81.87]
[null,"d) spessore lastre 14 cm","d) Plattenstärke 14 cm","m²","m²",86.99]
[null,"e) spessore lastre 16 cm","e) Plattenstärke 16 cm","m²","m²",92.11]
["02.09.04","CONTROSOFFITTI IN CARTONGESSO","ABGEHÄNGTE UNTERDECKEN AUS GIPSKARTON"]
["02.09.04.01","Controsoffitti in lastre di cartongesso:","Abgehängte Decken aus Gipskartonplatten"]
[null,"b) spessore lastre 12,5 mm","b) Plattenstärke 12,5 mm","m²","m²",39.130000000000003]
["02.11","MEMBRANE","ABDICHTUNGEN"]
["02.11.01","MEMBRANE BITUMINOSE","BITUMENBAHNEN"]
["02.11.01.01","Membrana bituminosa con polimeri (PAO), codice \"BPP 11.00.00\", a doppio strato, spessore di mm 4 + 4 mm (nr. 200) ","Polymerbitumendichtungsbahn (PAO), Produktkode “BPP 11.00.00.,” 2- fach verlegt Dicke 4 + 4 mm (Nr. 200)","m²","m²",24.56]
["02.11.01.02","Risvolto in alto (a parete) in membrana bituminosa con polimeri (PAO), spessore 4 mm","Hochzüge (Wandanschluss) mit Polymerbitumendichtungsbahn (PAO) verklebt, Dicke 4 mm","m²","m²",26.61]
["02.11.01.03","Risvolto in basso in membrana bituminosa con polimeri (PAO), spessore di mm 4 +4 mm","Tiefzüge mit Polymerbitumendichtungsbahn (PAO) verklebt, Dicke 4 +4 mm","m²","m²",26.61]
["02.11.01.04","Membrana bituminosa per pavimento di scantinato con polimeri (PAO), codice \"BPP 11.00.00\", spessore 4 mm ","Polymerbitumendichtungsbahn (PAO) Produktkode “BPP 11.00.00 mit 4 mm Dicke für Kellerboden","m²","m²",10.23]
["02.11.01.05","Membrana bituminosa con polimeri (PAO), codice \"BPP 11.00.00\", spessore di mm 4 mm di membrana bituminosa (liscia)+ 4 mm di membrana bituminosa ardesiata per piccole superfici","Polymerbitumendichtungsbahn (PAO), Produktkode “BPP 11.00.00 Dicke 4 mm (glatt)+ 4 mm besandete Dichtungsbahn für kleine Flächen","m²","m²",27.63]
["02.11.02","MEMBRANE IN POLIOLEFINE","DICHTUNGSBAHNEN AUS POLYOLEFINE"]
["02.11.02.01","Membrana sintetica in lega di poliolefine flessibili normali (FPO), codice \"FPO 01.00.00.\", spessore mm 1,8 (nr. 201)","Kunststoffdichtungsbahnen aus einer Legierung von flexiblen Polyolefinen (FPO), Produktkode “FPO 01.00.00.”, Dicke  1,8 mm (Nr. 201)","m²","m²",22.51]
["02.11.02.02","Membrana sintetica in lega di poliolefine flessibili (FPO) per vasche di raccolta a tenuta (nr. 205)","Kunststoffdichtungsbahnen aus einer Legierung von flexiblen Polyolefinen (FPO) für dichte Sammelbecken (Nr. 205)","m²","m²",36.840000000000003]
["02.11.02.03","Risvolto in alto in membrana sintetica in lega di poliolefine flessibili normali (FPO), spessore 1,8 mm","Hochzüge mit Kunststoffdichtungsbahnen aus einer Legierung von flexiblen Polyolefinen (FPO), Dicke 1,8 mm","m²","m²",28.66]
["02.11.02.04","Risvolto in basso in membrana sintetica in lega di poliolefine flessibili normali (FPO), spessore di mm 1,8 mm","Tiefzüge Kunststoffdichtungsbahnen aus einer Legierung von flexiblen Polyolefinen (FPO), verklebt, Dicke 1,8 mm","m²","m²",28.66]
["02.11.03","MEMBRANE MULTISTRATO","MEHRSCHICHTDICHTUNGSBAHNEN"]
["02.11.03.01","Membrana multistrato per l'impermeabilizzazione di balconi (nr. 203)","Mehrschicht-Kunststoffdichtungsbahnen für die Abdichtung von Balkonen  (Nr. 203)","m²","m²",30.7]
["02.11.04","MEMBRANE IN POLIETILENE","DICHTUNGSBAHNEN AUS  POLYÄTHYLEN"]
["02.11.04.01","Membrana in PE a bassa densità (LDPE), g/m² 180, spessore 0,22 mm, come barriera vapore per tetti piani (nr. 250)","Dichtungsbahnen aus PE mit niedriger Dichte (LDPE) als Dampfsperre für Flachdächer, 180 g/m², Dicke 0,22 mm  (Nr. 250)","m²","m²",2.64]
["02.11.04.02","Membrana in PE a bassa densità (LDPE), g/m² 270, spessore 0,30 mm, come strato di scorrimento e/o separazione (nr. 252)","Dichtungsbahn aus PE mit niedriger Dichte (LDPE) als Gleit- und Trennschicht, 270 g/m², Dicke 0,30 mm  (Nr. 252)","m²","m²",2.3199999999999998]
["02.11.04.03","Membrana bugnata in PE ad alta densità (HDPE), come strato di protezione, g/m2 600 (nr. 253)","Genoppte PE-Dichtungsbahn mit hoher Dichte (HPDE) als Schutzschicht, 600 g/m²  (Nr. 253)","m²","m²",7.25]
["02.11.05","MEMBRANE IN POLIPROPILENE","DICHTUNGSBAHNEN AUS PLOYPROPYLEN"]
["02.11.05.01","Membrana in PP \"non tessuto\", come strato protezione, g/m2 400 (nr. 254)","Textilverbundstoff aus PP als Schutzschicht, 400 g/m²  (Nr. 254)","m²","m²",2.3199999999999998]
["02.11.05.02","Membrana in PP \"non tessuto\", come strato di regolarizzazione, g/m2 500 (nr. 255)","Textilverbundstoff aus PP als Ausgleichsschicht, 500 g/m²  (Nr. 255)","m²","m²",2.64]
["02.11.06","MEMBRANA CON FUNZIONE DI BARRIERA AL VAPORE","DICHTUNGSBAHN ALS DAMPFSPERRE "]
["02.11.06.01","Membrana bituminosa con polimeri (PAO) con armatura come barriera al vapore in foglio di alluminio da 4 mm","Polymerbitumendichtungsbahn mit Trägereinlage aus Aluminium- Verbund als Dampfsperre 4 mm","m²","m²",12.28]
["02.12","ISOLAMENTI TERMICI ED ACUSTICI","WÄRME- UND SCHALLDÄMMUNGEN"]
["02.12.01","ISOLAMENTI TERMICI","WÄRMEDÄMMUNGEN"]
["02.12.01.01","Isolamento termico in lastre di polistireneestruso per zoccoli e soglie balconi ","Wärmedemmung aus Polystirene extrudierte Hartschaumplatten für Sockel und thermische Trennung der Balkonplatte (Nr. 270)"]
[null,"a) spessore: 4 cm","a) Dicke: 4 cm","m²","m²",13.97]
[null,"b) spessore: 6 cm","b) Dicke: 6 cm","m²","m²",18.27]
[null,"c) spessore: 8 cm","c) Dicke: 8 cm","m²","m²",22.57]
[null,"d) spessore 10 cm","d) Dicke: 10 cm","m²","m²",26.86]
["02.12.01.02","Pannello a base minerale per intradosso solai (nr. 164)","Mineralschaumplatte für Unterseite von Decken  (Nr. 164)"]
[null,"a) spessore: 6 cm","a) Dicke: 6 cm","m²","m²",41.96]
[null,"b) spessore: 8 cm","b) Dicke: 8 cm","m²","m²",45.54]
[null,"c) spessore: 10 cm","c) Dicke: 10 cm","m²","m²",49.12]
["02.12.01.03","Pannello a base minerale per tetti piani (nr. 274)","Mineralschaumplatte für Flachdächer (nr. 274)"]
[null,"a) spessore: 8 cm","a) Dicke: 8 cm","m²","m²",25.59]
[null,"b) spessore: 10 cm","b) Dicke: 10 cm","m²","m²",31.21]
["02.12.02","ISOLAMENTI ACUSTICI","SCHALLDÄMMUNGEN"]
["02.12.02.01","Pannello di lana di roccia feldspatica per pareti divisorie di 2 alloggi","Gesteinfaserplatten für Trennmauern zwischen 2 Wohnungen (Nr. 282)"]
[null,"a) spessore 4 cm","a) Dicke: 4 cm","m²","m²",9.07]
[null,"b) spessore 6 cm","b) Dicke: 6 cm","m²","m²",11.8]
["02.12.02.02","Striscia di trucioli di gomma, spessore 8 mm, sotto le tramezze, larghezza minimo 20 cm","Gummigranulatstreifen Dicke 8 mm, unter Trennwänden, Breite mind 20 cm","m","m",3.85]
["02.12.02.04","Striscia autoadesiva a \"L\" di polietilene espanso, spessore 8 mm, anticalpestio, sviluppo minimo 20 cm","Schaumpolyäthylenstreifen “L”-förmig, Dicke 8 mm, als Trittschalldämmung, Abwicklung mind. 20 cm","m","m",4.0999999999999996]
["02.12.02.05","Materassini in trucioli di gomma, spessore 6 mm, anticalpestio","Gummigranulatmatte, Dicke 6 mm, als Trittschalldämmung","m²","m²",10.24]
["02.16","DRENAGGI, CANALIZZAZIONI E FOGNATURE","DRÄNARBEITEN, ABFLUSS- UND ABWASSERLEITUNGEN"]
["02.16.01","TUBI DRENANTI","DRÄNROHRE"]
["02.16.01.01","Tubo drenante in PVC:","Dränleitung PVC: (Nr. 550)"]
[null,"a) DN 100 mm","a) DN 100 mm","m","m",9.41]
[null,"b) DN 125 mm","b) DN 125 mm","m","m",11.71]
[null,"c) DN 160 mm","c) DN 160 mm","m","m",14.53]
["02.16.02","STRATI FILTRANTI","FILTERSCHICHTEN"]
["02.16.02.01","Strato filtrante con telo multistrato (nr. 257)","Mehrlagiger Verbundkörper aus Filterlagen und Sickerschicht  (Nr. 257)","m²","m²",15.35]
["02.16.02.02","Telo filtrante geotessile","Geotextilien-Filtervlies (Nr. 256)","m²","m²",1.8]
["02.16.02.03","Telo drenante con protuberante troncoconiche","Dränschicht mit Kegelstumpfnoppen (Nr. 258)","m²","m²",12.28]
["02.16.02.04","Ghiaia lavata, sp. Min. 10 cm (nr. 260)","Gewaschener Grobschotter, Dicke 10 cm (Nr. 260)","m³","m³",23.99]
["02.16.03","CANALIZZAZIONI","ABFLUSSLEITUNGEN"]
["02.16.03.01","Tubo in cemento:","Betonrohr:"]
[null,"a) DN 100 mm","a) DN 100 mm","m","m",13.75]
[null,"b) DN 150 mm","b) DN 150 mm","m","m",16.57]
[null,"c) DN 200 mm","c) DN 200 mm","m","m",20.14]
[null,"d) DN 250 mm","d) DN 250 mm","m","m",23.75]
[null,"e) DN 300 mm","e) DN 300 mm","m","m",29.6]
[null,"f) DN 400 mm","f) DN 400 mm","m","m",37.25]
["02.16.04","FOGNATURE","ABWASSERLEITUNGEN"]
["02.16.04.01","Tubo in grès","Steinzeugrohr:"]
[null,"a) DN 120 mm","a) DN 120 mm","m","m",26.18]
[null,"b) DN 150 mm","b) DN 150 mm","m","m",26.96]
[null,"c) DN 200 mm","c) DN 200 mm","m","m",35]
[null,"d) DN 250 mm","d) DN 250 mm","m","m",41.5]
[null,"e) DN 300 mm","e) DN 300 mm","m","m",55.05]
["02.16.04.02","Tubo in PVC rigido:","Abwasserleitung aus PVC hart"]
[null,"a) DN 110 mm","a) DN 110 mm","m","m",13.75]
[null,"b) DN 125 mm","b) DN 125 mm","m","m",14.58]
[null,"c) DN 160 mm","c) DN 160 mm","m","m",16.190000000000001]
[null,"d) DN 200 mm","d) DN 200 mm","m","m",23.99]
["02.16.04.03","Tubazioni strutturate in PVC:","PVC strukturierte Abwasserleitungen"]
[null,"a) DN 110 mm","a) DN 110 mm","m","m",14.77]
[null,"b) DN 125 mm","b) DN 125 mm","m","m",15.7]
[null,"c) DN 160 mm","c) DN 160 mm","m","m",17.8]
[null,"d) DN 200 mm","d) DN 200 mm","m","m",26.48]
[null,"e) DN 25 mm","e) DN 25 mm","m","m",28.38]
[null,"f) DN 315","f) DN 315 mm","m","m",38.369999999999997]
["02.16.04.04","Tubi in ghisa ML:","Gußrohr ML:"]
[null,"a) DN 100 mm","a) DN 100 mm","m","m",35.69]
[null,"b) DN 125 mm","b) DN 125 mm","m","m",48.46]
[null,"c) DN 150 mm","c) DN 150 mm","m","m",58.66]
["02.16.04.05","Sifone Firenze","Geruchsverschluß Typ „Firenze“","cad","St",255.85]
["02.16.05","POZZETTI","SCHÄCHTE"]
["02.16.05.01","Pozzetto in calcestruzzo:","Kanalschacht Beton:"]
[null,"a) 30x30x35 (H) x 3cm","a) 30x30x35(H)x3 cm","cad","St",58.66]
[null,"b) 40x40x40 (H) x 4cm","b) 40x40x40(H)x4 cm","cad","St",62.26]
[null,"c) 60x60x60 (H) x 4-5cm","c) 60x60x60(H)x 4-5 cm","cad","St",86.74]
[null,"d) 50x50x80 (H) x 6-8cm sifonato","d) 50x50x80(H)x6-8 cm mit Geruchsverschluss","cad","St",124.97]
["02.16.05.02","Anello prolunga pozzetto:","Zusatzelement Kanalschacht:"]
[null,"a) 30x30x20 (H) x 3cm","a) 30x30x20(H)x3cm","cad","St",21.45]
[null,"b) 40x40x20 (H) x 4cm","b) 40x40x20(H)x4 cm","cad","St",23.46]
[null,"c) 60x60x30 (H) x 4-5cm","c) 60x60x30(H)x4-5 cm","cad","St",58.66]
["02.16.05.03","Pozzetto ispezione allacciamenti elettrici, telefonici e TV:","Inspektionsschacht als Fertigteil für Elektro-, Telefon- und Fernsehleitungen"]
[null,"a) 40x40x50 (H) x 4cm","a) 40x40x50(H)x4cm","cad","St",73.959999999999994]
[null,"b) 60x60x50 (H) x 5cm","b) 60x60x50(H)x5cm","cad","St",94.4]
["02.16.05.04","Pozzo perdente acque piovane:","Sickerschacht für Regenwasser: (Nr.561)"]
[null,"a) diametro interno 1200 mm","a) Innendurchmesser: 1200 mm","m","m",408.05]
[null,"b) diametro interno 1500 mm","b) Innendurchmesser: 1500 mm","m","m",535.61]
["02.16.05.05","Separatore di benzina/oli:","Benzin/Ölabscheider:"]
[null,"a) NG 1,5 l/sec","a) NG 1,5l/sec","cad","St",2601.48]
[null,"b) NG 3 l/sec","b) NG 3l/sec","cad","St",3621.64]
["02.16.05.06","Pozzetto per Sifone Firenze:","Schacht für Geruchsverschluss Typ „Firenze“"]
[null,"a) 1,00 x 1,20 x 1,00 (H)","a) 1,00x1,20x1,00(H)","cad","St",409.73]
[null,"b) 1,20 x 1,50 x 1,50 (H)","b) 1,20x1,50x1,50(H)","cad","St",535.61]
["02.16.06","CHIUSINI, CADITOIE E MINUTERIE","SCHACHTABDECKUNGEN, RINNENABDECKUNGEN UND KLEINTEILE"]
["02.16.06.01","Chiusino in ghisa: ","Schachtabdeckung in Gusseisen: (Nr. 570)"]
[null,"a) 300x300 mm, 15-20 kg, classe B 125","a) 300x300 mm, 15-20 kg, Klasse B 125","cad","St",65.33]
[null,"b) 400x400 mm, 20-30kg, classe C 250","b) 400x400 mm, 20-30kg, Klasse C 250","cad","St",90.2]
[null,"c) 600x600 mm, 110/120 kg, classe D 400","c) 600x600 mm, 110-120 kg, Klasse D 400","cad","St",231.85]
["02.16.06.02","Caditoia in ghisa:","Gitterrost in Gusseisen: (Nr. 571)"]
[null,"a) 300x300 mm, 15-20 kg","a) Abmessungen 300x300 mm, 15-20 kg","cad","St",72.760000000000005]
[null,"b) 400x400 mm, 25-30 kg","b) Abmessungen 400x400 mm, 25-30 kg","cad","St",97.33]
[null,"c) 560x560 mm, 50-60 kg","c) Abmessungen 560x560 mm, 50-60 kg","cad","St",133.13999999999999]
["02.16.06.03","Canaletta di scolo prefabbricata in cls: (nr. 581)","Entwässerungsrinne als Fertigteil aus Beton: (Nr. 581)"]
[null,"a) con griglia a ponte zincata, classe B 125","a) Kastenrinne mit verzinktem Stegrost, Klasse B 125","m","m",119.85]
[null,"b) con griglia e maglie lunghe zincate, classe C 250","b) Kastenrinne mit verzinktem Gitterrost, Klasse C 250","m","m",123.94]
[null,"c) con griglia a fessura in ghisa, classe D 400","c) Kastenrinne mit Schlitzrost aus Gußeisen, Klasse D 400","m","m",143.35]
["02.17","SISTEMAZIONI ESTERNE","FREIRAUMGESTALTUNG "]
["02.17.01","MASSICCIATE","SCHOTTERSCHICHTEN"]
["02.17.01.01","Massicciata con misto naturale ghiaioso per formazione di strade, cortili e piazze","Schotterschicht für Unterbau von Fahrbahnen und Hofflächen"]
[null," a) Spessore finito 25 cm","a)  Schichtdicke: 25 cm","m²","m²",7.41]
[null," b) Spessore finito 30 cm","b) Schichtdicke: 30 cm","m²","m²",8.43]
[null," c) Spessore finito 40 cm","c) Schichtdicke: 40 cm","m²","m²",10.75]
[null," d) a profilo sagoma (volume)","d) nach Auftragsprofilen","m³","m³",27.08]
["02.17.01.02","Massicciata con misto naturale ghiaioso proveniente dallo scavo, per formazione di strade, cortili e piazze","Schotterschicht für Fahrbahnen und Hofflächen, aus Baugrubenschotter"]
[null,"a) Spessore finito 25 cm","a) Schichtdicke: 25 cm","m²","m²",6.29]
[null,"b) Spessore finito 30 cm","b) Schichtdicke: 30 cm","m²","m²",7.44]
[null,"c) Spessore finito 40 cm","c) Schichtdicke: 40 cm","m²","m²",8.7899999999999991]
[null,"d) a profilo sagoma (volume)","d) nach Auftragsprofilen","m³","m³",26.86]
["02.17.01.03","Massicciata con RB-granulato 0/32, per formazione di strade, cortili e piazze:","Tragschicht für Fahrbahnen aus RB-Granulat 0/32:"]
[null,"a) Spessore finito 25 cm","a) Schichtdicke: 25 cm","m²","m²",6.26]
[null,"b) Spessore finito 30 cm","b) Schichtdicke: 30 cm","m²","m²",6.9]
[null,"c) Spessore finito 40 cm","c) Schichtdicke: 40 cm","m²","m²",8.2899999999999991]
[null,"d) a profilo sagoma (volume)","d) nach Auftragsprofilen","m³","m³",22.08]
["02.17.01.04","Costipazione:","Bodenverdichtung"]
[null,"a) Strati fino a 50 cm","a) Schichten bis zu 50 cm ","m²","m²",1.99]
["02.17.02","PAVIMENTAZIONI IN GHIAIA","SCHOTTERDECKSCHICTHEN"]
["02.17.02.01","Pavimentazione vialetti e campi gioco","Deckschicht für Wege und Spielflächen","m²","m²",15.65]
["02.17.02.02","Acciottolato:","Kopfsteinpflaster:"]
[null,"a) con pietra locale","a) aus ortsgebundenen Naturstein","m²","m²",88.39]
["02.17.02.03","Ghiaia lavata, diametro 16-32 mm (nr. 532)","Gewaschener Grobschotter, Durchmesser 16-32 mm"]
[null,"a) per pavimentazione e raccordi perimetrali di tetti piani (sp. min. 10 cm)","a) Flachdächer und deren Randanschlüsse (Dicke min. 10 cm)","m²","m²",19.3]
[null,"b) per raccordi perimetrali di drenaggio al basamento dell’edificio ","b) Bodenanschlusse an Gebäude ","m³","m³",64.2]
["02.17.03","PAVIMENTAZIONE IN BITUME","TEERDECKSCHICHTEN"]
["02.17.03.01","Strato portante in conglomerato bituminoso:","Bituminöse Tragschicht:"]
[null,"a) per ogni m² e ogni cm di spessore finito","a) für jeden m² und jeden fertigen cm","m²/cm","m²/cm",2.0299999999999998]
["02.17.03.02","Tappeto di usura in conglomerato bituminoso","Bituminöse Verschleißschicht:"]
[null,"a)  spessore finito 2 cm","a) fertige Dicke: 2 cm","m²","m²",6.19]
[null,"b) spessore finito 3 cm","b) fertige Dicke: 3 cm","m²","m²",7.14]
["02.17.04","PAVIMENTAZIONE IN PIETRA NATURALE","NATURSTEINDECKSCHICHTEN"]
["02.17.04.01","Pavimentazione di strade e cortili in cubetti di porfido","Pflasterdecke mit Pflastersteinen aus Porphyr, für Fahrbahnen und Hofflächen"]
[null,"a) pezzatura 4/6 cm, circa 101 kg/m²","a) Stückgrößen: 4/6 cm, ca. 100 kg/m2","m²","m²",57.82]
[null,"b) pezzatura 6/8 cm, circa 130 kg/m²","b) Stückgrößen: 6/8 cm, ca. 130 kg/m2","m²","m²",59.49]
[null,"c) pezzatura 8/10 cm, circa 185 kg/m²","c) Stückgrößen: 8/10 cm, ca. 185 kg/m2","m²","m²",64.86]
["02.17.04.02","Lastre poligonali in porfido grigio Cembra, lunghezza/larghezza di 30-60 cm, spessore di 3-4 cm","Plattenbelag aus polygonalen Platten, grauer Cembra-Porphyr, Länge/Breite: 30-60 cm, Dicke: 3-4 cm; "]
[null,"a) su letto di sabbia","a) auf Sandbett","m²","m²",80.09]
[null,"b) su letto di malta","b) auf Mörteldickbett","m²","m²",88.39]
["02.17.04.03","Lastre regolari con coste a spacco, larghezza costante, lunghezza a correre, spessore di 3-4 cm, su letto di malta","Plattenbelag aus regelmäßigen Platten mit gehauenen Kanten, einheitlicher Breite, in Längsbahnen, Dicke: 3-4 cm; im Mörteldickbett"]
[null,"a) porfido grigio Cembra, larghezza 20 cm","a) grauer Cembra-Porphyr, Plattenbreite: 20 cm","m²","m²",83.6]
[null,"b) porfido grigio Cembra, larghezza 30 cm","b) grauer Cembra-Porphyr, Plattenbreite: 30 cm","m²","m²",88.39]
[null,"c) porfido grigio Cembra, larghezza 40 cm","c) grauer Cembra-Porphyr, Plattenbreite: 40 cm","m²","m²",94.28]
["02.17.04.04","Lastre regolari con coste segate, larghezza costante, lunghezza a correre, spessore di 3-4 cm, su letto di malta","Plattenbelag aus regelmäßigen Platten mit gefrästen Kanten, einheitlicher Breite, in Längsbahnen, Dicke: 3-4 cm; liefern, im Mörteldickbett"]
[null,"a) porfido grigio Cembra, larghezza 20 cm","a) grauer Cembra-Porphyr, Plattenbreite: 20 cm","m²","m²",97.61]
[null,"b) porfido grigio Cembra, larghezza 30 cm?come s 20","b) grauer Cembra-Porphyr, Plattenbreite: 30 cm","m²","m²",97.61]
[null,"c) porfido grigio Cembra, larghezza 40 cm","c) grauer Cembra-Porphyr, Plattenbreite: 40 cm","m²","m²",107.9]
["02.17.04.05","Smolleri a coltello:","Hochkant-Natursteinriemen:"]
[null,"a) porfido grigio Cembra","a) grauer Cembra-Porphyr","m²","m²",134.79]
["02.17.05","PAVIMENTAZIONE IN ELEMENTI DI CALCESTRUZZO","FERTIGBETONDECKSCHICHTEN"]
["02.17.05.01","Lastre di cls unigranulare, sp 6-7 cm","Plattenbelag aus Einkornbeton, Dicke 6-7 cm","m²","m²",34.1]
["02.17.05.02","Masselli in calcestruzzo, sp. 7/8cm","Betonpflastersteine, Dicke 7/8 cm","m²","m²",41.02]
["02.17.05.03","Grigliato di calcestruzzo, sp. 10-12 cm","Plattenbelag aus Gittersteinen, Dicke 10-12 cm","m²","m²",30.47]
["02.17.05.04","Lastre di calcestruzzo pressato, sp. 3,8 cm","Plattenbelag aus gepressten Betonplatten, Dicke 3,8 cm","m²","m²",23.8]
["02.17.06","CORDONATE E BINDERI","RANDSTEINE UND BINDERLEISTEN"]
["02.17.06.01","Cordone porfido:","Randstein Porphyr:"]
[null,"a) testa a spacco 8x25(H)","a) gehauene Stirnfläche 8x25(H)","m","m",50.27]
[null,"b) testa a spacco 10x25(H)","b) gehauene Stirnfläche 10x25(H)","m","m",60.78]
[null,"c) testa fresata 12x25(H)","c) gefräste Stirnfläche 12x25(H)","m","m",70.7]
[null,"d) testa fresata 15x25(H)","d) gefräste Stirnfläche 15x25(H)","m","m",71.81]
[null,"e) testa fresata e bocciardata 12x25(H)","e) gefräste u. gestockte Stirnfläche 12x25(H)","m","m",79.92]
[null,"f) testa fresata e bocciardata 15x25(H)","f) gefräste u. gestockte Stirnfläche 15x25(H)","m","m",82.85]
[null,"g) testa piano cava 12x25(H)","g) spaltrauhe Stirnfläche 12x25(H)","m","m",68.489999999999995]
[null,"h) testa piano cava 15x25(H)","h) spaltrauhe Stirnfläche 15x25(H)","m","m",74.03]
["02.17.06.02","Cordone in cls:","Randstein Beton:"]
[null,"a) 6/8x20 (H) cm","a) 6/8x20(H)cm","m","m",28.38]
[null,"b) 12/15x15 (H) cm","b) 12/15x25(H)cm","m","m",31.55]
[null,"c) 12/15x25 (H) cm armato","c) 12/15x25(H)cm bewehrt","m","m",32.9]
["02.17.06.03","Binderi porfido:","Binderleiste Porphyr:"]
[null,"a) dimensioni 8x12x25 cm","a) Abmessungen: 8x12x25 cm","m","m",25.44]
[null,"b) dimensioni 10x12x15 cm","b) Abmessungen: 10x12x15 cm","m","m",28.37]
["02.17.07","COPERTINE E PEDATE","ABDECKUNGEN UND SETZSTUFEN"]
["02.17.07.01","Copertina, coste a spacco, spessore di 4-5 cm, larghezza 35-40 cm, lunghezza fino a 0,90 m","Abdeckung für Mauer, gehauene Kantenflächen, Dicke: 4 - 5 cm, Breite: 35-40 cm, Länge bis 0,90 m"]
[null,"a) porfido grigio Cembra","a) grauer Cembra-Porphyr","m","m",67.41]
["02.17.07.02","Copertine, coste fresate, spessore 3-4 cm, larghezza 30-40 cm, lunghezza fino a 1,20 m","Abdeckung für Mauer, gefräste, bemessene Kantenflächen, Dicke: 3-4 cm, Breite: 30-40 cm, Länge bis 1,20 m"]
[null,"a) porfido grigio Cembra","a) grauer Cembra-Porphyr","m","m",74.03]
[null,"b) sovrapprezzo per lunghezze da1,20 a 1,50 m","b) Aufpreis für Längen über 1,20 m bis 1,50 m","%","%",15.35]
[null,"c) sovrapprezzo per seconda costa calibrata per 6 cm di profondità","c) Aufpreis für eine zweite Seitenfläche gleichmäßig dick, 6 cm tief gefräst","m","m",7.9]
[null,"d) sovrapprezzo per scanalatura, sezione 4x8 mm","d) Aufpreis für Nut, Querschnitt: 4x8 mm","m","m",4.96]
["02.17.07.03","Pedata, a piano di cava, coste a spacco, spessore 3-4 cm, larghezza 30-33 cm, lunghezza fino a 0,90 m","Trittstufe, gehauene Kantenflächen, Dicke: 3-4 cm, Breite: 30-33 cm, Länge bis 0,90 m"]
[null,"a) porfido grigio Cembra","a) grauer Cembra-Porphyr","m","m",55.99]
["02.17.07.04","Pedata, coste fresate, spessore 3-4 cm, larghezza 30-33 cm, lunghezza fino a 1,20 m","Trittstufe, gefräste Kantenflächen, dicke: 3-4 cm, Breite: 30-33 cm, Länge bis 1,20 m"]
[null,"a) porfido grigio Cembra","a) grauer Cembra-Porphyr","m","m",68.849999999999994]
[null,"b) Sovrapprezzo per lunghezze da 1,20 a 1,50 m","b) Aufpreis für Längen über 1,20 m bis 1,50 m","%","%",15.35]
["02.17.08","SUPERFICI ERBOSE","RASENFLÄCHEN"]
["02.17.08.01","Terra da coltivo: (nr.520)","Gartenerde"]
[null,"a) stendimento manuale","a) Einbau händisch","m³","m³",42.93]
[null,"b) stendimento meccanico","b) Einbau maschinell","m³","m³",21.85]
["02.17.08.02","Tappeto erboso","Rasenflächen","m²","m²",3.68]
["02.17.09","PIANTE","PFLANZEN"]
["02.17.09.01","Messa a dimora piante:","Anpflanzen von Pflanzen:"]
[null,"a) sul prezzo d'origine","a) auf den Grundpreis","%","%",30.7]
["02.17.09.02","Formazione siepi:","Hecken:"]
[null,"a) ligustrum a doppia fila","a) Ligustrum zweireihig","m","m",26.92]
[null,"b) prunus laurus cerasus","b) Prunus laurus cerasus","m","m",20.37]
[null,"c) ligustrum a fila semplice","c) Ligustrum einreihig","m","m",13.46]
["02.17.10","ARREDI","EINRICHTUNGSGEGENSTÄNDE"]
["02.17.10.01","Panca con schienale:","Gartenbank:"]
[null,"a) lunghezza ca. 180 cm","a) Länge: 180 cm","cad","St",552.79]
[null,"b) lunghezza ca. 180 cm, con braccioli","b) mit Armlehnen, Länge: 180 cm","cad","St",663.37]
["02.17.10.02","Cestino portarifiuti:","Abfallbehälter:"]
[null,"a) fissaggio a pavimento","a) freistehend","cad","St",409.31]
[null,"b) fissaggio a parete","b) Wandbefestigung","cad","St",266.19]
["02.17.10.03","Rastrelliera biciclette con disposizione:","Fahrradständer mit Anordnung der Halterungen:"]
[null,"a) diritta o inclinata ","a) Gerade oder schräg, ","cad","St",312.24]
["02.17.11","TETTI VERDI","DACHBEGRÜNUNGEN"]
["02.17.11.01","Sistema per l'inverdimento pensile intensivo","Intensive Dachbegrünung","m²","m²",71.19]
["02.17.11.02","Sistema per l'inverdimento pensile estensivo","Extensive Dachbegrünung","m²","m²",56.68]
["02.17.11.03","Terriccio speciale per giardini pensili intensivi","Substratmischung für intensive Dachbegrünungen","m²","m²",57.6]
["02.17.11.04","Terriccio speciale per giardini pensili estensivi","Substratmischung für extensive Dachbegrünungen"]
[null,"a) Terriccio speciale per giardini pensili estensivi, spessore 12cm","a) Substratmischung für extensive Dachbegrünungen zu 12 cm","m²","m²",30.86]
[null,"b) Terriccio speciale per giardini pensili estensivi, spessore 8cm","b) Substratmischung für extensive Dachbegrünungen zu 8cm","m²","m²",22.63]
["02.17.11.05","Pozzetto di controllo","Kontrollschacht","cad","St",120.07]
["02.17.11.06","Tappeto di Sedum per l'inverdimento pensile","Sedumteppich für Dachbegrünung  (Nr.522)","m²","m²",10.51]
["02.18","ASSISTENZE MURARIE","MAURERBEIHILFEN"]
["02.18.01","Assistenze murarie per opere da fabbro","Maurerbeihilfen für Schlosserarbeiten","%","%",15.35]
["02.18.02","Assistenze murarie per serramenti (legno e/o legno alluminio)","Maurerbeihilfen für den Einbau von Fenster und Türen aus Holz und Holz-Aluminium","%","%",15.35]
["02.18.03","Assistenze murarie per l'impianto di riscaldamento","Maurerbeihilfen für Heizungsanlage","%","%",16.37]
["02.18.04","Assistenze murarie per l'impianto idrosanitario","Maurerbeihilfen für Sanitäranlage","%","%",16.37]
["02.18.05","Assistenze murarie per l'impianto elettrico","Maurerbeihilfen für Elektroanlage","%","%",25.59]
["02.18.06","Assistenze murarie per l'impianto ascensore","Maurerbeihilfen für den Einbau des Aufzuges","%","%",15.35]
["03","OPERE DA FABBRO","SCHLOSSERARBEITEN"]
["03.01","CARPENTERIA IN METALLO","STAHLBAUARBEITEN"]
["03.01.01","Edifici completi ed elementi strutturali","Gesamtbauwerke und Bauteile"]
["03.01.01.01","Strutture di acciaio:","Stahlkonstruktion:"]
[null,"a) bullonate","a) geschraubt","kg","kg",3.3]
[null,"b) saldate","b) geschweißt","kg","kg",3]
[null,"c) tiranti","c) Unterzüge","%","%",20.47]
[null,"d) strutture di singoli elementi costruttivi","d) Tragkonstruktion von einzelnen Bauteilen","%","%",15.35]
["03.02","CHIUSINI E GRIGLIATI","SCHACHTABDECKUNGEN UND GITTERROSTE"]
["03.02.01","Chiusini","Schachtabdeckungen"]
["03.02.01.01","Chiusino in lamiera","Schachtabdeckung aus Stahlblech:"]
[null,"a) dimensioni 400x400 mm, spessore 5 mm","a) Abmessungen 400x400 mm, Dicke 5 mm","cad","St",88.32]
[null,"b) dimensioni 500x500 mm, spessore 5 mm","b) Abmessungen 500x500 mm, Dicke 5 mm","cad","St",110.4]
["03.02.01.02","Chiusino in lamiera riempito con malta:","Schachtabdeckung aus Stahlblech für Füllung mit Estrich:"]
[null,"a) dimensioni 400x400 mm, H=50 mm","a) Abmessungen 400x400, H = 50 mm","cad","St",73.680000000000007]
[null,"b) dimensioni 500x500 mm, H=50 mm","b) Abmessungen 500x500, H = 50 mm","cad","St",77.27]
["03.02.02","Grigliati","Gitterroste"]
["03.02.02.01","Griglia a maglia quadrata:","Gitterrost mit Quadratmaschen:"]
[null,"a)  33x33 mm( 21,34Kg/m²)","a) 33x33mm (21,34 kg/m²)","m²","m²",132.84]
[null,"b) 33x33mm ( 29,69Kg/m²)","b) 33x33mm (29,69 kg/m²)","m²","m²",159.86000000000001]
[null,"c)  33x33 mm ( 24,64 Kg/m²)","c) 33x33mm (24,64 kg/m²)","m²","m²",149.88]
[null,"d) 33x33 mm ( 34,27 Kg/m²)","d) 33x33mm (34,27 kg/m²)","m²","m²",171.69]
["03.02.02.02","Griglia a maglia rettangolare:","Gitterrost mit Rechteckmaschen:"]
[null,"a) 33x11mm ( 30,71 Kg/m²)","a) 33x11mm (30,71 kg/m²)","m²","m²",178.89]
[null,"b) 33x11 mm ( 34,04 Kg/m²)","b) 33x11mm (34,04 kg/m²)","m²","m²",190.54]
[null,"c) 33x11mm ( 47,88 Kg/m²)","c) 33x11mm (47,88 kg/m²)","m²","m²",235.64]
[null,"d) 15x76 mm ( 85,40 Kg/m²)","d) 15x76mm (85,40 kg/m²)","m²","m²",378.68]
["03.02.02.03","Griglia copertura canaletti:","Gitterrost als Rinnenabdeckung:"]
[null,"a) 50 Kg/m²","a) 50 kg/m²","m²","m²",219.65]
["03.03","CORRIMANI, PARAPETTI, INFERRIATE, RECINZIONI","HANDLÄUFE, GELÄNDER, GITTER UND EINFRIEDUNGEN"]
["03.03.01","Corrimani","Handläufe"]
["03.03.01.01","Corrimano acciaio:","Handlauf aus Stahl:"]
[null,"a) scala rettilinea","a) für Treppen mit geradem Lauf","m","m",50.98]
[null,"b) scala  curvilinea","b) für gewendelte Treppe","m","m",73.47]
["03.03.01.02","Sovrapprezzo curve","Aufpreis für Krümmlinge","cad","St",27.95]
["03.03.01.03","Corrimano acciaio inossidabile:","Handlauf aus rostfreiem Stahl:"]
[null,"a) scala rettilinea","a) für Treppen mit geradem Lauf","m","m",122.81]
[null,"b) scala  curvilinea","b) für gewendelte Treppe","m","m",196.49]
["03.03.02","Parapetti","Geländer"]
["03.03.02.01","Ringhiera:","Geländer:"]
[null,"a) scala rettilinea","a) für Treppen mit geradem Lauf"," m","m",171.93]
[null,"b) scala  curvilinea","b) für gewendelte Treppe"," m","m",245.62]
[null,"c) balconi e logge","c) für Balkone und Loggien"," m","m",123.37]
["03.03.02.02","Sovrapprezzo curve, piani o ascendenti","Aufpreis für Krümmlinge, waagerecht oder steigend","cad","St",77]
["03.03.03","Inferriate","Gitter"]
["03.03.03.01","Inferriata finestra:","Gitter vor Fensteranlage:"]
[null,"a) acciaio piatto","a) aus Flachstahl","kg","kg",12.28]
[null,"b) acciaio tondo","b) aus Rundstahl","kg","kg",12.28]
["03.03.04","Recinzioni","Einfriedungen"]
["03.03.04.01","Grigliato:","Gitter:"]
[null,"a) 62x132mm (19 Kg/m²)","a) 62x132mm (19 kg/m²)","m²","m²",76.760000000000005]
[null,"b) 62x63 mm (21 Kg/m²)","b) 62x63mm (21 kg/m²)","m²","m²",97.22]
["03.03.04.02","Rete a maglia plastificata:","Maschengitter kunstoffbeschichtet:"]
[null,"a) maglia 45x45 mm (1,08 Kg/m²)","a) Maschenweite 45x45 mm (1,08 Kg/m²)","m²","m²",53.64]
["03.04","SCALE","TREPPEN"]
["03.04.01","Scale rettilinee","Einläufige gerade Treppen"]
["03.04.01.01","Scala rettilinea:","Einläufige gerade Treppe:"]
[null,"a) scala (17 gradini)","a) Treppe (17 Stufen)","cad","St",5434.25]
[null,"b) per ogni gradino in più","b) für jede weitere Stufe","cad","St",269.14999999999998]
["03.04.02","Scale con gradini a ventaglio","Gewendelte Treppen"]
["03.04.02.01","Scala a ventaglio:","Zwischengewendelt:"]
[null,"a) scala (17 gradini)","a) Treppe (17 Stufen)","cad","St",6902.83]
[null,"b) per ogni gradino in più","b) für jede weitere Stufe","cad","St",327.49]
["03.04.03","Scale a chiocciola","Wendeltreppen"]
["03.04.03.01","Scala a chiocciola per interni:","Gewendelt für Innen:"]
[null,"a) scala (15 gradini)","a) Treppe (15 Stufen)","cad","St",6339.91]
[null,"b) per ogni gradino in più","b) für jede weitere Stufe","cad","St",322.37]
["03.04.03.02","Scala a chiocciola esterna (produzione industriale):","Gewendelt, für Außen (Industrieprodukt):"]
[null,"a) ø 140cm","a) ø 140 cm","cad","St",2252.5]
[null,"b) ø 160cm","b) ø 160 cm","cad","St",2488.77]
[null,"c) ø 180cm","c) ø 180 cm","cad","St",2891.04]
["03.04.03.03","Scala a chiocciola interna (produzione industriale):","Gewendelt, für Innen (Industrieprodukt):"]
[null,"a) ø 140cm","a) ø 140 cm","cad","St",3538.79]
[null,"b) ø 160cm","b) ø 160 cm","cad","St",3796.02]
[null,"c) ø 180cm","c) ø 180 cm","cad","St",4185.5600000000004]
["03.04.04","Scale retrattili ed alla marinara","Einschubtreppe und Steigeisen"]
["03.04.04.01","Scala retrattile","Einschubtreppe","cad","St",665.21]
["03.04.04.02","Scala alla marinara","Steigeisen","cad","St",460.53]
["03.05","FINESTRE E FACCIATE CONTINUE","FENSTER"]
["03.05.01","Finestre in acciaio","Fenster aus Stahl"]
["03.05.01.01"," Finestra singola con vetro singolo, ad anta unica movibile, forma rettangolare. Telaio in profilato d'acciaio. nr. di ante: 1 o 2","Fenster als Einfachfenster für Einfachverglasung, einteilig, beweglich; Fensterform rechteckig,: Rahmen aus Stahlprofilen: Anzahl der Drehflügel: 1 oder 2","m²","m²",199.53]
["03.05.02","Finestre in alluminio","Fenster aus Aluminium"]
["03.05.02.01","Finestra, con telai alluminio taglio termico,  Uf,BW = 2,2 w(m²K, gruppo 1 (DIN 4108-4), compreso vetrocamera","Fenster mit Rahmen aus Aluminiumprofilen mit Unterbrechung der Wärmebrücke, Uf,BW = 2,2 W/(m² K), Gruppe 1 (DIN 4108-4), inkl. Isolierglas","m²","m²",527.78]
["03.05.03","Facciate continue in alluminio","Aluminium Fassaden"]
["03.05.03.01","Facciata completa con reticolo strutturale","Vollständige Fassade mit Traggerippe","m²","m²",193.77]
["03.05.03.02","Sovrapprezzo finestra A/R","Aufpreis für Dreh-Kippflügel","cad","St",306.81]
["03.06","PORTE","TÜREN"]
["03.06.01","Porte in acciaio","Türen aus Stahl"]
["03.06.01.01","Porta in lamiera d'acciaio:","Tür aus Stahlblech:"]
[null,"a) luce porta 800x2000 mm","a) Lichte Öffnung: 800x2000 mm","cad","St",210.26]
[null,"b) luce porta 900x2000 mm","b) Lichte Öffnung: 900x2000 mm","cad","St",222.06]
["03.06.01.02","Porta intelaiata vetrata:","Rahmentür mit Verglasung:"]
[null,"a) profilati d'acciaio","a) Rahmenprofile aus Stahl","m²","m²",289.64]
[null,"b) profilati ferro-porta","b) Rahmen aus Stahlprofil für Türen","m²","m²",343.2]
[null,"c) profilati d'acciaio con guarnizione","c) Rahmenprofile aus Stahl mit Falzabdichtung","m²","m²",379.88]
[null,"d) profilati d'acciaio zincato con guarnizione","d) Rahmenprofile aus feuerverzinktem Stahl mit Falzabdichtung","m²","m²",419.97]
["03.06.02","Porte in alluminio","Türen aus Aluminium"]
["03.06.02.01","Porta vano scale intelaiata vetrata, con telai in alluminio taglio termico, U = 2,0 W/m²K, gruppo 1 (DIN 4108-4), compreso vetrocamera","Rahmentür für Treppenhaus, mit Rahmen aus Aluminiumprofilen mit Unterbrechung der Wärmebrücke, U ≤ 2,0 W/m²K, Gruppe 1 (DIN 4108-4), inkl. Isolierglas","m²","m²",813.04]
["03.06.02.02","Sovrapprezzo traversa","Aufpreis für durchlaufenden Riegel","cad","St",91.24]
["03.06.03","Porte tagliafuoco","Brandschutztüren"]
["03.06.03.01","Porta tagliafuoco in acciaio, luce netta di passaggio 90x210mm:","Brandschutztür aus Stahl, Lichte Öffnung: 900x2100mm:"]
[null,"a) REI 60","a) REI 60","cad","St",489.17]
[null,"b) REI 90","b) REI 90","cad","St",530.67999999999995]
[null,"c) REI 120","c) REI 120","cad","St",639.36]
["03.06.03.02","Porta tagliafuoco in acciaio, luce netta di passaggio 120x210mm, a 2 ante (90+30), con regolatore di sequenza di chiusura:","Brandschutztür aus Stahl, Lichte Öffnung: 1200x2100mm, zweiflügelig (90+30), mit Schließfolgeregler"]
[null,"a) REI 60","a) REI 60","cad","St",586.79]
[null,"b) REI 90","b) REI 90","cad","St",660.46]
[null,"c) REI 120","c) REI 120","cad","St",790.61]
["03.06.03.03","Porta tagliafuoco scorrevole in acciaio 1-pannello:","Brandschutztür aus Stahl als Schiebetür einflügelig"]
[null,"a) REI 60","a) REI 60","m²","m²",407.79]
[null,"b) REI 90","b) REI 90","m²","m²",480.62]
[null,"c) REI 120","c) REI 120","m²","m²",498.83]
["03.06.03.04","Porta tagliafuoco scorrevole in acciaio 2-pannelli:","Brandschutztür aus Stahl als Schiebetür zweiflügelig"]
[null,"a) REI 60","a) REI 60","m²","m²",477.22]
[null,"b) REI 90","b) REI 90","m²","m²",560.59]
[null,"c) REI 120","c) REI 120","m²","m²",581.41999999999996]
["03.06.03.05","Sovrapprezzo per elettromagnete e chiudiporta automatico","Aufpreis für elektromagnetischen Haftmagnet und automatischen Türschliesser","cad","St",229.41]
["03.06.03.06","Sovrapprezzo per centralina antincendio con rilevatore fumo e calore","Aufpreis für Brandschutz-Steuergerät mit Rauch- und Brandmelder","cad","St",565.34]
["03.07","PORTONI E CANCELLI","TORE UND GITTER"]
["03.07.01","Portoni in acciaio","Tore aus Stahl"]
["03.07.01.01","Portone basculante","Schwingtor","m²","m²",154.08000000000001]
["03.07.01.02","Sovrapprezzo per rivestimento in legno di larice","Aufpreis für Holzverkleidung (Lärche)","m²","m²",15.35]
["03.07.01.03","Portone sezionale","Sektionaltor","m²","m²",301.89999999999998]
["03.07.02","Cancelli","Gitter"]
["03.07.02.01","Cancello pedonale","Eingangsgitter","m²","m²",276.32]
["03.07.02.02","Cancello carraio","Einfahrtstor","m²","m²",255.85]
["03.08","CASELLARI POSTALI ED ARMADIETTI","BRIEFKÄSTEN UND SCHRÄNKE"]
["03.08.01","Casellari postali","Briefkästen"]
["03.08.01.01","Casellario ad incasso (26x36x10)","Unterputzbriefkasten (26x36x10)","cad","St",51.17]
["03.08.01.02","Casellario esterno (26x36x10)","Aufputzbriefkasten (26x36x10)","cad","St",61.4]
["03.09","FERRAMENTA PARTICOLARE","SONDERBESCHLÄGE"]
["03.09.01","Chiudiporta","Türschließer"]
["03.09.01.01","Chiudiporta aereo con meccanismo ad ingranaggio:","Obentürschließer mit Zahnantrieb:"]
[null,"a) battente 1100 mm","a) Flügelbreite 1100 mm","cad","St",173.78]
[null,"b) battente 1400 mm","b) Flügelbreite 1400 mm","cad","St",246.73]
["03.09.01.02","Chiudiporta aereo a slitta:","Obentürschließer mit Gleitschiene:"]
[null,"a) due battenti 1100 mm","a) Flügelbreite 1100 mm","cad","St",215.79]
[null,"b) due battenti 1400 mm","b) Flügelbreite 1400 mm","cad","St",311.08999999999997]
["03.09.01.03","Chiudiporta aereo con regolatore sequenza di chiusura:","Obenstürchließer mit Schließfolgeregelung"]
[null,"a) due battenti 1100 mm","a) zweiflügelig 1100 mm","cad","St",432.31]
[null,"b) due battenti 1400 mm","b) zweiflügelig 1400 mm","cad","St",504.19]
["03.09.01.04","Chiudiporta a pavimento:","Bodentürschließer:"]
[null,"a) battente 1400 mm, peso fino a 250Kg","a) Flügelbreite 1400 mm, Gewicht bis zu 250 Kg","cad","St",482.74]
["03.09.02","Maniglioni antipanico","Panikstangenbeschlag"]
["03.09.02.01","Maniglione antipanico:","Panik-Stangenbeschlag:"]
[null,"a) 1 battente - 1 scrocco","a) einflügelig mit Einfachverriegelung","cad","St",291.05]
[null,"b) 1 battente - 1 scrocco con serratura","b) einflügelig mit Einfachverriegelung und Schloß","cad","St",357.17]
[null,"c) 1 battente - 3 scrocchi con serratura","c) einflügelig mit Dreifachverriegelung und Schloß","cad","St",466.67]
[null,"d) battente semifisso","d) für Standflügel von zweiflügeligen Türen","cad","St",287.49]
["03.09.02.02","Maniglione antipanico \"Push-bar\":","Panik-Stangenbeschlag vom Typ \"Push-bar\":"]
[null,"a) 1 battente - 1 scrocco","a) einflügelig mit Einfachverriegelung","cad","St",295.76]
[null,"b) 1 battente - 1 scrocco con serratura","b) einflügelig mit Einfachverriegelung und Schloß","cad","St",415.5]
[null,"c) 1 battente - 3 scrocchi con serratura","c) einflügelig mit Dreifachverriegelung und Schloß","cad","St",508.12]
[null,"d) battente semifisso","d) für Standflügel von zweiflügeligen Türen","cad","St",291.67]
["03.10","AUTOMATISMI DI AZIONAMENTO","AUTOMATISCHE TORANTRIEB"]
["03.10.01","Automatismi di azionamento","Automatische Torantrieb"]
["03.10.01.01","a funzionamento elettromeccanico","elektromechanischer Antrieb","cad","St",2810.91]
["04","PITTORE ","MALERARBEITEN"]
["04.01","LAVORAZIONI SU SUPPORTI IN MURATURA E CALCESTRUZZO","BESCHICHTUNGEN AUF MINERALISCHEN UNTERGRÜNDEN"]
["04.01.04","Pitturazione di supporti in agglomerato edile per interni","Beschichtungen auf mineralischen Untergründen für innen"]
["04.01.01.01","Pittura a tempera su supporti in muratura e calcestruzzo per interni","Anstrich mit Tempera auf Mauern und Betonuntergründen für Innen","m²","m²",2.91]
["04.01.01.02","Idropittura traspirante a base di resine viniliche","Anstrich mit Kunststoffdispersionsfarbe, diffusionsoffen, auf Vinyl-Polymerisat-Basis","m²","m²",4.6100000000000003]
["04.01.01.03","Pittura a smalto opaco all'acqua","Anstrich mit wasserverdünnbarer Beschichtungsstoff, matt","m²","m²",10.82]
["04.01.02","Pitturazione di supporti in agglomerato edile per esterni","Beschichtungen auf mineralischen Untergründen für außen"]
["04.01.02.01","Pittura ai silicati/silossani","Beschichtung mit Silikatfarbe oder mit silikonharzgebundener Farbe:"]
[null,"a) tinta chiara","a) hellgetönt","m²","m²",10.210000000000001]
[null,"b) tinta media","b) mittelgetönt","m²","m²",11.22]
[null,"c) tinta intensa","c) sattgetönt","m²","m²",13.12]
[null,"d) tinta profonda","d) Vollton","m²","m²",15.01]
["04.01.02.02","Idropittura a base di resine sintetiche a base di polimerizzato vinilico","Kunsstoffdispersion auf Vinyl-Polymerisat-Basis","m²","m²",7.56]
["04.02","LAVORAZIONI SU SUPPORTI IN LEGNO E SUOI DERIVATI","BESCHICHTUNGEN AUF HOLZ UND HOLZWERKSTOFFEN"]
["04.02.01","Pitturazione di supporti in legno e suoi derivati per interni","Beschichtung auf Holz und Holzwerkstoffen für innen"]
["04.02.01.01","Pitturazione di supporti in legno e suoi derivati con vernice glassante in dispersione (all'acqua)","Lasierende Beschichtung auf Holz und Holzwerkstoffen für Innen (wasserverdünnbar)","m²","m²",10.01]
["04.02.01.02","Pitturazione di supporti in legno e suoi derivati con vernice alchidica incolore per interni (a solvente)","Beschichtung auf Holz oder Holzstoffen mit farblosem Alkydharzlack für Innen (lösemittelhaltiger Beschichtungsstoff)","m²","m²",9.81]
["04.02.02","Pitturazione di supporti in legno e suoi derivati per esterni","Beschichtungen auf Holz und Holzwerkstoffen für außen"]
["04.02.02.01","Pitturazione di supporti in legno e suoi derivati con vernice glassante incolore  per esterni (a solvente)","Beschichtung auf Holz mit farbloser Lacklasurfarbe für Außen (lösemittelhaltiger Beschichtungsstoff)","m²","m²",10.01]
["04.03","LAVORAZIONI SU SUPPORTI IN METALLO","BESCHICHTUNGEN AUF METALLFLÄCHEN"]
["04.03.01","Pitturazione di supporti in acciaio per interni","Beschichtungen auf Metall für innen"]
["04.03.01.01","Pitturazione di supporti in acciaio per interni con smalto coprente:","Lackfarbe-Deckbeschichtung auf Metalluntergründen für Innen"]
[null,"a) sintetico alchilico per interni","a) Alkydharzlackfarbe für innen","m²","m²",17.07]
[null,"b) sintetico polimerizzato per interni","b) Polymerisatharz-Dickschichtsystem für innen","m²","m²",13.89]
[null,"c) clorocaucciù per interni","c) Chlorkautschuk-Lackfarbe für innen","m²","m²",18.170000000000002]
["04.03.02","Pitturazione di supporti in acciaio per esterni","Beschichtung auf Metall für außen"]
["04.03.02.01","Smalto coprente:","Lackfarbe - Deckbeschichtung:"]
[null,"a) sintetico alchilico per esterni","a) Alkydharzlackfarbe für außen","m²","m²",19.16]
[null,"b) clorocaucciù per esterni","b) Chlorkautschuk-Lackfarbe für außen","m²","m²",21.3]
["04.04","PITTURAZIONI PARTICOLARI","Besondere Beschichtungen"]
["04.04.01","Segnatura posti macchina","Parkplatzmarkierung","m","m",0.59]
["04.04.02","Freccia direzionale","Richtungspfeil","cad","St",7.78]
["04.04.03","Numerazione posti macchina","Nummerierung von Autoabstellplätzen","cad","St",8.6999999999999993]
["05","MASSICCIATE, MASSETTI, PAVIMENTAZIONI E RIVESTIMENTI PER INTERNI","SCHÜTTUNGEN, ESTRICHE, BODENBELÄGE UND BEKLEIDUNGEN"]
["05.01","MASSICCIATE","SCHÜTTUNGEN"]
["05.01.01","Spessore 25 cm (nr. 300)","Dicke 25 cm (Nr. 300)","m²","m²",6.52]
["05.01.02","Sovrapprezzo per ogni 10 cm in più","Aufpreis für alle weiteren 10 cm","m²","m²",7.51]
["05.02","MASSETTI","ESTRICHE"]
["05.02.01","Massetto cementizio per pavimento industriale Rck ³ 30 N/mm2, con armatura metallica (nr. 100)","Zement-Estrich für Industrieboden, Rck ³ 30 N/mm2, mit Metallarmierung (Nr. 100)"]
[null,"a) Per garage, su massicciata, compreso manto d'usura con lavorazione a pastina, sp. 15 cm","a) Für Garagen, auf Schüttung, einschl. Nutzschicht in Pastenschliff-Ausführung, D: 15 cm","m²","m²",24.93]
[null,"b) Per rampe di accesso al garage, su massicciata, compreso manto d'usura con lavorazione a pastina e finitura a spina di pesce, sp. 15 cm","b) Für Garagenzufahrtsrampen, auf Schüttung, einschl. Nutzschicht in Pastenschliff-Ausführung und Endbearbeitung in Fischgrätmuster, D: 15 cm","m²","m²",27.51]
[null,"c) Per garage, su solaio, compreso manto d'usura con lavorazione a pastina, sp. 12 cm","c) Für Garage, auf Decke, einschl. Nutzschicht in Pastenschliff-Ausführung, D: 12 cm","m²","m²",20.21]
[null,"d) Per rampe di accesso al garage, su solaio, compreso manto d'usura con lavorazione a pastina e finitura a spina di pesce, sp. 12 cm","d) Für Garagenzufahrtsrampen, auf Decke, einschl. Nutzschicht in Pastenschliff-Ausführung und Endbearbeitung in Fischgrätmuster, D: 12 cm","m²","m²",23.58]
[null,"e) Per pavimentazioni esterne, sp. 15 cm","e) Für Außenbodenbeläge, D: 15 cm","m²","m²",24.93]
[null,"f) Sovrapprezzo per ogni cm di maggior spessore","f) Mehrpreis für jeden cm Mehrdicke","m²","m²",1.67]
["05.02.02","Massetto alleggerito in calcestruzzo cellulare densità 400-500 kg/m3 (sp. 7 cm) (nr. 310)","Erleichterter Blähbeton-Estrich, Dichte: 400-500 kg/m3 (D: 7 cm) (Nr. 310)","m²","m²",11.41]
[null,"a) Sovrapprezzo per ogni cm di maggior spessore","a) Mehrpreis für jeden cm Mehrdicke","m²","m²",1.18]
["05.02.03","Massetto cementizio per formazione pendenze e/o livellamento Rck ³ 8 N/mm2 (nr. 312)","Zement-Estrich zur Herstellung von Gefällen und/oder Ausgleichsschicht Rck ³ 8 N/mm2 (Nr. 312)"]
[null,"a) su massicciate, sp. 10 cm ","a) Auf Schüttung, D: 10 cm ","m²","m²",13.13]
[null,"b) su solaio, sp. 4 cm","b) Auf Decke, D: 4 cm","m²","m²",11.01]
[null,"c) in intercapedine, sp. 15 cm","c) In Zwischenräumen, D: 15 cm","m²","m²",18.420000000000002]
[null,"d) Sovrapprezzo per ogni cm di maggior spessore","d) Mehrpreis für jeden cm Mehrdicke","m²","m²",1.18]
["05.02.04","Massetto cementizio per posa di pavimenti (anche in pendenza) e/o per protezione di impermeabilizzazione Rck ³ 20 N/mm2, con armatura metallica (nr. 314)","Zement-Estrich zum Verlegen von Fußböden (auch in Gefälle) und/oder Schutz von Abdichtung, Rck ³ 20 N/mm2, mit Metallarmierung (Nr. 314)"]
[null,"a) sp. cm 6","a) D: cm 6","m²","m²",14.53]
[null,"b) compreso manto d'usura con lavorazione a spolvero, sp. cm 6","b) Einschl. Nutzschicht in Pulverschliff-Ausführung, D: cm 6","m²","m²",20.22]
[null,"c) sp. cm 8","c) D: cm 8","m²","m²",15.8]
[null,"d) compreso manto d'usura con lavorazione a spolvero, sp. cm. 8","d) Einschl. Nutzschicht in Pulverschliff-Ausführung, D: cm 8","m²","m²",21.49]
[null,"e) per balcone, posa in pendenza, sp. cm. 12","e) Für Balkone, Verlegung im Gefälle, D: cm. 12","m²","m²",22.12]
[null,"f) Sovrapprezzo per ogni cm di maggior spessore","f) Mehrpreis für jeden cm Mehrdicke","m²","m²",1.65]
["05.02.05","Massetto cementizio galleggiante Rck ³ 25 N/mm2 (sp. 6 cm) (nr. 315)","Schwimmender Zement-Estrich, Rck ³ 25 N/mm2 (D: 6 cm) (Nr. 315)","m²","m²",16.37]
[null,"a) Sovrapprezzo per ogni cm di maggior spessore","a) Mehrpreis für jeden cm Mehrdicke","m²","m²",1.18]
["05.03","PAVIMENTI IN CERAMICA","KERAMIKFUSSBÖDEN"]
["05.03.01","Pavimento con piastrelle in ceramica porcellanata (20x20)  (nr. 110)","Keramikfußboden mit emaillierte Keramikfliesen (20x20) (Nr. 110)","m²","m²",42.84]
["05.03.02","Pavimento con piastrelle in ceramica porcellanata (30x30)  (nr. 110)","Keramikfußboden mit emaillierte Keramikfliesen (30x30) (Nr. 110)","m²","m²",43.71]
["05.03.03","Zoccolino battiscopa (H =10 cm) (nr. 120)","Sockelleiste (H =10 cm) (Nr. 120)","m","m",15.8]
["05.04","RIVESTIMENTI IN CERAMICA","KERAMIKVERKLEIDUNGEN"]
["05.04.01","Piastrelle in ceramica smaltata (20x20) (nr. 125)","glasierte Keramikfliesen (20x20) (Nr. 125)","m²","m²",38.770000000000003]
["05.05","PAVIMENTI IN PIETRA NATURALE","FUSSBODENBELÄGE AUS NATURSTEIN"]
["05.05.01","Pavimento in marmo di pianerottoli e di androni di accesso vani scale (selezionare la varietà):  (nr. 113)","Fußboden aus Marmor für Treppenpodeste und für Eingangsflure Treppenhäuser (Art auswählen): (Nr. 113)"]
[null,"a) Bianco di Carrara tipo C, Botticino tipo semiclassico,Trani bronzetto, Perlato Royal, Rosso di Verona, Breccia sarda venata, Bardiglio, Travertino romano","a) Bianco di Carrara tipo C, Botticino tipo semiclassico,Trani bronzetto, Perlato Royal, Rosso di Verona, Breccia sarda venata, Bardiglio, Travertino romano","m²","m²",90.64]
[null,"b) Verde alpi, Verde serpentino","b) Verde alpi, Verde serpentino","m²","m²",107.72]
["05.05.02","Pavimento in granito di pianerottoli e di androni di accesso vani scale (selezionare la varietà):  (nr. 113)","Fußboden aus Granit für Treppenpodeste und für Eingangsflure, Treppenhäuser (Art auswählen):  (Nr. 113)"]
[null,"a) Rosa beta, Rosa limbara, Bianco sardo, Serizzo, Tonalite, Val di Genova","a) Rosa beta, Rosa limbara, Bianco sardo, Serizzo, Tonalite, Val di Genova","m²","m²",92.13]
[null,"b) Baltic brown, Rosso balmoral","b) Baltic brown, Rosso balmoral","m²","m²",107.82]
["05.05.03","Pavimento per porticati, in lastre di porfido a piano di cava","Fußboden aus Porphyrplatten für Laubengänge, mit bruchrauher Oberfläche","m²","m²",163.81]
["05.06","RIVESTIMENTI IN PIETRA NATURALE","VERKLEIDUNGEN IN NATURSTEIN"]
["05.06.01","Pedata in marmo di gradino interno (selezionare la varietà):","Trittstufe aus Marmor für Stufen im Innenbereich (Art auswählen):"]
[null,"a) Bianco di Carrara tipo C, Botticino tipo semiclassico,Trani bronzetto, Perlato Royal, Rosso di Verona, Breccia sarda venata, Bardiglio, Travertino romano","a) Bianco di Carrara tipo C, Botticino tipo semiclassico,Trani bronzetto, Perlato Royal, Rosso di Verona, Breccia sarda venata, Bardiglio, Travertino romano","m","m",96.72]
[null,"b) Verde alpi, Verde serpentino","b) Verde alpi, Verde serpentino","m","m",114.21]
["05.06.02","Pedata in granito di gradino interno (selezionare la varietà):","Trittstufe aus Granit für Stufen im Innenbereich (Art auswählen):"]
[null,"a) Rosa beta, Rosa limbara, Bianco sardo, Serizzo, Tonalite, Val di Genova","a) Rosa beta, Rosa limbara, Bianco sardo, Serizzo, Tonalite, Val di Genova","m","m",92.15]
[null,"b) Baltic brown, Rosso balmoral","b) Baltic brown, Rosso balmoral","m","m",93.22]
["05.06.03","Alzata in marmo per gradino interno (selezionare la varietà):","Setzstufe aus Marmor für Stufen im Innenbereich (Art auswählen):"]
[null,"a) Bianco di Carrara tipo C, Botticino tipo semiclassico,Trani bronzetto, Perlato Royal, Rosso di Verona, Breccia sarda venata, Bardiglio, Travertino romano","a) Bianco di Carrara tipo C, Botticino tipo semiclassico,Trani bronzetto, Perlato Royal, Rosso di Verona, Breccia sarda venata, Bardiglio, Travertino romano","m","m",38.43]
[null,"b) Verde alpi, Verde serpentino","b) Verde alpi, Verde serpentino","m","m",46.11]
["05.06.04","Alzata in granito per gradino interno (selezionare la varietà):","Setzstufe aus Granit für Stufen im Innenbereich (Art auswählen):"]
[null,"a) Rosa beta, Rosa limbara, Bianco sardo, Serizzo, Tonalite, Val di Genova","a) Rosa beta, Rosa limbara, Bianco sardo, Serizzo, Tonalite, Val di Genova","m","m",43.55]
[null,"b) Baltic brown, Rosso balmoral","b) Baltic brown, Rosso balmoral","m","m",51.23]
["05.06.05","Zoccolino battiscopa in marmo di forma rettangolare per scale e pianerottoli interni (selezionare la varietà):","Sockelleiste aus Marmor in rechteckiger Form für Treppen und Treppenpodeste im Innenbereich (Art auswählen):"]
[null,"a) Bianco di Carrara tipo C, Botticino tipo semiclassico,Trani bronzetto, Perlato Royal, Rosso di Verona, Breccia sarda venata, Bardiglio, Travertino romano","a) Bianco di Carrara tipo C, Botticino tipo semiclassico,Trani bronzetto, Perlato Royal, Rosso di Verona, Breccia sarda venata, Bardiglio, Travertino romano","m","m",12.87]
[null,"b) Verde alpi, Verde serpentino","b) Verde alpi, Verde serpentino","m","m",16.23]
["05.06.06","Zoccolino battiscopa in granito di forma rettangolare per scale e pianerottoli interni (selezionare la varietà):","Sockelleiste aus Granit in rechteckiger Form für Treppen und Treppenpodeste im Innenbereich (Art auswählen):"]
[null,"a) Rosa beta, Rosa limbara, Bianco sardo, Serizzo, Tonalite, Val di Genova","a) Rosa beta, Rosa limbara, Bianco sardo, Serizzo, Tonalite, Val di Genova","m","m",13.47]
[null,"b) Baltic brown, Rosso balmoral","b) Baltic brown, Rosso balmoral","m","m",14.66]
["05.06.07","Contorni di portoncini in marmo con spalle e cappello in pezzi unici, sporgenti da filo muro finito come da dettaglio esecutivo (selezionare la varietà): (nr. 136)","Türlaibenverkleidung aus Marmor mit Hüften- und Sturzverkleidung aus durchgehenden Platten, aus der Putzebene vorstehend, ausgeführt wie Ausführungsdetail (Art auswählen): (Nr. 136)"]
[null,"a) Bianco di Carrara tipo C, Botticino tipo semiclassico,Trani bronzetto, Perlato Royal, Rosso di Verona, Breccia sarda venata, Bardiglio, Travertino romano","a) Bianco di Carrara tipo C, Botticino tipo semiclassico,Trani bronzetto, Perlato Royal, Rosso di Verona, Breccia sarda venata, Bardiglio, Travertino romano","m","m",58.79]
[null,"b) Verde alpi, Verde serpentino","b) Verde alpi, Verde serpentino","m","m",62.45]
["05.06.08","Contorni di portoncini in granito con spalle e cappello in pezzi unici, sporgenti da filo muro finito come da dettaglio esecutivo (selezionare la varietà): (nr. 136)","Türlaibenverkleidung aus Granit mit Hüften- und Sturzverkleidung aus durchgehenden Platten, aus der Putzebene vorstehend, ausgeführt wie Ausführungsdetail (auswählen der Art): (Nr. 136)"]
[null,"a) Rosa beta, Rosa limbara, Bianco sardo, Serizzo, Tonalite, Val di Genova","a) Rosa beta, Rosa limbara, Bianco sardo, Serizzo, Tonalite, Val di Genova","m","m",53.67]
[null,"b) Baltic brown, Rosso balmoral","b) Baltic brown, Rosso balmoral","m","m",58.14]
["05.06.09","Soglia in marmo per porta-finestra","Schwelle aus Marmor für Fenstertüren"]
[null,"a) Bianco di Carrara tipo C, Botticino tipo semiclassico,Trani bronzetto, Perlato Royal, Rosso di Verona, Breccia sarda venata, Bardiglio, Travertino romano","a) Bianco di Carrara tipo C, Botticino tipo semiclassico,Trani bronzetto, Perlato Royal, Rosso di Verona, Breccia sarda venata, Bardiglio, Travertino romano","m","m",37.19]
[null,"b) Verde alpi, Verde serpentino","b) Verde alpi, Verde serpentino","m","m",40.369999999999997]
["05.06.10","Soglia in granito per porta-finestra","Schwelle aus Granit für Fenstertüren"]
[null,"a) Rosa beta, Rosa limbara, Bianco sardo, Serizzo, Tonalite, Val di Genova","a) Rosa beta, Rosa limbara, Bianco sardo, Serizzo, Tonalite, Val di Genova","m","m",32.51]
[null,"b) Baltic brown, Rosso balmoral","b) Baltic brown, Rosso balmoral","m","m",35.65]
["05.06.11","Bancali interni in marmo (nr. 130)","Fensterbänke innen aus Marmor (Nr. 130)"]
[null,"a) Bianco di Carrara tipo C, Botticino tipo semiclassico,Trani bronzetto, Perlato Royal, Rosso di Verona, Breccia sarda venata, Bardiglio, Travertino romano","a) Bianco di Carrara tipo C, Botticino tipo semiclassico,Trani bronzetto, Perlato Royal, Rosso di Verona, Breccia sarda venata, Bardiglio, Travertino romano","m","m",54.78]
[null,"b) Verde alpi, Verde serpentino","b) Verde alpi, Verde serpentino","m","m",60.54]
["05.06.12","Bancali interni in granito (nr. 130)","Fensterbänke innen aus Granit (Nr. 130)"]
[null,"a) Rosa beta, Rosa limbara, Bianco sardo, Serizzo, Tonalite, Val di Genova","a) Rosa beta, Rosa limbara, Bianco sardo, Serizzo, Tonalite, Val di Genova","m","m",46.79]
[null,"b) Baltic brown, Rosso balmoral","b) Baltic brown, Rosso balmoral","m","m",51.61]
["05.06.13","Zoccolatura esterna realizzata in lastre di pietra naturale (specificare la varietà) ","Außenwandsockel ausgeführt in Tafeln aus Naturstein (Art auswählen):"]
[null,"a) Marmo","Marmor","m","m",39.56]
[null,"b) Granito","Granit","m","m",42.19]
[null,"c) Porfido","Porphyr","m","m",50.09]
["05.07","PAVIMENTI IN LINOLEUM","FUSSBODEN AUS LINOLEUM"]
["05.08","PAVIMENTI IN GOMMA SINTETICA","FUSSBÖDEN AUS SYNTHETISCHEM GUMMI"]
["05.08.01","Pavimenti in gomma sintetica per pianerottoli di scale e di androni di accesso di vani scale, a tinta unita o variegata, nei colori di serie, superficie liscia, spessore 2 mm:","Fußboden für Treppenpodeste und für Eingangsflure der Treppenräume, einfarbig oder mehrfarbig, in den Serienfarben, glatte Oberfläche, D: 2 mm:"]
[null,"a) in teli","in Bahnen","m²","m²",42.33]
[null,"b) in piastrelle ","in Fliesen ","m²","m²",40.14]
["05.08.02","Pedata ed alzata di gradini interni, in teli a tinta unita o variegata, nei colori di serie, superficie liscia, spessore 2 mm","Trittstufe und Setzstufe für Innenstufen, in Bahnen einfarbig oder mehrfarbig, in den Serienfarben, glatte Oberfläche, D: 2 mm","m","m",31.37]
["05.09","PAVIMENTI IN LEGNO (con verniciatura in opera)","FUSSBÖDEN AUS HOLZ (mit Lackierung vor Ort)"]
["05.09.01","Pavimento in legno di rovere, formato tavoletta, spessore 10 mm (nr. 111)","Fußboden aus Eichenholz, Riemenformat, D: 10 mm (Nr. 111)","m²","m²",77.5]
["05.09.02","Pavimento in legno di rovere, formato mosaico, spessore 8 mm","Fußboden aus Eichenholz, Mosaikformat, D: 8 mm","m²","m²",57.09]
["05.09.03","Zoccolino battiscopa in legno di rovere, sezione rettangolare da  12 x 75 mm (nr. 121)","Sockelleiste aus Eichenholz, Rechteckquerschnitt 12 x 75 mm(Nr. 121)","m","m",12.54]
["07","OPERE DA CARPENTIERE E CONCIATETTO","ZIMMERMANNS- UND DACHDECKERARBEITEN"]
["07.01","STRUTTURE PORTANTI","TRAGSTRUKTUREN"]
["07.01.01","Travi rettilinee per orditura principale in legno lamellare di abete, classe I (BS14) per tetti abitati","Scharfkantige Träger der Haupttragstruktur aus Brettschichtholz aus Fichte, Klasse I (BS14), für bewohnte Dachräume"]
[null,"a) con incollaggio mediante resine resorciniche","a) Verleimungsart mittels Resorcinharzleimen","m³","m³",1027.81]
[null,"b) con incollaggio mediante resine melaminiche","b) Verleimungsart mittels Melaminharzleimen","m³","m³",999.75]
[null,"c) sovrapprezzo per travi curve (R min. > 3 m)","c) Aufpreis für gebogene Träger (R min. > 3 m)","m³","m³",609.41999999999996]
[null,"d) sovrapprezzo per travi curve (0,5 m > R min. < 3 m)","d) Aufpreis für gebogene Träger (0,5 m > R min. < 3 m)","m³","m³",1022.39]
["07.01.02","Travi rettilinee per orditura principale e secondaria in legno bistrato (BILAM) di abete, classe S10, per tetti abitati","Scharfkantige Träger der Haupt- und Nebentragstruktur aus Zweischichtholz (BILAM) aus Fichte, Klasse S10, für bewohnte Dachräume"]
[null,"a) con incollaggio mediante resine resorciniche","a) Verleimungsart mittels Resorcinharzleimen","m³","m³",844.31]
[null,"b) con incollaggio mediante resine melaminiche","b) Verleimungsart mittels Melaminharzleimen","m³","m³",793.14]
["07.01.03","Travi rettilinee per orditura principale e secondaria in legno massiccio di abete, classe S10, per tetti non abitati","Scharfkantige Träger der Haupt- und Nebentragstruktur aus Massivholz aus Fichte, Klasse S10, für unbewohnte Dachräume"]
[null,"a) con travi a spigolo vivo (senza spigoli smussati)","a) Balken mit unbearbeiteten Kanten (ohne gefaste Kanten)","m³","m³",691.71]
[null,"b) con travi a squadratura commerciale (2/3 degli spigoli senza smussi)","b) Balken im handelsmäßigen Zuschnitt (2/3 der Kanten ohne Baumkante)","m³","m³",642.73]
["07.01.04","Elementi di collegamento e di fissaggio in acciaio (piastre, scarpe, forcelle, tiranti)","Anschluss- und Befestigungselemente aus Stahl (Platten, Balkenschuhe, Zugbänder)"]
["07.01.04.01","zincati a caldo","warmverzinkt","Kg","Kg",8.18]
["07.01.04.02","con due mani di vernice antiruggine","zweifacher Korrosionsschutzanstrich","Kg","Kg",7.57]
["07.02","PACCHETTI COPERTURA","DACHAUFBAU"]
["07.02.01","Pacchetto di copertura per tetti abitati (vedi fig. 31) fornito e posto in opera su orditura esistente, costituito (da intradosso ad estradosso) da:\n- Tavolato piallato in perline d'abete semplici, spessore 22 mm, tipo Ai\n- Barriera al vapore in foglio di polietilene 220g/m²\n- Pannelli isolanti standard in fibra fine di legno fibrato, spessore 8+8 cm (r =150Kg/m³) (nr. 272)\n- Pannelli isolanti in fibra fine di legno fibrato, con emulsione di lattice, spessore 22 mm (r = 250 Kg/m³) (nr. 273)\n- Membrana traspirante con struttura a micropori","Dachaufbau bewohnter Dächer (siehe Abbildung 31) Lieferung und Einbau auf bestehendem Aufbau, bestehend aus (von innen nach außen):\n- gehobelte Schalung aus Fichte, Dicke 22 mm, Typ Ai \n- Dampfbremse aus Polyäthylen 220g/m² \n- Wärmedämmung aus Holzweichfaserplatten Standard, Dicke 8+8 cm (150Kg/m³) (Nr. 272) \n- Wärmedämmung aus Holzweichfaserplatten, mit Latexemulsion, Dicke 22 mm ( 250 Kg/m³)  (Nr. 273) \n- atmungsaktive Unterspannbahn mit kleinporiger Struktur","m²","m²",90.06]
["07.02.02","Pacchetto di copertura per tetto non abitato fornito e posto in opera su orditura portante, costituito (da intradosso ad estradosso) da:\n- Tavolato grezzo in abete, classe III, spessore 25 mm\n- Membrana traspirante con struttura a micropori","Dachaufbau nicht bewohnter Dächer geliefert und eingebaut auf die Tragstruktur, bestehend aus (von innen nach außen):\n- Rauhschalung aus Fichte, Klasse III, Dicke 25 mm \n- atmungsaktive Unterspannbahn","m²","m²",17.09]
["07.02.03","Pacchetto di copertura per sporto di gronda, fornito e posto in opera su orditura portante, costituito (da intradosso ad estradosso) da:\n- Tavolato piallato in perline d'abete semplici, spessore 22 mm, tipo Ai\n- Membrana traspirante con struttura a micropori","Dachaufbau am Traufüberstand, geliefert und eingebaut auf die Tragstruktur, bestehend aus (von innen nach aussen):\n- gehobelte Schalung aus Fichte, Dicke 22 mm, Typ Ai \n- atmungsaktive Unterspannbahn","m²","m²",27.04]
["07.02.04","Listelli e controlistelli d'abete, classe II, sezione 40 x 50 mm","Lattung und Konterlattung aus Fichte, Klasse II, Querschnitt 40 x 50 mm","m²","m²",8.39]
["07.03","RIVESTIMENTI ESTERNI ED INTERNI","AUSSEN UND INNENVERKLEIDUNGEN"]
["07.03.01","Mantovane","Ortganggesims","m","m",33.159999999999997]
["07.03.02","Velette","Traufgesims","m","m",25.5]
["07.03.03","Rivestimento esterno con perline orizzontali e relativa sottocostruzione (vedi fig. 32)","Fassadenaußenverkleidung als waagerechte Sichtschalung einschließlich der notwendigen Unterkonstruktion  (siehe Abb. 32)"]
[null,"a) in legno d'abete","a) aus Fichtenholz","m²","m²",26.53]
[null,"b) in legno di pino","b) aus Pinienholz","m²","m²",26.61]
[null,"c) in legno di larice","c) aus Lärchenholz","m²","m²",31.64]
["07.03.04","Rivestimento esterno con perline verticali e relativa sottocostruzione (vedi fig. 33)","Fassadenaußenverkleidung als senkrechte Sichtschalung einschließlich der notwendigen Unterkonstruktion  (siehe Abb. 33)"]
[null,"a) in legno d'abete","a) aus Fichtenholz","m²","m²",28.57]
[null,"b) in legno di pino","b) aus Pinienholz","m²","m²",28.66]
[null,"c) in legno di larice","c) aus Lärchenholz","m²","m²",33.69]
["07.03.05","Rivestimento interno con perline (con sottocostruzione)","Innenverkleidung mit Sichtschalung (mit Unterkonstruktion)"]
[null,"a) Tipo Ai","a) Typ Ai","m²","m²",26.1]
[null,"b) Tipo Bi","b) Typ Bi","m²","m²",26.92]
["07.04","OPERE COMPLEMENTARI","ERGÄNZUNGSARBEITEN"]
["07.04.01","Ringhiera in legno come da dettaglio architettonico","Holzgeländer gemäss Detail der Architektenplanung"]
[null,"a) abete","a) Fichte","m","m",178.5]
[null,"b) larice","b) Lärche","m","m",214.25]
["07.05","MANTI DI COPERTURA","DACHDECKUNGS- UND NEBENARBEITEN"]
["07.05.01","Tegole in laterizio","Dachsteine aus Ton"]
["07.05.01.01","Copertura con tegole marsigliesi in laterizio, antigelive, 1a qualità, fornite e poste in opera su listellatura già predisposta:","Dachdeckung mit Marsigliesi-Dachsteinen aus Ton, frostsicher, 1°-Qualität, geliefert und verlegt auf bauseits vorhandener Lattung"]
[null,"a) Rosso fiammato","a) rot geflammt","m²","m²",15.41]
[null,"b) Tipo antico","b) Typ Antik","m²","m²",17.07]
[null,"c) Tipo antico patinato","c) Typ Antik patiniert","m²","m²",18.34]
["07.05.01.02","Copertura con coppi in laterizio, antigelivi, 1a qualità, forniti e posti in opera su listellatura già predisposta:","Dachdeckung mit Mönch-Nonne-Dachsteinen aus Ton, frostsicher, 1° Qualität, geliefert und verlegt auf bauseits vorhandener Lattung"]
[null,"a) Rosso fiammato","a) rot geflammt","m²","m²",33.69]
[null,"b) Tipo antico","b) Typ Antik","m²","m²",36.33]
[null,"c) Tipo antico patinato","c) Typ Antik patiniert","m²","m²",39.880000000000003]
["07.05.01.03","Copertura di colmi e displuvi con tegole per colmi in laterizio; fornite e posta in opera per la copertura con tegole marsigliesi, alla romana, o coppi, precedentemente descritte:","First- und Grateindeckung mit Dachsteinen aus Ton; geliefert und verlegt für Dächer aus Marsigliesi-, Romana-, oder Mönch-Nonne-Dachsteinen, wie vor beschrieben:"]
[null,"a) con portalistello, listello in legno (30x50) e gancio fermacolmo","a) mit Tragleiste, Holzleiste (30x50) und Firsthalterung","m","m",20.39]
[null,"b) con portalistello, listello in legno (30x50), gancio fermacolmo e sottocolmo con spazzole laterali sezione aerante min. 200cm²/m","b) mit Tragleiste, Holzleiste (30x50), Firsthalterung und Unterbau mit seitlichen Bürsten und Lüftungsfläche min. 200cm²/m","m","m",33.159999999999997]
["07.05.02","Tegole in cemento","Dachsteine aus Beton"]
["07.05.02.01","Copertura con tegole in cemento, fornite e poste in opera su listellatura già predisposta","Dach mit Dachsteinen aus Beton, geliefert und verlegt auf bauseits vorhandener Lattung"]
[null,"a) Doppia Romana, superficie granulata","a) \"Doppia Romana\", rauhe Oberfläche","m²","m²",13.75]
[null,"b) Doppia Romana, superficie liscia","b) “Doppia Romana\", glatte Oberfläche","m²","m²",13.9]
[null,"c) Coppo di Francia, superficie liscia","c) “Coppo di Francia\", glatte Oberfläche","m²","m²",14.38]
[null,"d) Coppo di Grecia, superficie bucciardata","d) “Coppo di Grecia\", gekreppte Oberfläche","m²","m²",15.26]
[null,"e) Tegal, superficie liscia","e) “Tegal\", glatte Oberfläche","m²","m²",15.85]
["07.05.02.02","Copertura di colmi e displuvi con tegole in cemento; fornita e posta in opera per il manto di copertura con tegole in cemento precedentemente descritto:","First- und Grateindeckung mit Dachsteinen aus Beton; geliefert und verlegt mit Dachsteinen aus Beton wie vor beschrieben:"]
[null,"a) con portalistello, listello in legno e gancio fermacolmo","a) mit Tragleiste, Holzleiste und Firsthalterung","m","m",20.39]
[null,"b) con portalistello, listello in legno (30x50), gancio fermacolmo e sottocolmo con spazzole laterali sezione aerante min. 200cm²/m","b) mit Tragleiste, Holzleiste (30x50), Firsthalterung und Unterbau mit seitlichen Bürsten und Lüftungsfläche min. 200cm²/m","m","m",33.159999999999997]
["07.05.03","Elementi accessori metallici","Dachzubehör aus Metall"]
["07.05.03.01","Rete parapasseri","Insektenschutzgitter","m","m",4.2]
["07.05.03.02","Pettine parapasseri","Metallkämme als Schutz vor Vögeln","m","m",3.44]
["07.05.03.03","Grappe paraneve","Haken zur Schneeabrutschsicherung"]
[null,"a) zincate a caldo e preverniciate","a) warmverzinkt und vorgestrichen","cad","St",1.85]
[null,"b) rame","b) Kupfer","cad","St",3.44]
["07.06","ABBAINI E FINESTRE","DACHGAUBEN UND DACHFENSTER"]
["07.06.01","Abbaini","Dachgauben"]
["07.06.01.01","Abbaino standard con superficie netta misurata in falda tra travetti e traversi:","Standarddachgaube in der Dachebene gemessen mit einer Nettofläche zwischen den Sparren und den Wechseln von:"]
[null,"a) fino a 1,5 m²","a) bis 1,5 m²","cad","St",313.16000000000003]
[null,"b) fino a 3 m²","b) bis 3 m²","cad","St",626.32000000000005]
[null,"c) fino a 6 m²","c) bis 6 m²","cad","St",1252.6400000000001]
["07.06.01.02","Sovrapprezzo per copertura a due falde","Aufpreis für Sattelgaube"]
[null,"a) fino a 1,5 m²","a) bis 1,5 m²","cad","St",55.26]
[null,"b) fino a 3 m²","b) bis 3 m²","cad","St",110.53]
[null,"c) fino a 6 m²","c) bis 6 m²","cad","St",221.05]
["07.06.01.03","Sovrapprezzo per copertura curva, R min. 0,5 m","Aufpreis für Bogengaube, R min. 0,5 m"]
[null,"a) fino a 1,5 m²","a) bis 1,5 m²","cad","St",62.43]
[null,"b) fino a 3 m²","b) bis 3 m²","cad","St",124.85]
[null,"c) fino a 6 m²","c) bis 6 m²","cad","St",249.71]
["07.06.02","Finestre per tetti inclinati","Dachfenster für geneigte Dächer"]
["07.06.02.01","Finestra per tetti con apertura a bilico:","Dachfenster mit Schwingflügel:"]
[null,"a) Dimensioni esterne telaio ca. 66x118 cm","a) Außenmaße Fensterrahmen: ca. 66x118 cm","cad","St",486.61]
[null,"b) Dimensioni esterne telaio ca. 78x98 cm","b) Außenmaße Fensterrahmen: ca. 78x98 cm","cad","St",479.49]
[null,"c) Dimensioni esterne telaio ca. 78x140 cm","c) Außenmaße Fensterrahmen: ca. 78x140 cm","cad","St",510.06]
[null,"d) Dimensioni esterne telaio ca. 94x160 cm","d) Außenmaße Fensterrahmen: ca. 94x160 cm","cad","St",612.11]
["07.06.02.02","Finestra per tetti con apertura a compasso:","Dachfenster mit Klappflügel:"]
[null,"a) Dimensioni esterne telaio ca. 66x118 cm","a) Außenmaße Fensterrahmen: ca. 66x118 cm","cad","St",525.36]
[null,"b) Dimensioni esterne telaio ca. 78x98 cm","b) Außenmaße Fensterrahmen: ca. 78x98 cm","cad","St",510.06]
[null,"c) Dimensioni esterne telaio ca. 78x140 cm","c) Außenmaße Fensterrahmen: ca. 78x140 cm","cad","St",561.1]
["08","OPERE DA LATTONIERE","SPRENGLERARBEITEN"]
["08.01","COPERTURE","DACHDECKUNGEN"]
["08.01.01","Lamiera di rame","Kupferblech"]
["08.01.01.01","Copertura in lamiera di rame, per pendenze da 3 a 25°, con aggraffatura doppia, spessore 0,60 mm","Dachdeckung aus Kupferblech, für Neigungen von 3 bis 25°, mit doppeltem Stehfalz, Dicke 0,60 mm"]
[null,"a) nastri da 500 mm","a) Bänder zu 500 mm","m²","m²",71.64]
[null,"b) nastri da 670 mm","b) Bänder zu 670 mm","m²","m²",66.010000000000005]
[null,"c) nastri da 800 mm","c) Bänder zu 800 mm","m²","m²",59.05]
["08.01.01.02","Copertura in lamiera di rame, per pendenze da 25° a 40°, con aggraffatura angolare, spessore 0,60 mm","Dachdeckung aus Kupferblech, für Neigungen von 25° bis 40°, mit Winkelstehfalz, Dicke 0,60 mm"]
[null,"a) nastri da 500 mm","a) Bänder zu 500 mm","m²","m²",83.51]
[null,"b) nastri da 670 mm","b) Bänder zu 670 mm","m²","m²",76.14]
[null,"c) nastri da 800 mm","c) Bänder zu 800 mm","m²","m²",67.95]
["08.01.01.03","Copertura in lamiera di rame, per pendenze > 40°, con aggraffatura angolare, spessore 0,60 mm","Dachdeckung aus Kupferblech, für Neigungen > 40°, mit Winkelstehfalz, Dicke 0,60 mm"]
[null,"a) nastri da 500 mm","a) Bänder zu 500 mm","m²","m²",116.36]
[null,"b) nastri da 670 mm","b) Bänder zu 670 mm","m²","m²",108.99]
[null,"c) nastri da 800 mm","c) Bänder zu 800 mm","m²","m²",94.87]
["08.01.02","Lamiera di acciaio zincato","Verzinktes Blech"]
["08.01.02.01","Copertura in lamiera di acciaio zincato, per pendenze da 3 a 25°, con aggraffatura doppia, spessore 0,60 mm","Abdeckung aus verzinktem Blech, für Neigungen von 3 bis 25°, mit doppeltem Stehfalz mit Doppelstehfalz, Dicke 0,60 mm"]
[null,"a) nastri da 500 mm","a) Bänder zu 500 mm","m²","m²",36.43]
[null,"b) nastri da 670 mm","b) Bänder zu 670 mm","m²","m²",32.130000000000003]
[null,"c) nastri da 800 mm","c) Bänder zu 800 mm","m²","m²",27.02]
["08.01.02.02","Copertura in lamiera di acciaio zincato, per pendenze da 25° a 40°, con aggraffatura angolare, spessore 0,60 mm","Abdeckung aus verzinktem Blech, für Neigungen von 25° bis 40°, mit Winkelstehfalz, Dicke 0,60 mm"]
[null,"a) nastri da 500 mm","a) Bänder zu 500 mm","m²","m²",47.9]
[null,"b) nastri da 670 mm","b) Bänder zu 670 mm","m²","m²",41.75]
[null,"c) nastri da 800 mm","c) Bänder zu 800 mm","m²","m²",35.61]
["08.01.02.03","Copertura in lamiera di acciaio zincato, per pendenze > 40°, con aggraffatura angolare, spessore 0,60 mm","Abdeckung aus verzinktem Blech, für Neigungen > 40°, mit Winkelstehfalz, Dicke 0,60 mm"]
[null,"a) nastri da 500 mm","a) Bänder zu 500 mm","m²","m²",79.209999999999994]
[null,"b) nastri da 670 mm","b) Bänder zu 670 mm","m²","m²",73.17]
[null,"c) nastri da 800 mm","c) Bänder zu 800 mm","m²","m²",61.2]
["08.01.03","Lamiera di uginox","Blech aus Uginox"]
["08.01.03.01","Copertura in lamiera di uginox, per pendenze da 3 a 25°, con aggraffatura doppia, spessore 0,60 mm","Dachdeckung aus Blech aus Uginox, für Neigungen von 3 bis 25°, mit Doppelstehfalz, Dicke 0,60 mm"]
[null,"a) nastri da 500 mm","a) Bänder zu 500 mm","m²","m²",60.07]
[null,"b) nastri da 670 mm","b) Bänder zu 670 mm","m²","m²",55.06]
[null,"c) nastri da 800 mm","c) Bänder zu 800 mm","m²","m²",48.82]
["08.01.03.02","Copertura in lamiera di uginox, per pendenze da 25° a 40°, con aggraffatura angolare, spessore 0,60 mm","Dachdeckung aus Blech aus Uginox, für Neigungen von 25° bis 40°, mit Winkelstehfalz, Dicke 0,60 mm"]
[null,"a) nastri da 500 mm","a) Bänder zu 500 mm","m²","m²",71.540000000000006]
[null,"b) nastri da 670 mm","b) Bänder zu 670 mm","m²","m²",64.680000000000007]
[null,"c) nastri da 800 mm","c) Bänder zu 800 mm","m²","m²",57.31]
["08.01.03.03","Copertura in lamiera di uginox, per pendenze > 40°, con aggraffatura angolare, spessore 0,60 mm","Dachdeckung aus Blech aus Uginox, für Neigungen > 40°, mit Winkelstehfalz, Dicke 0,60 mm"]
[null,"a) nastri da 500 mm","a) Bänder zu 500 mm","m²","m²",91.18]
[null,"b) nastri da 670 mm","b) Bänder zu 670 mm","m²","m²",79.72]
[null,"c) nastri da 800 mm","c) Bänder zu 800 mm","m²","m²",67.44]
["08.02","FACCIATE","FASSADEN"]
["08.02.01","Lamiera di rame","Kupferblech"]
["08.02.01.01","Rivestimento di facciata in lamiera di rame con aggraffatura angolare, spessore 0,60 mm","Fassadenbekleidung aus Kupferblech mit Winkelstehfalz, Dicke 0,60 mm"]
[null,"a) nastri da 500 mm","a) Bänder zu 500 mm","m²","m²",119.43]
[null,"b) nastri da 670 mm","b) Bänder zu 670 mm","m²","m²",113.5]
["08.02.01.02","Rivestimento di facciata in lamiera di rame con aggraffatura a listello, spessore 0,60 mm","Fassadenbekleidung aus Kupferblech mit Leistenfalz, Dicke 0,60 mm"]
[null,"a) nastri da 500 mm","a) Bänder zu 500 mm","m²","m²",133.35]
[null,"b) nastri da 670 mm","b) Bänder zu 670 mm","m²","m²",119.23]
["08.02.02","Lamiera di acciaio zincato","Verzinktes Blech"]
["08.02.02.01","Rivestimento di facciata in lamiera di acciaio zincato con aggraffatura angolare, spessore 0,60 mm","Fassadenbekleidung aus verzinktem Blech mit Winkelstehfalz, Dicke 0,60 mm"]
[null,"a) nastri da 500 mm","a) Bänder zu 500 mm","m²","m²",79.930000000000007]
[null,"b) nastri da 670 mm","b) Bänder zu 670 mm","m²","m²",74.2]
["08.02.02.02","Rivestimento di facciata in lamiera di acciaio zincato con aggraffatura a listello, spessore 0,60 mm","Fassadenbekleidung aus verzinktem Blech mit Leistenfalz, Dicke 0,60 mm"]
[null,"a) nastri da 500 mm","a) Bänder zu 500 mm","m²","m²",93.44]
[null,"b) nastri da 670 mm","b) Bänder zu 670 mm","m²","m²",88.83]
["08.02.03","Lamiera di uginox","Blech aus Uginox"]
["08.02.03.01","Rivestimento di facciata in lamiera di uginox con aggraffatura angolare, spessore 0,60 mm","Fassadenbekleidung aus Blech aus Uginox mit Winkelstehfalz, Dicke 0,60 mm"]
[null,"a) nastri da 500 mm","a) Bänder zu 500 mm","m²","m²",100.6]
[null,"b) nastri da 670 mm","b) Bänder zu 670 mm","m²","m²",95.18]
["08.02.03.02","Rivestimento di facciata in lamiera di uginox con aggraffatura a listello, spessore 0,60 mm","Fassadenbekleidung aus Blech aus Uginox mit Leistenfalz, Dicke 0,60 mm"]
[null,"a) nastri da 500 mm","a) Bänder zu 500 mm","m²","m²",112.88]
[null,"b) nastri da 670 mm","b) Bänder zu 670 mm","m²","m²",100.8]
["08.03","CANALI DI GRONDA","TRAUFRINNEN"]
["08.03.01","Lamiera di rame","Kupferblech"]
["08.03.01.01","Canali di gronda in rame sezione semicircolare","Traufrinne aus Kupfer, Querschnitt halbrund"]
[null,"a) spessore 0,60 mm, sviluppo 280 mm (Ø 127)","a) Dicke 0,60 mm, Abwicklung 280 mm (Ø 127)","m","m",34.590000000000003]
[null,"b) spessore 0,70 mm, sviluppo 333 mm (Ø 153)","b) Dicke 0,70 mm, Abwicklung 333 mm (Ø 153)","m","m",37.25]
[null,"c) spessore 0,70 mm, sviluppo 400 mm (Ø 192)","c) Dicke 0,70 mm, Abwicklung 400 mm (Ø 192)","m","m",42.37]
["08.03.01.02","Canali di gronda in rame sezione quadra","Traufrinne aus Kupfer, Querschnitt rechteckig"]
[null,"a) spessore 0,60 mm, sviluppo 250 mm ","a) Dicke 0,60 mm, Abwicklung 250 mm","m","m",36.130000000000003]
[null,"b) spessore 0,70 mm, sviluppo 333 mm)","b) Dicke 0,70 mm, Abwicklung 333 mm","m","m",41.35]
[null,"c) spessore 0,70 mm, sviluppo 400 mm)","c) Dicke 0,70 mm, Abwicklung 400 mm","m","m",46.87]
["08.03.02","Lamiera di acciaio zincato","Verzinktes Blech"]
["08.03.02.01","Canali di gronda in acciaio zincato sezione semicircolare","Traufrinnen aus verzinktem Blech, Querschnitt halbrund"]
[null,"a) spessore 0,60 mm, sviluppo 280 mm (Ø 127)","a) Dicke 0,60 mm, Abwicklung 280 mm (Ø 127)","m","m",21.39]
[null,"b) spessore 0,60 mm, sviluppo 333 mm (Ø 153)","b) Dicke 0,60 mm, Abwicklung 333 mm (Ø 153)","m","m",23.23]
[null,"c) spessore 0,60 mm, sviluppo 400 mm (Ø 192)","c) Dicke 0,60 mm, Abwicklung 400 mm (Ø 192)","m","m",28.25]
["08.03.02.02","Canali di gronda in acciaio zincato sezione quadra","Traufrinnen aus verzinktem Blech, Querschnitt rechteckig"]
[null,"a) spessore 0,60 mm, sviluppo 250 mm ","a) Dicke 0,60 mm, Abwicklung 280 mm","m","m",24.87]
[null,"b) spessore 0,60 mm, sviluppo 333 mm ","b) Dicke 0,60 mm, Abwicklung 333 mm","m","m",26.81]
[null,"c) spessore 0,60 mm, sviluppo 400 mm ","c) Dicke 0,60 mm, Abwicklung 400 mm","m","m",29.78]
["08.03.03","Lamiera di uginox","Blech aus Uginox"]
["08.03.03.01","Canali di gronda in uginox sezione semicircolare","Traufrinnen aus Uginox, Querschnitt halbrund"]
[null,"a) spessore 0,60 mm, sviluppo 280 mm (Ø 127)","a) Dicke 0,60 mm, Abwicklung 280 mm (Ø 127)","m","m",31.21]
[null,"b) spessore 0,70 mm, sviluppo 333 mm (Ø 153)","b) Dicke 0,70 mm, Abwicklung 333 mm (Ø 153)","m","m",34.39]
[null,"c) spessore 0,70 mm, sviluppo 400 mm (Ø 192)","c) Dicke 0,70 mm, Abwicklung 400 mm (Ø 192)","m","m",39.4]
["08.03.03.02","Canali di gronda in uginox sezione quadra","Traufrinnen aus Uginox, Querschnitt rechteckig"]
[null,"a) spessore 0,60 mm, sviluppo 250 mm ","a) Dicke 0,60 mm, Abwicklung 280 mm","m","m",34.08]
[null,"b) spessore 0,70 mm, sviluppo 333 mm ","b) Dicke 0,70 mm, Abwicklung 333 mm","m","m",37.76]
[null,"c) spessore 0,70 mm, sviluppo 400 mm ","c) Dicke 0,70 mm, Abwicklung 400 mm","m","m",44.11]
["08.04","PLUVIALI","FALLROHRE"]
["08.04.01","Lamiera di rame","Kupferblech"]
["08.04.01.01","Tubo pluviale rotondo in rame","Fallrohr, rund aus Kupfer"]
[null,"a) spessore 0,60 mm, (Ø 80 mm)","a) Dicke 0,60 mm, (Ø 80 mm)","m","m",31.42]
[null,"b) spessore 0,70 mm, (Ø 100 mm)","b) Dicke 0,70 mm, (Ø 100 mm)","m","m",34.799999999999997]
[null,"c) spessore 0,70 mm, (Ø 120 mm)","c) Dicke 0,70 mm, (Ø 120 mm)","m","m",42.57]
["08.04.01.02","Tubo pluviale quadrato in rame","Fallrohr, quadratisch aus Kupfer"]
[null,"a) spessore 0,60 mm, (80 x 80 mm)","a) Dicke 0,60 mm, (80 x  80 mm)","m","m",38.79]
[null,"b) spessore 0,70 mm, (100 x 100 mm)","b) Dicke 0,70 mm, (100 x 100 mm)","m","m",41.96]
[null,"c) spessore 0,70 mm, (120 x 120 mm)","c) Dicke 0,70 mm, (120 x 120 mm)","m","m",52.4]
["08.04.02","Lamiera di acciaio zincato","Verzinktes Blech"]
["08.04.02.01","Tubo pluviale rotondo in acciaio zincato","Fallrohr, rund aus verzinktem Blech"]
[null,"a) spessore 0,60 mm, (Ø 80 mm)","a) Dicke 0,60 mm, (Ø 80 mm)","m","m",21.29]
[null,"b) spessore 0,60 mm, (Ø 100 mm)","b) Dicke 0,60 mm, (Ø 100 mm)","m","m",21.9]
[null,"c) spessore 0,60 mm, (Ø 120 mm)","c) Dicke 0,60 mm, (Ø 120 mm)","m","m",27.32]
["08.04.02.02","Tubo pluviale quadrato in acciaio zincato","Fallrohr, rechteckig aus verzinktem Blech"]
[null,"a) spessore 0,60 mm, (80 x 80 mm)","a) Dicke 0,60 mm, (80 x  80 mm)","m","m",26.71]
[null,"b) spessore 0,60 mm, (100 x 100 mm)","b) Dicke 0,60 mm, (100 x 100 mm)","m","m",27.43]
[null,"c) spessore 0,60 mm, (120 x 120 mm)","c) Dicke 0,60 mm, (120 x 120 mm)","m","m",32.85]
["08.04.03","Lamiera di uginox","Blech aus Uginox"]
["08.04.03.01","Tubo pluviale rotondo in uginox","Fallrohr rund aus Uginox,"]
[null,"a) spessore 0,60 mm, (Ø 80 mm)","a) Dicke 0,60 mm, (Ø 80 mm)","m","m",26.92]
[null,"b) spessore 0,70 mm, (Ø 100 mm)","b) Dicke 0,70 mm, (Ø 100 mm)","m","m",28.96]
[null,"c) spessore 0,70 mm, (Ø 120 mm)","c) Dicke 0,70 mm, (Ø 120 mm)","m","m",35.92]
["08.04.03.02","Tubo pluviale quadrato in uginox","Fallrohr rechteckig aus Uginox"]
[null,"a) spessore 0,60 mm, (80 x 80 mm)","a) Dicke 0,60 mm, (80 x 80mm)","m","m",31.93]
[null,"b) spessore 0,70 mm, (100 x 100 mm)","b) Dicke 0,70 mm, (100 x 100 mm)","m","m",36.229999999999997]
[null,"c) spessore 0,70 mm, (120 x 120 mm)","c) Dicke 0,70 mm, (120 x 120 mm)","m","m",43.19]
["08.05","COPERTINE","ABDECKUNGEN"]
["08.05.01","Lamiera di rame","Kupferblech"]
["08.05.01.01","Copertine in rame di muri e parapetti, sp. 0,60 mm","Kupferabdeckungen für Mauern und Brüstungen, Dicke 0,60 mm"]
[null,"a) sviluppo 500 mm","a) Abwicklung 500 mm","m","m",69.69]
[null,"b) sviluppo 670 mm","b) Abwicklung 670 mm","m","m",79.010000000000005]
["08.05.01.02","Copertine in rame di davanzali, sp. 0,70 mm","Kupferabdeckungen für Fensterbänke, Dicke 0,70 mm"]
[null,"a) sviluppo 333 mm","a) Abwicklung 333 mm","m","m",53.11]
[null,"b) sviluppo 500 mm","b) Abwicklung 500 mm","m","m",67.650000000000006]
["08.05.02","Lamiera di acciaio zincato","Verzinktes Blech"]
["08.05.02.01","Copertine in acciaio zincato di muri e parapetti, sp. 0,60 mm","Abdeckungen aus verzinktem Blech für Mauern und Brüstungen, Dicke 0,60 mm"]
[null,"a) sviluppo 500 mm","a) Abwicklung 500 mm","m","m",44.52]
[null,"b) sviluppo 670 mm","b) Abwicklung 670 mm","m","m",48.92]
["08.05.02.02","Copertine in acciaio zincato di davanzali, sp. 0,60 mm","Abdeckungen aus verzinktem Blech für Fensterbänke, Dicke 0,60 mm"]
[null,"a) sviluppo 330 mm","a) Abwicklung 330 mm","m","m",39.81]
[null,"b) sviluppo 500 mm","b) Abwicklung 500 mm","m","m",48.3]
["08.05.03","Lamiera di uginox","Blech aus Uginox"]
["08.05.03.01","Copertine in uginox di muri e parapetti, sp. 0,60 mm","Abdeckungen aus Uginox für Mauern und Brüstungen, Dicke 0,60 mm"]
[null,"a) sviluppo 500 mm","a) Abwicklung 500 mm","m","m",55.98]
[null,"b) sviluppo 670 mm","b) Abwicklung 670 mm","m","m",63.35]
["08.05.03.02","Copertine in uginox di davanzali, sp. 0,70 mm","Abdeckungen aus Uginox für Fensterbänke, Dicke 0,70 mm"]
[null,"a) sviluppo 330 mm","a) Abwicklung 333 mm","m","m",46.46]
[null,"b) sviluppo 500 mm","b) Abwicklung 500 mm","m","m",58.74]
["08.06","SCOSSALINE","DACHRANDABSCHLÜSSE"]
["08.06.01","Lamiera di rame","Kupferblech"]
["08.06.01.01","Scossalina di gronda in rame, sp. 0,60 mm","Dachrandabschlüsse an der Traufe aus Kupfer, Dicke 0,60 mm"]
[null,"a) sviluppo 200 mm","a) Abwicklung 200 mm","m","m",19.14]
[null,"b) sviluppo 333 mm","b) Abwicklung 333 mm","m","m",27.02]
["08.06.01.02","Scossalina di raccordo in rame, sp. 0,60 mm","Dachrandabschlüsse zu anderen Bauteilen aus Kupfer, Dicke 0,60 mm"]
[null,"a) sviluppo 333 mm","a) Abwicklung 333 mm","m","m",27.94]
[null,"b) sviluppo 400 mm","b) Abwicklung 400 mm","m","m",31.73]
[null,"c) sviluppo 500 mm","c) Abwicklung 500 mm","m","m",37.35]
["08.06.01.03","Scossalina a sbalzo in rame, sp. 0,60 mm","Abdeckblech für Wandanschlüsse aus Kupfer, Dicke 0,60 mm"]
[null,"a) sviluppo 150 mm","a) Abwicklung 150 mm","m","m",27.84]
[null,"b) sviluppo 300 mm","b) Abwicklung 300 mm","m","m",32.24]
["08.06.01.04","Coprimantovana in rame, sp. 0,60 mm","Dachüberstand aus Kupfer, Dicke 0,60 mm"]
[null,"a) sviluppo 333 mm","a) Abwicklung 333 mm","m","m",28.66]
[null,"b) sviluppo 500 mm","b) Abwicklung 500 mm","m","m",39.71]
[null,"c) sviluppo 670 mm","c) Abwicklung 670 mm","m","m",51.99]
["08.06.01.05","Scossalina di protezione in rame, sp. 0,60 mm","Schutzblech aus Kupfer, Dicke 0,60 mm"]
[null,"a) sviluppo 150 mm","a) Abwicklung 150 mm","m","m",16.37]
[null,"b) sviluppo 250 mm","b) Abwicklung 250 mm","m","m",18.420000000000002]
["08.06.02","Lamiera di acciaio zincato","Verzinktes Blech"]
["08.06.02.01","Scossalina di gronda in acciaio zincato, sp. 0,60 mm","Dachrandabschlüsse an der Traufe aus verzinktem Blech, Dicke 0,60 mm"]
[null,"a) sviluppo 200 mm","a) Abwicklung 200 mm","m","m",13.1]
[null,"b) sviluppo 333 mm","b) Abwicklung 333 mm","m","m",17.190000000000001]
["08.06.02.02","Scossalina di raccordo in acciaio zincato, sp. 0,60 mm","Dachrandabschlüsse zu anderen Bauteilen aus verzinktem Blech, Dicke 0,60 mm"]
[null,"a) sviluppo 333 mm","a) Abwicklung 333 mm","m","m",17.399999999999999]
[null,"b) sviluppo 400 mm","b) Abwicklung 400 mm","m","m",19.14]
[null,"c) sviluppo 500 mm","c) Abwicklung 500 mm","m","m",21.8]
["08.06.02.03","Scossalina a sbalzo in acciaio zincato, sp. 0,60 mm","Abdeckblech für Wandanschlüsse aus verzinktem Blech, Dicke 0,60 mm"]
[null,"a) sviluppo 165 mm","a) Abwicklung 165 mm","m","m",18.73]
[null,"b) sviluppo 200 mm","b) Abwicklung 200 mm","m","m",21.18]
["08.06.02.04","Coprimantovana in acciaio zincato, sp. 0,60 mm","Dachüberstand aus verzinktem Blech, Dicke 0,60 mm"]
[null,"a) sviluppo 330 mm","a) Abwicklung 330 mm","m","m",18.420000000000002]
[null,"b) sviluppo 500 mm","b) Abwicklung 500 mm","m","m",24.46]
[null,"c) sviluppo 670 mm","c) Abwicklung 670 mm","m","m",31.73]
["08.06.02.05","Scossalina di protezione in acciaio zincato, sp. 0,60 mm","Schutzblech aus verzinktem Blech, Dicke 0,60 mm"]
[null,"a) sviluppo 150 mm","a) Abwicklung 150 mm","m","m",11.26]
[null,"b) sviluppo 250 mm","b) Abwicklung 250 mm","m","m",12.28]
["08.06.03","Lamiera di uginox","Blech aus Uginox"]
["08.06.03.01","Scossalina di gronda in uginox, sp. 0,60 mm","Dachrandabschluss an der Traufe aus Uginox, Dicke 0,60 mm"]
[null,"a) sviluppo 200 mm","a) Abwicklung 200 mm","m","m",16.27]
[null,"b) sviluppo 333 mm","b) Abwicklung 333 mm","m","m",22.51]
["08.06.03.02","Scossalina di raccordo in uginox, sp. 0,60 mm","Dachrandabschluss zu anderen Bauteilen in Uginox, Dicke 0,60 mm"]
[null,"a) sviluppo 333 mm","a) Abwicklung 333 mm","m","m",23.23]
[null,"b) sviluppo 400 mm","b) Abwicklung 400 mm","m","m",26.2]
[null,"c) sviluppo 500 mm","c) Abwicklung 500 mm","m","m",30.7]
["08.06.03.03","Scossalina a sbalzo in uginox, sp. 0,60 mm","Abdeckblech für Wandanschlüsse aus Uginox, Dicke 0,60 mm"]
[null,"a) sviluppo 150 mm","a) Abwicklung 150 mm","m","m",24.15]
[null,"b) sviluppo 300 mm","b) Abwicklung 300 mm","m","m",27.84]
["08.06.03.04","Coprimantovana in uginox, sp. 0,60 mm","Dachüberstand aus Uginox, Dicke 0,60 mm"]
[null,"a) sviluppo 330 mm","a) Abwicklung 330 mm","m","m",23.95]
[null,"b) sviluppo 500 mm","b) Abwicklung 500 mm","m","m",32.950000000000003]
[null,"c) sviluppo 670 mm","c) Abwicklung 670 mm","m","m",43.09]
["08.06.03.05","Scossalina di protezione in uginox, sp. 0,60 mm","Schutzblech aus Uginox, Dicke 0,60 mm"]
[null,"a) sviluppo 150 mm","a) Abwicklung 150 mm","m","m",16.37]
[null,"b) sviluppo 250 mm","b) Abwicklung 250 mm","m","m",18.420000000000002]
["08.07","CONVERSE","EINFASSUNGEN"]
["08.07.01","Lamiera di rame","Kupferblech"]
["08.07.01.01","Conversa per compluvi in rame, sp. 0,60 mm","Einfassung aus Kupferblech für Kehlen, Dicke 0,60 mm","m²","m²",60.69]
["08.07.01.02","Conversa per raccordi a parete in rame, sp. 0,60 mm:","Einfassung aus Kupferblech für Wandanschlüsse, Dicke 0,60 mm"]
[null,"a) sviluppo 500 mm","a) Abwicklung 500 mm","m","m",26.71]
[null,"b) sviluppo 670 mm","b) Abwicklung 670 mm","m","m",33.06]
["08.07.02","Lamiera di acciaio zincato","Verzinktes Blech"]
["08.07.02.01","Conversa per compluvi in acciaio zincato, sp. 0,60 mm","Einfassung aus verzinktem Blech für Kehlen, Dicke 0,60 mm","m²","m²",35.92]
["08.07.02.02","Conversa per raccordi a parete in acciaio zincato, sp. 0,60 mm:","Einfassung aus verzinktem Blech für Wandanschlüsse, Dicke 0,60 mm"]
[null,"a) sviluppo 500 mm","a) Abwicklung 500 mm","m","m",20.78]
[null,"b) sviluppo 670 mm","b) Abwicklung 670 mm","m","m",27.02]
["08.07.03","Lamiera di uginox","Blech aus Uginox"]
["08.07.03.01","Conversa per compluvi in uginox, sp. 0,60 mm","Einfassung aus Uginox für Kehlen, Dicke 0,60 mm","m²","m²",49.94]
["08.07.03.02","Conversa per raccordi a parete in uginox, sp. 0,60 mm:","Einfassung aus Uginox für Wandanschlüsse Dicke 0,60 mm"]
[null,"a) sviluppo 500 mm","a) Abwicklung 500 mm","m","m",24.66]
[null,"b) sviluppo 670 mm","b)  Abwicklung 670 mm","m","m",31.01]
["09","SERRAMENTI IN LEGNO E LEGNO-ALLUMINIO","TÜREN UND FENSTER AUS HOLZ UND AUS HOLZ-ALUMINIUM"]
["09.01","FINESTRE E PORTEFINESTRE IN LEGNO","FENSTER UND FENSTERTÜREN AUS HOLZ"]
["09.01.01","Finestra in legno ad 1 anta, con doppio vetro","Fenster aus Holz, einflüglig, mit Doppelverglasung","m²","m²",337.72]
["09.01.02","Finestra in legno a 2 ante, con doppio vetro","Fenster aus Holz, zweiflüglig, mit Doppelverglasung","m²","m²",347.96]
["09.01.03","Finestra in legno ad anta fissa, con doppio vetro","Fenster aus Holz, festverglast, mit Doppelverglasung","m²","m²",214.91]
["09.01.04","Portafinestra in legno ad 1 anta, con doppio vetro","Fenstertür aus Holz, einflüglig, mit Doppelverglasung","m²","m²",347.96]
["09.01.05","Portafinestra in legno a 2 ante, con doppio vetro","Fenstertür aus Holz, zweiflüglig, mit Doppelverglasung","m²","m²",378.66]
["09.01.06","Finestra in legno ad 1 anta, con triplo vetro","Fenster aus Holz, einflüglig, mit Dreifachverglasung","m²","m²",436.99]
["09.01.07","Finestra in legno a 2 ante, con triplo vetro","Fenster aus Holz, zweiflüglig, mit Dreifachverglasung","m²","m²",465.65]
["09.01.08","Finestra in legno ad anta fissa, con triplo vetro","Fenster aus Holz, festverglast, mit Dreifachverglasung","m²","m²",272.22000000000003]
["09.01.09","Portafinestra in legno ad 1 anta, con triplo vetro","Fenstertür aus Holz, einflüglig, mit Dreifachverglasung","m²","m²",458.48]
["09.01.10","Portafinestra in legno a 2 ante, con triplo vetro","Fenstertür aus Holz, zweiflüglig, mit Dreifachverglasung","m²","m²",486.12]
["09.02","FINESTRE E PORTEFINESTRE IN LEGNO-ALLUMINIO","FENSTER UND FENSTERTÜREN AUS HOLZ-ALUMINIUM"]
["09.02.01","Finestra in legno-alluminio ad 1 anta, con doppio vetro","Fenster aus Holz-Aluminium, einflüglig, mit Doppelverglasung","m²","m²",366.38]
["09.02.02","Finestra in legno-alluminio a 2 ante, con doppio vetro","Fenster aus Holz-Aluminium, zweiflüglig, mit Doppelverglasung","m²","m²",376.61]
["09.02.03","Finestra in legno-alluminio ad anta fissa, con doppio vetro","Fenster aus Holz-Aluminium, festverglast, mit Doppelverglasung","m²","m²",235.38]
["09.02.04","Portafinestra in legno-alluminio ad 1 anta, con doppio vetro","Fenstertür aus Holz-Aluminium, einflüglig, mit Doppelverglasung","m²","m²",384.8]
["09.02.05","Portafinestra in legno-alluminio a 2 ante, con doppio vetro","Fenstertür aus Holz-Aluminium, zweiflüglig, mit Doppelverglasung","m²","m²",428.8]
["09.02.06","Finestra in legno-alluminio ad 1 anta, con triplo vetro","Fenster aus Holz-Aluminium, einflüglig, mit Dreifachverglasung","m²","m²",460.53]
["09.02.07","Finestra in legno-alluminio a 2 ante, con triplo vetro","Fenster aus Holz-Aluminium, zweiflüglig, mit Dreifachverglasung","m²","m²",487.14]
["09.02.08","Finestra in legno-alluminio ad anta fissa, con triplo vetro","Fenster aus Holz-Aluminium, festverglast, mit Dreifachverglasung","m²","m²",296.79000000000002]
["09.02.09","Portafinestra in legno-alluminio ad 1 anta, con triplo vetro","Fenstertür aus Holz-Aluminium, einflüglig, mit Dreifachverglasung","m²","m²",486.12]
["09.02.10","Portafinestra in legno-alluminio a 2 ante, con triplo vetro","Fenstertür aus Holz-Aluminium, zweiflüglig, mit Dreifachverglasung","m²","m²",501.47]
["09.03","SOVRAPPREZZI PER ESECUZIONI PARTICOLARI","AUFPREISE FÜR SONDERANFERTIGUNGEN"]
["09.03.01","Sovrapprezzo per 1 lato obliquo","Aufpreis für 1 schräge Seite:","m","m",163.74]
["09.03.02","Sovrapprezzo per 1 lato curvo","Aufpreis für 1 gekrümmte Seite:","m","m",257.89999999999998]
["09.03.03","Sovrapprezzo per applicazione a \"inglesina\" su vetrocamera sia all'interno che all'esterno, per singolo riquadro","Aufpreis für Ausführungsart “Inglesina” für Mehrscheibenisolierglas außen und innen je einzelne Scheibe","cad","St",47.59]
["09.04","BANCALI E CIELINI IN LEGNO","FENSTERBANK UND REVISIONSÖFFNUNGEN"]
["09.04.01","Bancale in legno:","Fensterbank aus Holz:"]
[null,"a) con profondità fino a 25 cm","a) Tiefe bis 25 cm","m","m",31.73]
[null,"b) con profondità fino a 35 cm","b) Tiefe bis 35 cm","m","m",40.94]
["09.04.02","Copricassonetto (celino) in legno:","Revisionsöffnung aus Holz:"]
[null,"a) con profondità fino a 25 cm","a) Tiefe bis 25 cm","m","m",31.73]
[null,"b) con profondità fino a 35 cm","b) Tiefe bis 35 cm","m","m",39.909999999999997]
["09.05","PORTE INTERNE","INNENTÜREN"]
["09.05.01","Porta ad anta battente in legno:","Tür als Drehflügeltür aus Holz:"]
[null,"a) Tanganica","a) Tanganika","cad","St",337.72]
[null,"b) Rovere","b) Eiche","cad","St",368.42]
[null,"c) Faggio","c) Buche","cad","St",368.42]
["09.05.02","Porta ad anta scorrevole in legno:","Tür als Schiebetür aus Holz:"]
[null,"a) Tanganica","a) Tanganika","cad","St",757.32]
[null,"b) Rovere","b) Eiche","cad","St",777.78]
[null,"c) Faggio","c) Buche","cad","St",777.78]
["09.05.03","Sovrapprezzo per fuori misura:","Aufpreis für Übermaß:"]
[null,"a) fino a 10 cm","a) bis 10 cm","%","%",15.35]
[null,"b) oltre 10 cm","b) mehr als 10 cm","%","%",20.47]
["09.05.04","Sovrapprezzo per specchiatura vetrata (vetro di sicurezza 4+0,38+4 mm)","Aufpreis für verspiegelte Glasflächen (Sicherheitsglas 4+0,38+4 mm)","cad","St",135.09]
["09.06","PORTONCINI DI INGRESSO","EINGANGSTÜREN"]
["09.06.01","Portoncini standard in legno:","Türen Standard aus Holz:"]
[null,"a) Tanganica","a) Tanganika","cad","St",788.02]
[null,"b) Rovere","b) Eiche","cad","St",828.95]
[null,"c) Faggio","c) Buche","cad","St",828.95]
["09.06.02","Portoncini blindati:","Gepanzerte Türen:"]
[null,"a) Tanganica","a) Tanganika","cad","St",695.91]
[null,"b) Rovere","b) Eiche","cad","St",747.08]
[null,"c) Faggio","c) Buche","cad","St",747.08]
["09.07","SISTEMI DI OSCURAMENTO","VERDUNKELUNGSSYSTEME"]
["09.07.01","Avvolgibili","Rollläden"]
["09.07.01.01","Avvolgibile in PVC:","Rollläden aus PVC:"]
[null,"a) con azionamento a manovella","a) mit Kurbelantrieb","m²","m²",35.82]
["09.07.01.02","Sovrapprezzo per set antintrusione","Aufpreis für Set Einbruchsicherung","cad","St",46.05]
["09.07.01.03","Sovrapprezzo per rullo ad azionamento elettrico","Aufpreis für elektrischen Antrieb","cad","St",122.81]
["09.07.02","Persiane:","Klappläden:"]
["09.07.02.01","Griglia semplice aperta","einfaches Gitter, geöffnet","m²","m²",286.55]
[12,"OPERE DA VETRAIO","VERGLASUNGSARBEITEN"]
["12.01","VETRAZIONE","VERGLASUNG"]
["12.01.01","Vetri di sicurezza","Einscheiben-Sicherheitsglas"]
["12.01.01.01","Vetro temprato:","Einscheiben- Sicherheitsglas"]
[null,"a) spessore 5 mm","a) Nenndicke: 5 mm","m²","m²",94.23]
[null,"b) spessore 6 mm","b) Nenndicke: 6 mm","m²","m²",101.32]
[null,"c) spessore 8 mm","c) Nenndicke: 8 mm","m²","m²",115.49]
[null,"d) spessore 10 mm","d) Nenndicke: 10 mm","m²","m²",130.66]
[null,"e) spessore 12 mm","e) Nenndicke: 12 mm","m²","m²",161.09]
["12.01.01.02","Vetro stratificato:","Verbund-Sicherheitsglas:"]
[null,"a) 2 strati, spessore complessivo 6 mm(film di polivinilbutirrale 0,38 mm)","a) a) zweischeibig, Gesamtnenndicke 6 mm (Zwischenschicht aus PVB, 0,38 mm)","m²","m²",91.11]
[null,"b) 2 strati, spessore complessivo 8 mm(film di polivinilbutirrale 0,38 mm)","b) zweischeibig, Gesamtnenndicke 8 mm (Zwischenschicht aus PVB, 0,38 mm)","m²","m²",96.21]
[null,"c) 2 strati, spessore complessivo 8 mm(film di polivinilbutirrale 0,76 mm)","c) zweischeibig, Gesamtnenndicke 8 mm (Zwischenschicht aus PVB, 0,76 mm)","m²","m²",106.33]
[null,"d) 2 strati, spessore complessivo 10 mm(film di polivinilbutirrale 0,76 mm)","d) zweischeibig, Gesamtnenndicke 10 mm (Zwischenschicht aus  PVB, 0,76 mm)","m²","m²",111.43]
["12.01.02","Vetrocamera termoisolanti","Wärmeschutz-Isolierglas"]
["12.01.02.01","Vetrocamera termoisolante Ug = 1,6 W/m²K (4+12+4)","Wärmeschutz-Isolierglas U = 1,6 W/m²K:","m²","m²",87.13]
["12.01.02.02","Vetrocamera termoisolante Ug = 1,4 W/m²K (4+16+4)","Wärmeschutz-Isolierglas U = 1,4 W/m²K:","m²","m²",95.22]
["12.01.03","Vetri antifuoco","Brandschutzglas:"]
["12.01.03.02","Cristallo retinato antifuoco:","Drahtspiegel-Brandschutzglas:"]
[null,"a) spessore 7mm, EI 60'","a) Dicke 7 mm, EI 60'","m²","m²",110.13]
["12.01.03.03","Vetrata resistente al fuoco incolore ","Brandschutzglas, farblos "]
[null,"a) spessore 15 mm, EI 30'","a) Dicke 15 mm, EI 30'","m²","m²",830.99]
[null,"b) spessore 21 mm,  EI 60'","b) Dicke 21 mm, EI 60'","m²","m²",951.14]
[null,"c) spessore 50 mm,  EI 120'","c) Dicke 50 mm, EI 120'","m²","m²",1937.31]
["12.01.04","Lastre trasparenti in materiale plastico","Durchsichtige Kunststoffplatten:"]
["12.01.04.01","Lastra trasparente polimetilmetacrilato PMMA, colato:","Durchsichtige Kunststoffplatten PMMA, gegossen:"]
[null,"a) spessore lastra 3 mm","a) Plattendicke: 3 mm","m²","m²",75.09]
[null,"b) spessore lastra 4 mm","b) Plattendicke: 4 mm","m²","m²",87.1]
[null,"c) spessore lastra 5 mm","c) Plattendicke: 5 mm","m²","m²",105.12]
[null,"d) spessore lastra 6 mm","d) Plattendicke: 6 mm","m²","m²",115.13]
[null,"e) spessore lastra 8 mm","e) Plattendicke: 8 mm","m²","m²",129.15]
[null,"f) spessore lastra 10 mm","f) Plattendicke: 8 10 mm","m²","m²",161.19999999999999]
["12.01.04.03","Lastra trasparente in policarbonato PC estruso:","Kunststofflichtplatte PC, extrudiert:"]
[null,"a) spessore lastra 3 mm","a) Plattendicke: 3 mm","m²","m²",80.09]
[null,"b) spessore lastra 4 mm","b) Plattendicke: 4 mm","m²","m²",92.11]
[null,"c) spessore lastra 5 mm","c) Plattendicke: 5 mm","m²","m²",110.13]
[null,"d) spessore lastra 6 mm","d) Plattendicke: 6 mm","m²","m²",120.15]
[null,"e) spessore lastra 8 mm","e) Plattendicke: 8 mm","m²","m²",134.16]
[null,"f) spessore lastra 10 mm"," f) Plattendicke: 8 10 mm","m²","m²",166.2]
["12.02","LAVORAZIONI PARTICOLARI","BEARBEITUNGEN DES GLASES"]
["12.02.01","Foratura","Glaslochung:"]
["12.02.01.01","Foratura vetro (fino a diam. 30 mm):","Glaslochung (bis Durchmesser 30 mm):"]
[null,"a) Spessore nominale fino a 6 mm","a) Durchmesser bis 6 mm","cad","St",10.01]
[null,"b) Spessore nominale fino a 8 mm","b) Durchmesser bis 8 mm","cad","St",10.01]
[null,"c) Spessore nominale fino a 10 mm","c) Durchmesser bis 10 mm","cad","St",10.01]
[null,"d) Spessore nominale fino a 12 mm","d) Durchmesser bis 12 mm","cad","St",10.01]
["12.02.02","Intagli","Ausschnitte"]
["12.02.02.01","Intaglio circolare, spessore vetro fino a 12mm:","Ausschnitt rund, Nenndicke Glas bis 12mm:"]
[null,"a) diametro massimo intaglio: 120 mm","a) Ausschnittdurchmesser bis zu 120 mm","cad","St",42.05]
["12.02.02.02","Intaglio rettangolare, spessore vetro fino a 12mm:","Ausschnitt rechteckig, Nenndicke Glas bis 12mm:"]
[null,"a) superficie massima intaglio: 144 cm²","Ausschnittgröße bis zu 144 cm2","cad","St",55.07]
["12.02.02.03","Angolo arrotondato:","Eckabrundung:"]
[null,"a) raggio fino a 60 mm","a) Eckradius bis zu 60 mm","cad","St",7.01]
["12.02.03","Trattamenti particolari","Sonstige Bearbeitungen"]
["12.02.03.01","Sabbiatura","Sandstrahlung","m²","m²",45.05]
["13","IMPIANTO TERMICO","HEIZANLAGE"]
["13.01","CALDAIE","HEIZUNG"]
["13.01.01","Caldaie a gas a condensazione, per solo riscaldamento, complete di regolazione climatica per un circuito diretto ed uno miscelato, sonda di mandata e due sonde bollitore","Gas-Brennwertheizkessel, nur für Heizbetrieb; komplett mit witterungsgeführter Regelung für einen direkten und einen gemischten Heizkreis , mit einem Vorlauffühler und zwei Boilerfühlern "]
[null,"a) Caldaia murale 15 kW","a) Wandtherme 15 kW","cad","St",3602.37]
[null,"b) Caldaia murale 25 kW","b) Wandtherme 25 kW","cad","St",3658.66]
[null,"c) Caldaia murale 34 kW","c) Wandtherme 34 kW","cad","St",3996.38]
[null,"d) Caldaia murale 45 kW","d) Wandtherme 45 kW","cad","St",5853.85]
[null,"e) Caldaia murale 75 kW","e) Wandtherme 75 kW","cad","St",8330.48]
[null,"f) Caldaia murale 100 kW","f) Wandtherme 100 kW","cad","St",10469.379999999999]
[null,"g) Caldaia basamento 15 kW","g) Standkessel 15 kW","cad","St",4165.24]
[null,"h) Caldaia basamento 25 kW","h) Standkessel 25 kW","cad","St",4390.3900000000003]
[null,"i) Caldaia basamento 34 kW","i) Standkessel 34 kW","cad","St",5516.13]
[null,"l) Caldaia basamento 45 kW","l) Standkessel 45 kW","cad","St",8443.0499999999993]
[null,"m) Caldaia basamento 80 kW","m) Standkessel 80 kW","cad","St",15084.92]
[null,"n) Caldaia basamento 100 kW","n) Standkessel 100 kW","cad","St",17448.97]
[null,"o) Caldaia basamento 150 kW","o) Standkessel 150 kW","cad","St",21163.91]
[null,"p) Caldaia basamento 200 kW","p) Standkessel 200 kW","cad","St",22965.1]
[null,"q) Caldaia basamento 250 kW","q) Standkessel 250 kW","cad","St",23640.54]
["13.01.02","Caldaie a pellet di legna, per solo riscaldamento, complete di regolazione climatica per un circuito diretto ed uno miscelato, sonda di mandata e due sonde bollitore ","Pellets-Heizkessel für Heizbetrieb; komplett mit witterungsgeführter Regelung für einen direkten und einen gemischten Heizkreis , mit einem Vorlauffühler und zwei Boilerfühlern (bzw. Pufferfühler) ",null," "]
[null,"a) Caldaia 15 kW","a) Heizkessel 15 kW","cad","St",12495.71]
[null,"b) Caldaia 25 kW","b) Heizkessel 25 kW","cad","St",13621.45]
[null,"c) Caldaia 32 kW","c) Heizkessel 32 kW","cad","St",14747.19]
[null,"d) Caldaia 50 kW","d) Heizkessel 50 kW","cad","St",18124.41]
[null,"e) Caldaia 70 kW","e) Heizkessel 70 kW","cad","St",23865.69]
[null,"f) Caldaia 95 kW","f) Heizkessel 95 kW","cad","St",25666.87]
[null,"g) Caldaia 140 kW","g) Heizkessel 140 kW","cad","St",29402.28]
[null,"h) Caldaia 220 kW","h) Heizkessel 220 kW","cad","St",52019.42]
["13.02","POMPE","PUMPEN ",null," "]
["13.02.01","Pompa ad attacchi filettati","Pumpen mit Gewindeanschlüssen ",null," "]
[null,"a) 1\", prevalenza max 30 kPa","a) 1\", Förderdruck max. 30 kPa","cad","St",382.75]
[null,"b) 1\", prevalenza max 50 kPa","b) 1\", Förderdruck max. 50 kPa","cad","St",439.04]
[null,"c) 1\"1/2, prevalenza max 30 kPa","c) 1\"1/2, Förderdruck max. 30 kPa","cad","St",607.9]
[null,"d) 1\"1/2, prevalenza max 50 kPa","d) 1\"1/2, Förderdruck max. 50 kPa","cad","St",731.73]
[null,"e) 1\"1/2, prevalenza max 70 kPa","e) 1\"1/2, Förderdruck max. 70 kPa","cad","St",754.25]
[null,"f) 1\"1/2, prevalenza max 90 kPa","f) 1\"1/2, Förderdruck max. 90 kPa","cad","St",810.53]
[null,"g) 2\", prevalenza max 30 kPa","g) 2\", Förderdruck max. 30 kPa","cad","St",652.92999999999995]
[null,"h) 2\", prevalenza max 50 kPa","h) 2\", Förderdruck max. 50 kPa","cad","St",765.5]
[null,"i) 2\", prevalenza max 70 kPa","i) 2\", Förderdruck max. 70 kPa","cad","St",788.02]
[null,"l) 2\", prevalenza max 90 kPa","l) 2\", Förderdruck max. 90 kPa","cad","St",855.56]
["13.02.02","Pompa ad attacchi flangiati","Pumpen mit Flanschanschlüsse ",null," "]
[null,"a) DN32, prevalenza max 70 kPa","a) DN32, Förderdruck max. 70 kPa","cad","St",844.31]
[null,"b) DN32, prevalenza max 90 kPa","b) DN32, Förderdruck max. 90 kPa","cad","St",911.85]
[null,"c) DN32, prevalenza max 100 kPa","c) DN32, Förderdruck max. 100 kPa","cad","St",1576.04]
[null,"d) DN40, prevalenza max 50 kPa","d) DN40, Förderdruck max. 50 kPa","cad","St",810.53]
[null,"e) DN40, prevalenza max 70 kPa","e) DN40, Förderdruck max. 70 kPa","cad","St",866.82]
[null,"f) DN40, prevalenza max 90 kPa","f) DN40, Förderdruck max. 90 kPa","cad","St",934.36]
[null,"g) DN40, prevalenza max 100 kPa","g) DN40, Förderdruck max. 100 kPa","cad","St",1632.32]
[null,"h) DN50, prevalenza max 50 kPa","h) DN50, Förderdruck max. 50 kPa","cad","St",1947.53]
[null,"i) DN50, prevalenza max 90 kPa","i) DN50, Förderdruck max. 90 kPa","cad","St",1114.48]
[null,"l) DN50, prevalenza max 100 kPa","l) DN50, Förderdruck max. 100 kPa","cad","St",2307.77]
[null,"m) DN65, prevalenza max 50 kPa","m) DN65, Förderdruck max. 50 kPa","cad","St",2060.1]
[null,"n) DN65, prevalenza max 100 kPa","n) DN65, Förderdruck max. 100 kPa","cad","St",2645.49]
["13.03","TUBI","ROHRE ",null," "]
["13.03.01","Tubazioni in acciaio con raccordi a pressare e rivestimento esterno in polipropilene","Stahlrohrleitungen mit Pressverbindungen (Pressfitting) und externer Kunststoffbeschichtung aus Polypropylen ",null," "]
[null,"a) 15 x 1,2","a) 15 x 1,2","m","m",18.52]
[null,"b) 18 x 1,2","b) 18 x 1,2","m","m",19.239999999999998]
[null,"c) 22 x 1,5","c) 22 x 1,5","m","m",20.67]
[null,"d) 28 x 1,5","d) 28 x 1,5","m","m",23.23]
[null,"e) 35 x 1,5","e) 35 x 1,5","m","m",30.5]
[null,"f) 42 x 1,5","f) 42 x 1,5","m","m",38.479999999999997]
[null,"g) 54 x 1,5","g) 54 x 1,5","m","m",44.31]
["13.03.02","Tubazioni in acciaio con raccordi a saldare e rivestimento esterno epossidico","Stahlrohrleitungen mit geschweißten Verbindungen und externer Epoxydbeschichtung ",null," "]
[null,"a) 1/2\"","a) 1/2\"","m","m",16.07]
[null,"b) 3/4\"","b) 3/4\"","m","m",19.34]
[null,"c) 1\"","c) 1\"","m","m",23.54]
[null,"d) 1\"1/4","d) 1\"1/4","m","m",27.84]
[null,"e) 1\"1/2","e) 1\"1/2","m","m",33.159999999999997]
[null,"f) 2\"","f) 2\"","m","m",40.42]
[null,"g) 2\"1/2","g) 2\"1/2","m","m",47.18]
[null,"h) 3\"","h) 3\"","m","m",57.82]
[null,"i) 4\"","i) 4\"","m","m",76.55]
[null,"l) 5\"","l) 5\"","m","m",101.83]
[null,"m) 6\"","m) 6\"","m","m",123.93]
["13.03.03","Tubazioni in plastica tipo PE-Xa, complete di ancoraggi e pezzi speciali","Kunststoffrohre vom Typ PE-Xa, komplett mit Zubehör, Verankerungen und Formstücken ",null," "]
[null,"a) 16 x 2,2 PN10","a) 16 x 2,2 PN10","m","m",12.89]
[null,"b) 20 x 2,8 PN10","b) 20 x 2,8 PN10","m","m",14.74]
[null,"c) 25 x 3,5 PN10","c) 25 x 3,5 PN10","m","m",21.49]
[null,"d) 32 x 4,4 PN10","d) 32 x 4,4 PN10","m","m",27.63]
[null,"e) 40 x 5,5 PN10","e) 40 x 5,5 PN10","m","m",47.38]
[null,"f) 50 x 6,9 PN10","f) 50 x 6,9 PN10","m","m",60.28]
[null,"g) 63 x 8,6 PN10","g) 63 x 8,6 PN10","m","m",84.33]
[null,"h) 75 x 6,9 PN6","h) 75 x 6,9 PN6","m","m",118]
[null,"i) 90 x 8,2 PN6","i) 90 x 8,2 PN6","m","m",157.30000000000001]
["13.04","ISOLAMENTO TERMICO","WÄRMEISOLIERUNG ",null," "]
["13.04.01","Isolamento termico per tubi in vista, in poliuretano espanso, con guaina esterna di protezione in PVC","Wärmeisolierungen für frei verlegte Rohrleitungen, in expandiertem Polyurethan mit externer Schutzhülle ",null," "]
[null,"a) spessore 20, diam. 1/2\"","a) Stärke 20, Durchmesser 1/2\"","m","m",13.1]
[null,"b) spessore 30, diam. 3/4\"","b) Stärke 30, Durchmesser 3/4\"","m","m",15.17]
[null,"c) spessore 30, diam. 1\"","c) Stärke 30, Durchmesser 1\"","m","m",17.420000000000002]
[null,"d) spessore 30, diam. 1\"1/4","d) Stärke 30, Durchmesser 1\"1/4","m","m",21.25]
[null,"e) spessore 40, diam. 1\"1/2","e) Stärke 40, Durchmesser 1\"1/2","m","m",25.48]
[null,"f) spessore 40, diam. 2\"","f) Stärke 40, Durchmesser 2\"","m","m",28.03]
[null,"g) spessore 50, diam. 2\"1/2","g) Stärke 50, Durchmesser 2\"1/2","m","m",63.57]
[null,"h) spessore 60, diam. 3\"","h) Stärke 60, Durchmesser 3\"","m","m",76.099999999999994]
[null,"i) spessore 65, diam. 4\"","i) Stärke 65, Durchmesser 4\"","m","m",83.1]
[null,"l) spessore 65, diam. 5\"","l) Stärke 65, Durchmesser 5\"","m","m",122.6]
[null,"m) spessore 65, diam. 6\"","m) Stärke 65, Durchmesser 6\"","m","m",145.63]
["13.04.02","Isolamento termico per tubi in cavedio, in poliuretano espanso, con guaina esterna di protezione in PVC","Wärmeisolierung für in Schächten verlegten Rohrleitungen, in expandiertem Polyurethan mit externer Schutzhülle ",null," "]
[null,"a) spessore 10, diam. 3/8\"","a) Stärke 10, Durchmesser 3/8\"","m","m",11.89]
[null,"b) spessore 10, diam. 1/2\"","b) Stärke 10, Durchmesser 1/2\"","m","m",11.89]
[null,"c) spessore 15, diam. 3/4\"","c) Stärke 15, Durchmesser 3/4\"","m","m",12.8]
[null,"d) spessore 15, diam. 1\"","d) Stärke 15, Durchmesser 1\"","m","m",13.63]
[null,"e) spessore 20, diam. 1\"1/4","e) Stärke 20, Durchmesser 1\"1/4","m","m",14.61]
[null,"f) spessore 20, diam. 1\"1/2","f) Stärke 20, Durchmesser 1\"1/2","m","m",15.44]
[null,"g) spessore 20, diam. 2\"","g) Stärke 20, Durchmesser 2\"","m","m",21.14]
[null,"h) spessore 25, diam. 2\"1/2","h) Stärke 25, Durchmesser 2\"1/2","m","m",26.61]
[null,"i) spessore 30, diam. 3\"","i) Stärke 30, Durchmesser 3\"","m","m",31.34]
[null,"l) spessore 30, diam. 4\"","l) Stärke 30, Durchmesser 4\"","m","m",85.32]
[null,"m) spessore 30, diam. 5\"","m) Stärke 30, Durchmesser 5\"","m","m",95.8]
[null,"n) spessore 30, diam. 6\"","n) Stärke 30, Durchmesser 6\"","m","m",105.37]
["13.04.03","Isolamento termico per tubi sotto traccia, in polietilene espanso, con guaina esterna di protezione rinforzata con fibre di vetro","Wärmeisolierung für Unterputz-Rohrleitungen in expandiertem Polyäthylen mit externer Schutzhülle ",null," "]
[null,"a) spessore 9, diam. 3/8\"","a) Stärke   9, Durchmesser 3/8\"","m","m",7.12]
[null,"b) spessore 11, diam. 1/2\"","b) Stärke 11, Durchmesser 1/2\"","m","m",7.12]
[null,"c) spessore 11, diam. 3/4\"","c) Stärke 11, Durchmesser 3/4\"","m","m",7.67]
[null,"d) spessore 11, diam. 1\"","d) Stärke 11, Durchmesser 1\"","m","m",8.17]
[null,"e) spessore 15, diam. 1\"1/4","e) Stärke 15, Durchmesser 1\"1/4","m","m",8.75]
[null,"f) spessore 15, diam. 1\"1/2","f) Stärke 15, Durchmesser 1\"1/2","m","m",9.25]
[null,"g) spessore 15, diam. 2\"","g) Stärke 15, Durchmesser 2\"","m","m",12.67]
[null,"h) spessore 18, diam. 2\"1/2","h) Stärke 18, Durchmesser 2\"1/2","m","m",15.93]
[null,"i) spessore 20, diam. 3\"","i) Stärke 20, Durchmesser 3\"","m","m",18.760000000000002]
[null,"l) spessore 22, diam. 4\"","l) Stärke 22, Durchmesser 4\"","m","m",51.09]
["13.05","DISPOSITIVI DI SICUREZZA","SICHERHEITSVORRICHTUNGEN ",null," "]
["13.05.01","Valvola di sicurezza a molla, con attacchi filettati, corpo in bronzo","Sicherheitsventil federbelastet,mit Gewindeanschlüssen, Gehäuse aus Rotguss ",null," "]
[null,"a) ordinaria, 1/2\"x3/4\"","a) Standard 1/2\"x3/4\"","cad","St",33.619999999999997]
[null,"b) ordinaria, 3/4\"x1\"","b) Standard 3/4\"x1\"","cad","St",40.46]
[null,"c) omologata ISPESL, 1/2\"x3/4\"","c) INAIL (ISPESL) geprüft, 1/2\"x3/4\"","cad","St",58.13]
[null,"d) omologata ISPESL, 3/4\"x1\"","d) INAIL (ISPESL) geprüft, 3/4\"x1\"","cad","St",85.11]
[null,"e) omologata ISPESL, 1\"x1\"1/4","e) INAIL (ISPESL) geprüft, 1\"x1\"1/4","cad","St",170.2]
["13.06","DISPOSITIVI DI PROTEZIONE","SCHUTZEINRICHTUNGEN "]
[null,"a) Termostato doppio di regolazione e blocco","a) Doppelthermostat  mit Sicherheits- und Regelthermostat ","cad","St",75.290000000000006]
[null,"b) Pressostato di blocco","b) Druckwächter ","cad","St",48.67]
[null,"c) Pressostato di minima","c) Minimum Druckwächter ","cad","St",61.65]
["13.07","DISPOSITIVI DI CONTROLLO","KONTROLLVORRICHTUNGEN"]
[null,"a) Manometro, diametro 100 mm","a) Manometer, ø 100 mm","cad","St",44.06]
[null,"b) Termometro, diametro 100 mm","b) Thermometer, ø 100 mm","cad","St",25.2]
["13.08","VASI DI ESPANSIONE","AUSDEHNUNGSGEFÄßE ",null," "]
["13.08.01","Vaso d'espansione a membrana, in lamiera d'acciaio di adeguato spessore, con membrana e cuscinetto a gas inerte per impianti a circuito chiuso, pressione max. 5 bar","Membranausdehnungsgefäße aus Stahlblech mit entsprechender Stärke, mit Membran und Gaspolster für Anlagen mit geschlossenem Kreislauf, Betriebsdruck max. 5 bar ",null," "]
[null,"a) 35 l","a) 35 l","cad","St",75.73]
[null,"b) 50 l","b) 50 l","cad","St",91.08]
[null,"c) 80 l","c) 80 l","cad","St",143.28]
[null,"d) 105 l","d) 105 l","cad","St",197.52]
[null,"e) 150 l","e) 150 l","cad","St",250.73]
[null,"f) 200 l","f) 200 l","cad","St",355.12]
[null,"g) 250 l","g) 250 l","cad","St",436.99]
[null,"h) 300 l","h) 300 l","cad","St",527.04999999999995]
[null,"i) 500 l","i) 500 l","cad","St",921.06]
["13.09","ACCUMULATORI TERMICI","WÄRMESPEICHER ",null," "]
["13.09.01","Accumulatore termico per impianti privi di pannelli solari, con isolazione in poliuretano spessore minimo 10 cm","Wärmespeicher für Anlagen ohne Solarkollektoren, mit Isolierung in Polyurethan, Stärke min. 10 cm ",null," "]
[null,"a) 300 l","a) 300 l","cad","St",706.15]
[null,"b) 500 l","b) 500 l","cad","St",730.71]
[null,"c) 600 l","c) 600 l","cad","St",828.95]
[null,"d) 750 l","d) 750 l","cad","St",865.8]
[null,"e) 1000 l","e) 1000 l","cad","St",1000.89]
[null,"f) 1250 l","f) 1250 l","cad","St",1381.59]
[null,"g) 1500 l","g) 1500 l","cad","St",1442.99]
[null,"h) 2000 l","h) 2000 l","cad","St",1909.66]
[null,"i) 2500 l","i) 2500 l","cad","St",2296.5100000000002]
[null,"l) 3000 l","l) 3000 l","cad","St",2787.74]
[null,"m) 4000 l","m) 4000 l","cad","St",3487.75]
[null,"n) 5000 l","n) 5000 l","cad","St",4206.17]
["13.09.02","Accumulatore termico per impianti con pannelli solari, con isolazione in poliuretano spessore minimo 10 cm, portata max per attacco 1,5 m3/h","Wärmespeicher für Anlagen mit Solarkollektoren, mit Isolierung in Polyurethan, Stärke min. 10 cm, Volumenstrom pro Anschluss max. 1,5 m³/h ",null," "]
[null,"a) 400 l","a) 400 l","cad","St",3651.49]
[null,"b) 750 l","b) 750 l","cad","St",4068.02]
[null,"c) 1000 l","c) 1000 l","cad","St",4495.8]
[null,"d) 1300 l","d) 1300 l","cad","St",5013.6400000000003]
[null,"e) 2000 l","e) 2000 l","cad","St",6976.52]
["13.09.03","Accumulatore termico per impianti con pannelli solari, con isolazione in poliuretano spessore minimo 12 cm, portata max per attacco 5,0 m3/h","Wärmespeicher für Anlagen mit Solarkollektoren, mit Isolierung in Polyurethan, Stärke min. 12 cm, Volumenstrom pro Anschluss max. 5,0 m³/h"]
[null,"a) 2000 l","a) 2000 l","cad","St",7764.54]
[null,"b) 3000 l","b) 3000 l","cad","St",9632.24]
[null,"c) 4000 l","c) 4000 l","cad","St",11016.9]
["13.10","VALVOLE","ABSPERRORGANE"]
["13.10.01","Valvola di intercettazione a sfera","Kugelhahn-Vollstromventil"]
[null,"a) 3/8\"","a) 3/8\"","cad","St",10.33]
[null,"b) 1/2\"","b) 1/2\"","cad","St",12.71]
[null,"c) 3/4\"","c) 3/4\"","cad","St",18.93]
[null,"d) 1\"","d) 1\"","cad","St",26.97]
[null,"e) 1\"1/4","e) 1\"1/4","cad","St",45.11]
[null,"f) 1\"1/2","f) 1\"1/2","cad","St",66.12]
[null,"g) 2\"","g) 2\"","cad","St",105.33]
["13.10.02","Valvola di intercettazione flangiata, a volantino, compatta","Flanschen-Absperrventil, mit Handrad in Kompaktausführung ",null," "]
[null,"a) DN65 ","a) DN65 ","cad","St",172.14]
[null,"b) DN80 ","b) DN80 ","cad","St",205.82]
[null,"c) DN100 ","c) DN100 ","cad","St",280.52999999999997]
[null,"d) DN125 ","d) DN125 ","cad","St",402.96]
[null,"e) DN150 ","e) DN150 ","cad","St",535.74]
[null,"f) DN200","f) DN200","cad","St",1318.3]
["13.10.03","Valvola di ritegno a clapet a manicotto","Klappenrückschlagventil mit Muffen ",null," "]
[null,"a) 3/8\"","a) 3/8\"","cad","St",7.44]
[null,"b) 1/2\"","b) 1/2\"","cad","St",14.01]
[null,"c) 3/4\"","c) 3/4\"","cad","St",16.329999999999998]
[null,"d) 1\"","d) 1\"","cad","St",20.78]
[null,"e) 1\"1/4","e) 1\"1/4","cad","St",25.23]
[null,"f) 1\"1/2","f) 1\"1/2","cad","St",39.74]
["13.10.04","Valvola di ritegno a doppio battente per montaggio wafer tra flange","Doppelklappen-Rückschlagventil  (Typ Wafer), zur Montage zwischen den Flanschen ",null," "]
[null,"a) DN50","a) DN50","cad","St",150.44]
[null,"b) DN65 ","b) DN65 ","cad","St",167.84]
[null,"c) DN80 ","c) DN80 ","cad","St",187.28]
[null,"d) DN100 ","d) DN100 ","cad","St",215.94]
[null,"e) DN125 ","e) DN125 ","cad","St",272.22000000000003]
[null,"f) DN150 ","f) DN150 ","cad","St",314.18]
[null,"g) DN200","g) DN200","cad","St",565.94000000000005]
["13.11","DISPOSITIVI DI SFOGO ARIA","ENTLÜFTUNGSORGANE ",null," "]
["13.11.01","Valvola di sfiato per radiatori, con scarico orientabile","Entlüftungsventil für Heizkörper mit schwenkbarem Auslauf ",null," "]
[null,"a) 3/8\"","a) 3/8\"","cad","St",8.7200000000000006]
[null,"b) 1/2\"","b) 1/2\"","cad","St",10.1]
["13.11.02","Valvola automatica di sfogo aria ","Automatischer Schnellentlüfter ",null," "]
[null,"a) 1/2\"","a) 1/2\"","cad","St",18.52]
["13.11.03","Separatore di microbolle filettato","Luftabscheider für Mikroblasenabscheidung in Gewindeausführung ",null," "]
[null,"a) 3/4\"","a) 3/4\"","cad","St",139.18]
[null,"b) 1\"","b) 1\"","cad","St",143.28]
[null,"c) 1\"1/4","c) 1\"1/4","cad","St",187.28]
[null,"d) 1\"1/2","d) 1\"1/2","cad","St",212.87]
["13.11.04","Separatore di microbolle flangiato","Luftabscheider für Mikroblasenabscheidung in Flanschausführung"]
[null,"a) DN50","a) DN50","cad","St",1436.85]
[null,"b) DN65 ","b) DN65 ","cad","St",1498.26]
[null,"c) DN80 ","c) DN80 ","cad","St",2028.38]
[null,"d) DN100 ","d) DN100 ","cad","St",2121.5100000000002]
[null,"e) DN125 ","e) DN125 ","cad","St",3849.01]
[null,"f) DN150 ","f) DN150 ","cad","St",4000.47]
[null,"g) DN200","g) DN200","cad","St",6027.83]
["13.11.05","Degasatore ciclico a depressione","Entgasungsanlage mit zyklischem Unterdruck"]
[null,"a) contenuto d'acqua sino a 25 m3 e pressione sino a 4,5 bar","a) Wasserinhalt bis zu 25 m³ und bis zu 4,5 bar Druck","cad","St",7214.97]
[null,"b) contenuto d'acqua sino a 300 m3 e pressione sino a 6 bar","b) Wasserinhalt bis zu 300 m³ und bis zu 6 bar Druck","cad","St",8238.3700000000008]
["13.12","DISPOSITIVI DI SEPARAZIONE IMPURITÀ","SCHMUTZFÄNGER ",null," "]
["13.12.01","Filtro obliquo filettato","Schmutzfänger in Gewindeausführung ",null," "]
[null,"a) 1/2\"","a) 1/2\"","cad","St",38.049999999999997]
[null,"b) 3/4\"","b) 3/4\"","cad","St",42.05]
[null,"c) 1\"","c) 1\"","cad","St",57.06]
[null,"d) 1\"1/4","d) 1\"1/4","cad","St",79.099999999999994]
[null,"e) 1\"1/2","e) 1\"1/2","cad","St",108.13]
[null,"f) 2\"","f) 2\"","cad","St",152.18]
[null,"g) 2\"1/2","g) 2\"1/2","cad","St",178.21]
[null,"h) 3\"","h) 3\"","cad","St",212.25]
["13.12.02","Filtro obliquo flangiato","Schmutzfänger mit Flanschanschluss ",null," "]
[null,"a) DN100 ","a) DN100 ","cad","St",414.48]
[null,"b) DN125 ","b) DN125 ","cad","St",628.37]
[null,"c) DN150 ","c) DN150 ","cad","St",854.54]
["13.12.03","Separatore di impurità filettato","Schlammfang in Gewindeausführung"]
[null,"a) 3/4\"","a) 3/4\"","cad","St",139.18]
[null,"b) 1\"","b) 1\"","cad","St",143.28]
[null,"c) 1\"1/4","c) 1\"1/4","cad","St",187.28]
[null,"d) 1\"1/2","d) 1\"1/2","cad","St",212.87]
["13.12.04","Separatore di microbolle flangiato","Schlammfang mit Flanschanschluss"]
[null,"a) DN50","a) DN50","cad","St",1293.58]
[null,"b) DN65 ","b) DN65 ","cad","St",1354.98]
[null,"c) DN80 ","c) DN80 ","cad","St",1895.34]
[null,"d) DN100 ","d) DN100 ","cad","St",1988.47]
[null,"e) DN125 ","e) DN125 ","cad","St",3756.9]
[null,"f) DN150 ","f) DN150 ","cad","St",3908.36]
[null,"g) DN200","g) DN200","cad","St",5792.44]
["13.13","DISPOSITIVI DI ADDOLCIMENTO","WASSERENTHÄRTUNG"]
[null,"a) Dispositivo di addolcimento a cartuccia","a) Wasserenthärtung mittels Kartusche","cad","St",338.03]
["13.14","DISPOSITIVI DI REGOLAZIONE","REGELGERÄTE"]
["13.14.01","Valvola miscelatrice motorizzata a tre vie filettata","Dreiwegmischer in Gewindeausführung, motorisiert "]
[null,"a) DN15","a) DN15","cad","St",791.09]
[null,"b) DN20","b) DN20","cad","St",841.23]
[null,"c) DN25","c) DN25","cad","St",891.38]
[null,"d) DN32","d) DN32","cad","St",920.04]
["13.14.02","Valvola miscelatrice motorizzata a tre vie flangiata","Dreiwegmischer mit Flanschanschlüssen, motorisiert"]
[null,"a) DN40","a) DN40","cad","St",996.79]
[null,"b) DN50","b) DN50","cad","St",1060.24]
[null,"c) DN65 ","c) DN65 ","cad","St",1200.45]
[null,"d) DN80 ","d) DN80 ","cad","St",2042.71]
[null,"e) DN100 ","e) DN100 ","cad","St",2570.17]
[null,"f) DN125 ","f) DN125 ","cad","St",2909.12]
[null,"g) DN150 ","g) DN150 ","cad","St",3254.21]
["13.14.03","Valvola con testa termostatica per radiatori","Thermostatventil mit Thermostatkopf für Heizkörper"]
[null,"a) 3/8\"","a) 3/8\"","cad","St",53.22]
[null,"b) 1/2\"","b) 1/2\"","cad","St",54.55]
[null,"c) 3/4\"","c) 3/4\"","cad","St",59.87]
[null,"d) 1\"","d) 1\"","cad","St",89.14]
["13.14.04","Valvola di taratura della portata filettata","Strangregulierventil zur Volumenstromregelung, in Gewindeausführung "]
[null,"a) 1/2\"","a) 1/2\"","cad","St",54.04]
[null,"b) 3/4\"","b) 3/4\"","cad","St",57.72]
[null,"c) 1\"","c) 1\"","cad","St",72.459999999999994]
[null,"d) 1\"1/4","d) 1\"1/4","cad","St",100.7]
[null,"e) 1\"1/2","e) 1\"1/2","cad","St",111.76]
["13.14.05","Valvola di taratura della portata flangiata","Strangregulierventil zur Volumenstromregelung, mit Flanschanschlüsse"]
[null,"a) DN50","a) DN50","cad","St",354.1]
[null,"b) DN65 ","b) DN65 ","cad","St",455.21]
[null,"c) DN80 ","c) DN80 ","cad","St",694.27]
[null,"d) DN100 ","d) DN100 ","cad","St",982.26]
[null,"e) DN125 ","e) DN125 ","cad","St",1315.07]
[null,"f) DN150 ","f) DN150 ","cad","St",1697]
["13.14.06","Regolatore di pressione differenziale con valvola di misurazione","Automatischer Differenzdruckregler mit Strangregulierventil, in Gewindeausführung"]
[null,"a) 1/2\"","a) 1/2\"","cad","St",221.05]
[null,"b) 3/4\"","b) 3/4\"","cad","St",260.35000000000002]
[null,"c) 1\"","c) 1\"","cad","St",318.07]
[null,"d) 1\"1/4","d) 1\"1/4","cad","St",439.65]
[null,"e) 1\"1/2","e) 1\"1/2","cad","St",474.04]
["13.14.07","Valvola di zona a due vie","2-Wege-Zonenventil"]
[null,"a) 1/2\"","a) 1/2\"","cad","St",177.87]
[null,"b) 3/4\"","b) 3/4\"","cad","St",177.87]
[null,"c) 1\"","c) 1\"","cad","St",183.5]
["13.14.08","Cronotermostato giornaliero a batteria","Tageszeitschaltuhr mit Batterie ","cad","St",153.51]
["13.15","CONTATORI DI CALORE AD ULTRASUONI","ULTRASCHALL-WÄRMEMENGENZÄHLER"]
["13.15.01","Contatore di calore filettato","Wärmemengenzähler mit Gewindeanschlüssen"]
[null,"a) Qn 0,6 m3/h - 3/4\"","a) Qn 0,6 m3/h - 3/4\"","cad","St",557.45000000000005]
[null,"b) Qn 1,5 m3/h - 3/4\"","b) Qn 1,5 m3/h - 3/4\"","cad","St",557.45000000000005]
[null,"c) Qn 2,5 m3/h - 1\"","c) Qn 2,5 m3/h - 1\"","cad","St",576.07000000000005]
[null,"d) Qn 3,5 m3/h - 1\"1/4","d) Qn 3,5 m3/h - 1\"1/4","cad","St",1098.93]
[null,"e) Qn 6,0 m3/h - 1\"1/4","e) Qn 6,0 m3/h - 1\"1/4","cad","St",1180.08]
[null,"f) Qn 10,0 m3/h - 2\"","f) Qn 10,0 m3/h - 2\"","cad","St",1339.73]
["13.15.02","Contatore di calore flangiato","Wärmemengenzähler mit Flanschanschlüssen",null," "]
[null,"a) Qn 3,5 m3/h - DN25","a) Qn 3,5 m3/h - DN25","cad","St",1442.89]
[null,"b) Qn 6,0 m3/h - DN25","b) Qn 6,0 m3/h - DN25","cad","St",1538.68]
[null,"c) Qn 10,0 m3/h - DN40","c) Qn 10,0 m3/h - DN40","cad","St",1840.79]
[null,"d) Qn 15,0 m3/h - DN50","d) Qn 15,0 m3/h - DN50","cad","St",2228.4499999999998]
[null,"e) Qn 25,0 m3/h - DN65","e) Qn 25,0 m3/h - DN65","cad","St",2650.5]
[null,"f) Qn 40,0 m3/h - DN80","f) Qn 40,0 m3/h - DN80","cad","St",2867.46]
[null,"g) Qn 60,0 m3/h - DN100","g) Qn 60,0 m3/h - DN100","cad","St",3829.87]
["13.16","COLLETTORI","HEIZVERTEILER ",null," "]
["13.16.01","Collettori di zona","Zonenheizverteiler  ",null," "]
[null,"a) 1\" - 3 attacchi","a) 1\" - 3 Anschlüsse","cad","St",423.69]
[null,"b) 1\" - 4 attacchi","b) 1\" - 4 Anschlüsse","cad","St",466.67]
[null,"c) 1\" - 5 attacchi","c) 1\" - 5 Anschlüsse","cad","St",508.43]
[null,"d) 1\" - 6 attacchi","d) 1\" - 6 Anschlüsse","cad","St",606.66999999999996]
[null,"e) 1\" - 7 attacchi","e) 1\" - 7 Anschlüsse","cad","St",650.88]
[null,"f) 1\" - 8 attacchi","f) 1\" - 8 Anschlüsse","cad","St",693.87]
[null,"g) 1\"1/4 - 9 attacchi","g) 1\"1/4 - 9 Anschlüsse","cad","St",739.3]
[null,"h) 1\"1/4 - 10 attacchi","h) 1\"1/4 - 10 Anschlüsse","cad","St",781.06]
[null,"i) 1\"1/4 - 11 attacchi","i) 1\"1/4 - 11 Anschlüsse","cad","St",878.08]
[null,"l) 1\"1/4 - 12 attacchi","l) 1\"1/4 - 12 Anschlüsse","cad","St",923.52]
[null,"m) 1\"1/4 - 13 attacchi","m) 1\"1/4 - 13 Anschlüsse","cad","St",965.27]
[null,"n) 1\"1/4 - 14 attacchi","n) 1\"1/4 - 14 Anschlüsse","cad","St",1010.71]
["13.17","CASSETTE PER UNITÀ ABITATIVA","WANDEINBAUKASTEN IN DER WOHNEINHEIT ",null," "]
["13.17.01","Cassetta vuota, h 500 mm, prof. 110÷140 mm","Leerer Wandeinbaukasten, h 500 mm, Tiefe 110÷140 mm ",null," "]
[null,"a) larghezza 400 mm","a) Breite 400 mm","cad","St",163.74]
[null,"b) larghezza 600 mm","b) Breite 600 mm","cad","St",189.33]
[null,"c) larghezza 800 mm","c) Breite 800 mm","cad","St",219.01]
[null,"d) larghezza 1000 mm","d) Breite 1000 mm","cad","St",254.83]
[null,"e) larghezza 1200 mm","e) Breite 1200 mm","cad","St",291.67]
["13.18","RADIATORI","HEIZKÖRPER"]
["13.18.01","Radiatori tubolari","Röhrenheizkörper "]
[null,"a) 2 colonne, h 600 mm","a) 2 Röhren, h 600 mm ","cad","St",17.98]
[null,"b) 2 colonne, h 900 mm","b) 2 Röhren, h 900 mm","cad","St",19.53]
[null,"c) 2 colonne, h 1800 mm","c) 2 Röhren, h 1800 mm","cad","St",41.75]
[null,"d) 2 colonne, h 2000 mm","d) 2 Röhren, h 2000 mm","cad","St",45.05]
[null,"e) 3 colonne, h 600 mm","e) 3 Röhren, h 600 mm","cad","St",18.600000000000001]
[null,"f) 3 colonne, h 900 mm","f) 3 Röhren, h 900 mm","cad","St",20.78]
[null,"g) 3 colonne, h 1800 mm","g) 3 Röhren, h 1800 mm","cad","St",50.66]
[null,"h) 3 colonne, h 2000 mm","h) 3 Röhren, h 2000 mm","cad","St",61.08]
["13.18.02","Radiatori da bagno scaldasalviette","Badeheizkörper als Handtuchhalter"]
[null,"a) h 1100 mm, larghezza 480 mm","a) h 1100 mm, Breite 480 mm","cad","St",216.76]
[null,"b) h 1100 mm, larghezza 580 mm","b) h 1100 mm, Breite 580 mm","cad","St",216.76]
[null,"c) h 1450 mm, larghezza 480 mm","c) h 1450 mm, Breite 480 mm","cad","St",235.59]
[null,"d) h 1450 mm, larghezza 580 mm","d) h 1450 mm, Breite 580 mm","cad","St",235.59]
[null,"e) h 1720 mm, larghezza 480 mm","e) h 1720 mm, Breite 480 mm","cad","St",254.42]
[null,"f) h 1720 mm, larghezza 580 mm","f) h 1720 mm, Breite 580 mm","cad","St",254.42]
["13.19","PANNELLI RADIANTI A PAVIMENTO","BODENHEIZUNG ",null," "]
["13.19.01","Lastra di isolazione termica con strato protettivo + eventuale rete","Wärmedämmplatte mit Schutzfolie und eventuellem Gitter ",null," "]
[null,"a) Res. termica 0,75 m²•K/W","a) Wärmedurchgangswiderstand  0,75 m²•K/W ","m²","m²",25.59]
[null,"b) Res. termica 1,25 m²•K/W","b) Wärmedurchgangswiderstand  1,25 m²•K/W","m²","m²",28.66]
[null,"c) Res. termica 1,50 m²•K/W","c) Wärmedurchgangswiderstand  1,50 m²•K/W","m²","m²",30.7]
[null,"d) Res. termica 2,00 m²•K/W","d) Wärmedurchgangswiderstand  2,00 m²•K/W","m²","m²",32.75]
[null,"e) Res. termica 2,25 m²•K/W","e) Wärmedurchgangswiderstand  2,25 m²•K/W","m²","m²",33.770000000000003]
[null,"f) Res. termica 2,50 m²•K/W","f) Wärmedurchgangswiderstand  2,50 m²•K/W","m²","m²",35.82]
["13.19.02","Sistema riscaldamento a pavimento","Bodenheizungssystem"]
[null,"a) passo 5 cm","a) Verlegeabstand 5 cm ","m²","m²",56.29]
[null,"b) passo 10 cm","b) Verlegeabstand 10 cm","m²","m²",33.770000000000003]
[null,"c) passo 15 cm","c) Verlegeabstand 15 cm","m²","m²",23.54]
["13.19.03","Dispositivo di regolazione della temperatura","Regelventil mit Feinregulierung der Temperatur","cad","St",184.21]
["13.20","SCAMBIATORI DI CALORE","WÄRMETAUSCHER"]
["13.20.01","Scambiatore h 60÷70 cm, isolato","Wärmetauscher, Höhe 60÷70 cm, isoliert"]
[null,"a) 20 piastre","a) 20 Platten ","cad","St",1494.16]
[null,"b) 30 piastre","b) 30 Platten","cad","St",1854.4]
[null,"c) 40 piastre","c) 40 Platten","cad","St",2214.64]
[null,"d) 50 piastre","d) 50 Platten","cad","St",2563.62]
[null,"e) 60 piastre","e) 60 Platten","cad","St",3047.69]
[null,"f) 70 piastre","f) 70 Platten","cad","St",3299.44]
[null,"g) 80 piastre","g) 80 Platten","cad","St",3659.68]
[null,"h) 90 piastre","h) 90 Platten","cad","St",4053.69]
["13.21","PANNELLI SOLARI TERMICI","THERMISCHE SOLARPANEELE ",null," "]
["13.21.01","Pannello solare per montaggio libero o sopra falda, completo di set di montaggio e di collegamento","Solarpaneel zur Freiaufstellung oder Aufdachmontage, komplett mit Montage- und Verbindungsset ",null," "]
[null,"a) pannelli sino a 10 m2 in totale","a) Solarpaneele bis zu 10 m2 insgesamt","m²","m²",665.21]
[null,"b) pannelli sino a 20 m2 in totale","b) Solarpaneele bis zu 20 m2 insgesamt","m²","m²",614.04]
[null,"c) pannelli oltre 20 m2 in totale","c) Solarpaneele über 20 m2 insgesamt","m²","m²",562.87]
["13.21.02","Pannello solare per montaggio ad incasso raso falda, completo di set di montaggio e di collegamento","Solarpaneel zur Indachmontage, komplett mit Montage- und Verbindungsset"]
[null,"a) pannelli sino a 10 m2 in totale","a) Solarpaneele bis zu 10 m2 insgesamt","m²","m²",634.51]
[null,"b) pannelli sino a 20 m2 in totale","b) Solarpaneele bis zu 20 m2 insgesamt","m²","m²",583.34]
[null,"c) pannelli oltre 20 m2 in totale","c) Solarpaneele über 20 m2 insgesamt","m²","m²",532.16999999999996]
["13.22","COMPONENTI PER IMPIANTI SOLARI","BESTANDTEILE FÜR SOLARANLAGEN"]
["13.22.01","Manometro inox 0-4 bar (vedi anche cod. 13.B17.1.11)","Manometer in INOX 0-4 bar (siehe auch Kod. 13.B17.1.11)","cad","St",115.34]
["13.22.02","Valvola di sicurezza (vedi anche cod. 13.B17.1.13)","Sicherheitsventil (siehe auch Kod. 13.B17.1.13)"]
[null,"a) 1/2\" x 3/4\", pot. di scarico 50 kW","a) 1/2\" x 3/4\", Abflussleistung 50 kW","cad","St",45.03]
[null,"b) 3/4\" x 1\", pot. di scarico 100 kW","b) 3/4\" x 1\", Abflussleistung 100 kW","cad","St",59.36]
["13.22.03","Vaso di espansione, membrana intercambiabile (vedi anche cod. 13.B17.1.15)","Ausdehnungsgefäß mit austauschbarer Membrane (siehe auch Kod. 13.B17.1.15)"]
[null,"a) 25 litri","a) 25 l.","cad","St",95.99]
[null,"b) 40 litri","b) 40 l.","cad","St",119.64]
[null,"c) 60 litri","c) 60 l.","cad","St",142.15]
[null,"d) 80 litri","d) 80 l.","cad","St",184.93]
[null,"e) 100 litri","e) 100 l.","cad","St",243.47]
[null,"f) 200 litri","f) 200 l.","cad","St",390.94]
[null,"g) 300 litri","g) 300 l.","cad","St",571.05999999999995]
["13.22.04","Valvola di controllo per vaso di espansione","Absperrkontrollhahn für Ausdehnungsgefäß"]
[null,"a) 3/4\"","a) 3/4\"","cad","St",28.25]
[null,"b) 1\"","b) 1\"","cad","St",40.53]
[null,"c) 1\"1/4","c) 1\"1/4","cad","St",72.459999999999994]
["13.22.05","Pompa di carico manuale con due intercettazioni per carico/scarico","Handpumpe zur Füllung mit 2 Absperrhähnen für Füllung und Entleerung","cad","St",195.26]
["13.22.06","Pompa di circolazione, due velocità, attacchi filettati, con guscio di coibentazione","Umwälzpumpe mit 2 Geschwindigkeiten, Gewindeanschlüssen und Isolierschalen ",null," "]
[null,"a) 1\", prevalenza max 60 kPa","a) 1\", Förderdruck max. 60 kPa","cad","St",343.86]
[null,"b) 1\", prevalenza max 80 kPa","b) 1\", Förderdruck max. 80 kPa","cad","St",626.32000000000005]
[null,"c) 1\"1/2, prevalenza max 40 kPa","c) 1\"1/2, Förderdruck max. 40 kPa","cad","St",325.44]
[null,"d) 1\"1/2, prevalenza max 60 kPa","d) 1\"1/2, Förderdruck max. 60 kPa","cad","St",368.42]
[null,"e) 1\"1/2, prevalenza max 120 kPa","e) 1\"1/2, Förderdruck max. 120 kPa","cad","St",650.88]
["13.22.07","Valvola di bilanciamento con flussometro, lettura in bypass, con guscio di coibentazione","Durchflussmengenregler mit „Durchflussanzeige“, Ablesung im Bypass, mit Isolierschalen"]
[null,"a) 3/4\", 2÷7 l/min","a) 3/4\", 2÷7 l/min","cad","St",114.42]
[null,"b) 3/4\", 3÷10 l/min","b) 3/4\", 3÷10 l/min","cad","St",114.42]
[null,"c) 3/4\", 7÷28 l/min","c) 3/4\", 7÷28 l/min","cad","St",114.42]
[null,"d) 1\", 10÷40 l/min","d) 1\", 10÷40 l/min","cad","St",130.18]
["13.22.08","Valvole di intercettazione","Absperrventile"]
[null,"a) Rubinetto in ottone 3/8\" MF","a) Absperrhahn aus Messing 3/8\" MF","cad","St",13.51]
[null,"b) Rubinetto in ottone 1/2\" MF","b) Absperrhahn aus Messing 1/2\" MF","cad","St",22.11]
[null,"c) Valvola in acciaio inox 1/2\" FF","c) Absperrventil aus Edelstahl 1/2\" FF","cad","St",40.53]
[null,"d) Valvola in acciaio inox 3/4\" FF","d) Absperrventil aus Edelstahl 3/4\" FF","cad","St",58.95]
[null,"e) Valvola in acciaio inox 1\" FF","e) Absperrventil aus Edelstahl 1\" FF","cad","St",76.14]
["13.22.09","Liquido antigelo premiscelato","Vorgemischtes Frostschutzmittel","lt","lt",6.14]
["13.22.10","Regolatore digitale completamente programmabile per tutti i tipi di utilizzo nei sistemi solari, con controllo temperatura diiferenziale e massima, tempo di funzionamento, ecc.","Digitaler Solarregler, komplett programmierbar für alle Arten der Nutzung in Solaranlagen, mittels Überwachung der Differenz- und Maximaltemperatur, Funktionszeit, usw.","cad","St",1099.1300000000001]
["13.22.11","Tubazione in rame nudo","Kupferrohr, blank"]
[null,"a) 10 x 1 mm","a) 10 x 1 mm","m","m",8.51]
[null,"b) 12 x 1 mm","b) 12 x 1 mm","m","m",9.68]
[null,"c) 15 x 1 mm","c) 15 x 1 mm","m","m",11.51]
[null,"d) 18 x 1 mm","d) 18 x 1 mm","m","m",12.81]
[null,"e) 22 x 1 mm","e) 22 x 1 mm","m","m",25.98]
[null,"f) 28 x 1 mm","f) 28 x 1 mm","m","m",35.340000000000003]
[null,"g) 35 x 1,5","g) 35 x 1,5","m","m",46.05]
[null,"h) 42 x 1,5","h) 42 x 1,5","m","m",52.21]
["13.22.12","Tubazione in rame preisolata 20 mm con cavo sonda","Vorisoliertes Kupferrohr, Stärke 20 mm, mit integriertem Sondenkabel"]
[null,"a) 15 x 1 mm","a) 15 x 1 mm","m","m",20.3]
[null,"b) 18 x 1 mm","b) 18 x 1 mm","m","m",23.47]
[null,"c) 22 x 1 mm","c) 22 x 1 mm","m","m",32.43]
["13.23","COMPONENTI PER IMPIANTI GAS METANO","BAUTEILE FÜR GASANLAGEN"]
["13.23.01","Tubazione in acciaio zincato UNI EN 10255","Verzinktes Stahlrohr nach UNI EN 10255"]
[null,"a) 1/2\"","a) 1/2\"","m","m",17.670000000000002]
[null,"b) 3/4\"","b) 3/4\"","m","m",23.46]
[null,"c) 1\"","c) 1\"","m","m",29.01]
[null,"d) 1\"1/4","d) 1\"1/4","m","m",33.29]
[null,"e) 1\"1/2","e) 1\"1/2","m","m",37.020000000000003]
[null,"f) 2\"","f) 2\"","m","m",44.67]
[null,"g) 2\"1/2","g) 2\"1/2","m","m",63.97]
[null,"h) 3\"","h) 3\"","m","m",81.99]
[null,"i) 4\"","i) 4\"","m","m",102.77]
["13.23.02","Tubazione in acciaio saldato UNI EN 10208-1, rivestito in PE secondo UNI 9099 o UNI 10191","Geschweißte Stahlrohre nach UNI EN 10208-1, mit PE-Umhüllung nach UNI 9099 oder UNI 10191 ",null," "]
[null,"a) 3/4\"","a) 3/4\"","m","m",26.86]
[null,"b) 1\"","b) 1\"","m","m",31.01]
[null,"c) 1\"1/4","c) 1\"1/4","m","m",40.83]
[null,"d) 1\"1/2","d) 1\"1/2","m","m",42.22]
[null,"e) 2\"","e) 2\"","m","m",54.5]
[null,"f) 2\"1/2","f) 2\"1/2","m","m",65.7]
[null,"g) 3\"","g) 3\"","m","m",92.57]
[null,"h) 4\"","h) 4\"","m","m",108.53]
["13.23.03","Tubazione in polietilene alta densità PE80 SDR11 UNI EN 1555","Polyäthylenrohre mit hoher Dichte PE80 - SDR11 nach UNI EN 1555 ",null," "]
[null,"a) 20x3,0","a) 20x3,0","m","m",6.3]
[null,"b) 25x3,0","b) 25x3,0","m","m",7.5]
[null,"c) 32x3,0","c) 32x3,0","m","m",8.64]
[null,"d) 40x3,7","d) 40x3,7","m","m",10.88]
[null,"e) 50x4,6","e) 50x4,6","m","m",12.92]
[null,"f) 63x5,8","f) 63x5,8","m","m",13.99]
[null,"g) 75x6,9","g) 75x6,9","m","m",15.34]
[null,"h) 90x8,2","h) 90x8,2","m","m",18.96]
[null,"i) 110x10,0","i) 110x10,0","m","m",27.06]
[null,"l) 125x11,4","l) 125x11,4","m","m",32.67]
["13.23.04","Valvola a sfera UNI EN 331","Kugelhahn - Vollstromventil nach UNI EN 331 ",null," "]
[null,"a) 1/2\"","a) 1/2\"","cad","St",23.47]
[null,"b) 3/4\"","b) 3/4\"","cad","St",30.91]
[null,"c) 1\"","c) 1\"","cad","St",38.69]
[null,"d) 1\"1/4","d) 1\"1/4","cad","St",49.26]
[null,"e) 1\"1/2","e) 1\"1/2","cad","St",59.3]
[null,"f) 2\"","f) 2\"","cad","St",80.75]
[null,"g) 2\"1/2","g) 2\"1/2","cad","St",126.85]
[null,"h) 3\"","h) 3\"","cad","St",199.84]
[null,"i) 4\"","i) 4\"","cad","St",345.41]
["13.23.05","Giunto dielettrico per gas UNI 10284 o 10285","Dielektrisches Zwischenstück für Gas nach UNI 10284 oder 10285"]
[null,"a) 1/2\"","a) 1/2\"","cad","St",18.27]
[null,"b) 3/4\"","b) 3/4\"","cad","St",19.04]
[null,"c) 1\"","c) 1\"","cad","St",21.95]
[null,"d) 1\"1/4","d) 1\"1/4","cad","St",29.32]
[null,"e) 1\"1/2","e) 1\"1/2","cad","St",34.229999999999997]
[null,"f) 2\"","f) 2\"","cad","St",44.82]
[null,"g) 2\"1/2","g) 2\"1/2","cad","St",104.08]
[null,"h) 3\"","h) 3\"","cad","St",131.51]
[null,"i) 4\"","i) 4\"","cad","St",209.9]
["13.23.06","Giunto di transizione polietilene-acciaio UNI 9736 interamente rivestito in PE","Übergangsstück von PE auf Stahl nach UNI 9736, komplett PE-Umhüllung"]
[null,"a) 25 x 3/4\"","a) 25 x 3/4\"","cad","St",35.770000000000003]
[null,"b) 32 x 1\"","b) 32 x 1\"","cad","St",41.29]
[null,"c) 40 x 1\"1/4","c) 40 x 1\"1/4","cad","St",44.36]
[null,"d) 50 x 1\"1/2","d) 50 x 1\"1/2","cad","St",46.82]
[null,"e) 63 x 2\"","e) 63 x 2\"","cad","St",55.72]
[null,"f) 75 x 2\"1/2","f) 75 x 2\"1/2","cad","St",183.6]
[null,"g) 90 x 3\"","g) 90 x 3\"","cad","St",220.9]
[null,"h) 110 x 4\"","h) 110 x 4\"","cad","St",233.49]
["13.23.07","Valvola di intercettazione del combustibile omologata ISPESL","Brennstoffunterbrechungsventil, mit INAIL (ISPESL) Zulassung"]
[null,"a) 1/2\"","a) 1/2\"","cad","St",251.3]
[null,"b) 3/4\"","b) 3/4\"","cad","St",341.41]
[null,"c) 1\"","c) 1\"","cad","St",413.45]
[null,"d) 1\"1/4","d) 1\"1/4","cad","St",467.49]
[null,"e) 1\"1/2","e) 1\"1/2","cad","St",515.9]
[null,"f) 2\"","f) 2\"","cad","St",678]
[null,"g) DN65 ","g) DN65 ","cad","St",1249.78]
[null,"h) DN80 ","h) DN80 ","cad","St",1460.29]
[null,"i) DN100 ","i) DN100 ","cad","St",2156]
["13.23.08","Stabilizzatore di pressione con filtro","Gasdruckstabilisator mit Gasfilter "]
[null,"a) 1/2\"","a) 1/2\"","cad","St",71.84]
[null,"b) 3/4\"","b) 3/4\"","cad","St",71.84]
[null,"c) 1\"","c) 1\"","cad","St",71.84]
[null,"d) 1\"1/4","d) 1\"1/4","cad","St",164.56]
[null,"e) 1\"1/2","e) 1\"1/2","cad","St",164.56]
[null,"f) 2\"","f) 2\"","cad","St",272.63]
[null,"g) DN65 ","g) DN65 ","cad","St",1041.82]
[null,"h) DN80 ","h) DN80 ","cad","St",1087.26]
[null,"i) DN100 ","i) DN100 ","cad","St",2212.1799999999998]
["13.23.09","Giunto di dilatazione antivibrante","Schwingungskompensator"]
[null,"a) 1/2\"","a) 1/2\"","cad","St",28.71]
[null,"b) 3/4\"","b) 3/4\"","cad","St",35.92]
[null,"c) 1\"","c) 1\"","cad","St",41.29]
[null,"d) 1\"1/4","d) 1\"1/4","cad","St",62.79]
[null,"e) 1\"1/2","e) 1\"1/2","cad","St",78.900000000000006]
[null,"f) 2\"","f) 2\"","cad","St",109.45]
[null,"g) DN65 ","g) DN65 ","cad","St",137.44]
[null,"h) DN80 ","h) DN80 ","cad","St",1460.29]
[null,"i) DN100 ","i) DN100 ","cad","St",2156]
["13.23.10","Manometri","Manometer"]
[null,"a) Rubinetto portamanometro 3/8\"","a) Dreiweg-Prüfhahn mit Manometeraufnahme 3/8\"","cad","St",24.41]
[null,"b) Manometro D80 mm, 3/8\", 0-60 hPa","b) Manometer D80 mm, 3/8\", 0-60 hPa","cad","St",82.74]
[null,"c) Manometro D80 mm, 3/8\", 0-100 hPa","c) Manometer D80 mm, 3/8\", 0-100 hPa","cad","St",82.74]
["13.24","COMPONENTI PER EVACUAZIONE FUMI","BAUTEILE FÜR ABGASSYSTEME ",null," "]
["13.24.01","Acciaio inox monoparete per canale da fumo","Einwandiges Rauchgasrohr aus Edelstahl als Kaminanbindungsleitung ",null," "]
[null,"a) Ø80 mm","a) Ø80 mm","m","m",86.89]
[null,"b) Ø100 mm","b) Ø100 mm","m","m",148.29]
[null,"c) Ø130 mm","c) Ø130 mm","m","m",156.88999999999999]
[null,"d) Ø150 mm","d) Ø150 mm","m","m",162.41]
[null,"e) Ø180 mm","e) Ø180 mm","m","m",193.12]
[null,"f) Ø200 mm","f) Ø200 mm","m","m",198.64]
[null,"g) Ø250 mm","g) Ø250 mm","m","m",235.18]
[null,"h) Ø300 mm","h) Ø300 mm","m","m",299.64999999999998]
["13.24.02","Acciaio inox monoparete per camino","Einwandiges Rauchgasrohr aus Edelstahl als Kamin"," "]
[null,"a) Ø80 mm","a) Ø80 mm","m","m",73.98]
[null,"b) Ø100 mm","b) Ø100 mm","m","m",110.24]
[null,"c) Ø130 mm","c) Ø130 mm","m","m",111.56]
[null,"d) Ø150 mm","d) Ø150 mm","m","m",119.52]
[null,"e) Ø180 mm","e) Ø180 mm","m","m",146.49]
[null,"f) Ø200 mm","f) Ø200 mm","m","m",170.51]
[null,"g) Ø250 mm","g) Ø250 mm","m","m",202.79]
[null,"h) Ø300 mm","h) Ø300 mm","m","m",235.05]
["13.24.03","Acciaio inox doppiaparete, isolazione con R 0,5 m²•K/W, per canale da fumo","Doppelwandiges Rauchgasrohr aus Edelstahl, mit Isolierung R 0,5 m²•K/W, als Kaminanbindungsleitung"]
[null,"a) Ø80 mm","a) Ø80 mm","m","m",237.94]
[null,"b) Ø100 mm","b) Ø100 mm","m","m",241.32]
[null,"c) Ø130 mm","c) Ø130 mm","m","m",264.33999999999997]
[null,"d) Ø150 mm","d) Ø150 mm","m","m",303.02999999999997]
[null,"e) Ø180 mm","e) Ø180 mm","m","m",355.22]
[null,"f) Ø200 mm","f) Ø200 mm","m","m",377.94]
[null,"g) Ø250 mm","g) Ø250 mm","m","m",485.4]
[null,"h) Ø300 mm","h) Ø300 mm","m","m",635.22]
["13.24.04","Acciaio inox doppiaparete, isolazione con R 0,5 m²•K/W, per camino","Doppelwandiges Rauchgasrohr aus Edelstahl, mit Isolierung R 0,5 m²•K/W, als Kamin"]
[null,"a) Ø80 mm","a) Ø80 mm","m","m",212.81]
[null,"b) Ø100 mm","b) Ø100 mm","m","m",214.28]
[null,"c) Ø130 mm","c) Ø130 mm","m","m",228.42]
[null,"d) Ø150 mm","d) Ø150 mm","m","m",262.77]
[null,"e) Ø180 mm","e) Ø180 mm","m","m",297.10000000000002]
[null,"f) Ø200 mm","f) Ø200 mm","m","m",331.74]
[null,"g) Ø250 mm","g) Ø250 mm","m","m",442.56]
[null,"h) Ø300 mm","h) Ø300 mm","m","m",541.14]
["14","14. IMPIANTO SANITARIO","14. SANITÄRANLAGE"]
["14.01","TUBAZIONI ","ROHRLEITUNGEN"," "," "]
["14.01.01","Tubazione in acciaio inox per acqua potabile ","Edelstahlrohrleitungen für Trinkwasser"," "," "]
[null,"a) ø 15x1,0","a) ø 15x1,0","m","m",14.31]
[null,"b) ø 18x1,0","b) ø 18x1,0","m","m",17.149999999999999]
[null,"c) ø 22x1,2","c) ø 22x1,2","m","m",23.23]
[null,"d) ø 28x1,2","d) ø 28x1,2","m","m",28.96]
[null,"e) ø 35x1,5","e) ø 35x1,5","m","m",42.47]
[null,"f) ø 42x1,5","f) ø 42x1,5","m","m",52.3]
[null,"g) ø 54x1,5","g) ø 54x1,5","m","m",67.34]
[null,"h) ø 76x2,0","h) ø 76x2,0","m","m",137.24]
[null,"i) ø 88,9x2,0","i) ø 88,9x2,0","m","m",156.99]
[null,"l) ø 108x2,0","l) ø 108x2,0","m","m",189.12]
["14.01.02","Tubazione in polietilene reticolato tipo PE-Xa per acqua potabile ","Vernetzte Polyäthylen-Rohrleitungen, Typ PE-Xa für Trinkwasser"," "," "]
[null,"a) ø 16 x 2,2 PN10","a) ø 16 x 2,2 PN10","m","m",10.11]
[null,"b) ø 20 x 2,8 PN10","b) ø 20 x 2,8 PN10","m","m",12.32]
[null,"c) ø 25 x 3,5 PN10","c) ø 25 x 3,5 PN10","m","m",17.89]
[null,"d) ø 32 x 4,4 PN10","d) ø 32 x 4,4 PN10","m","m",26.85]
[null,"e) ø 40 x 5,5 PN10","e) ø 40 x 5,5 PN10","m","m",39.76]
[null,"f) ø 50 x 6,9 PN10","f) ø 50 x 6,9 PN10","m","m",52.35]
[null,"g) ø 63 x 8,6 PN10","g) ø 63 x 8,6 PN10","m","m",67.849999999999994]
["14.01.03","Tubazione in ghisa per scarico acque reflue ","Abflussleitungen aus Schleuderguss"," "]
[null,"a) ø 80","a) ø 80","m","m",39.44]
[null,"b) ø 100","b) ø 100","m","m",47.51]
[null,"c) ø 125","c) ø 125","m","m",65.23]
[null,"d) ø 150","d) ø 150","m","m",81.64]
[null,"e) ø 200","e) ø 200","m","m",166.19]
["14.01.04","Tubazione in polipropilene per scarichi a pavimento ","Abflussleitungen in Polypropylen für Bodenabläufe (horizontale Verläufe)",null," "]
[null,"a) ø 50","a) ø 50","m","m",10.38]
[null,"b) ø 90","b) ø 90","m","m",13.28]
[null,"c) ø 100","c) ø 100","m","m",14.84]
["14.01.05","Tubazione in polipropilene per scarichi vertica","Abflussleitungen in Polypropylen für Fallstränge"]
[null,"a) ø 80","a) ø 80","m","m",27.89]
[null,"b) ø 100","b) ø 100","m","m",37.5]
[null,"c) ø 125","c) ø 125","m","m",48.81]
["14.02","ISOLAMENTO TERMICO","WÄRMEISOLIERUNG  ",null," "]
["14.02.01","Isolamento termico per tubi in vista, in poliuretano espanso (a cellule chiuse per acqua fredda), con guaina esterna di protezione ","Wärmeisolierungen für frei verlegte Rohrleitungen, in expandiertem Polyurethan (mit geschlossenen Zellen für Kaltwasser) mit externer Schutzhülle ",null," "]
[null,"a) spessore 20, diam. 1/2\"","a) Stärke 20, Durchmesser 1/2\"","m","m",13.1]
[null,"b) spessore 30, diam. 3/4\"","b) Stärke 30, Durchmesser 3/4\"","m","m",15.17]
[null,"c) spessore 30, diam. 1\"","c) Stärke 30, Durchmesser 1\"","m","m",17.420000000000002]
[null,"d) spessore 30, diam. 1\"1/4","d) Stärke 30, Durchmesser 1\"1/4","m","m",21.25]
[null,"e) spessore 40, diam. 1\"1/2","e) Stärke 40, Durchmesser 1\"1/2","m","m",25.48]
[null,"f) spessore 40, diam. 2\"","f) Stärke 40, Durchmesser 2\"","m","m",28.03]
[null,"g) spessore 50, diam. 2\"1/2","g) Stärke 50, Durchmesser 2\"1/2","m","m",63.57]
[null,"h) spessore 60, diam. 3\"","h) Stärke 60, Durchmesser 3\"","m","m",76.099999999999994]
[null,"i) spessore 65, diam. 4\"","i) Stärke 65, Durchmesser 4\"","m","m",83.1]
[null,"l) spessore 65, diam. 5\"","l) Stärke 65, Durchmesser 5\"","m","m",122.6]
[null,"m) spessore 65, diam. 6\"","m) Stärke 65, Durchmesser 6\"","m","m",145.63]
["14.02.02","Isolamento termico per tubi in cavedio, in poliuretano espanso (a cellule chiuse per acqua fredda), con guaina esterna di protezione ","Wärmeisolierung für in Schächten verlegten Rohrleitungen, in expandiertem Polyurethan (mit geschlossenen Zellen für Kaltwasser) mit externer Schutzhülle "]
[null,"a) spessore 10, diam. 3/8\"","a) Stärke 10, Durchmesser 3/8\"","m","m",11.89]
[null,"b) spessore 10, diam. 1/2\"","b) Stärke 10, Durchmesser 1/2\"","m","m",11.89]
[null,"c) spessore 15, diam. 3/4\"","c) Stärke 15, Durchmesser 3/4\"","m","m",12.8]
[null,"d) spessore 15, diam. 1\"","d) Stärke 15, Durchmesser 1\"","m","m",13.63]
[null,"e) spessore 20, diam. 1\"1/4","e) Stärke 20, Durchmesser 1\"1/4","m","m",14.61]
[null,"f) spessore 20, diam. 1\"1/2","f) Stärke 20, Durchmesser 1\"1/2","m","m",15.44]
[null,"g) spessore 20, diam. 2\"","g) Stärke 20, Durchmesser 2\"","m","m",21.14]
[null,"h) spessore 25, diam. 2\"1/2","h) Stärke 25, Durchmesser 2\"1/2","m","m",26.61]
[null,"i) spessore 30, diam. 3\"","i) Stärke 30, Durchmesser 3\"","m","m",31.34]
[null,"l) spessore 30, diam. 4\"","l) Stärke 30, Durchmesser 4\"","m","m",85.32]
[null,"m) spessore 30, diam. 5\"","m) Stärke 30, Durchmesser 5\"","m","m",95.8]
[null,"n) spessore 30, diam. 6\"","n) Stärke 30, Durchmesser 6\"","m","m",105.37]
["14.02.03","Isolamento termico per tubi sotto traccia, in polietilene espanso (a cellule chiuse per acqua fredda), con guaina esterna di protezione ","Wärmeisolierung für Unterputz-Rohrleitungen in expandiertem Polyäthylen (mit geschlossenen Zellen für Kaltwasser) mit externer Schutzhülle"," "]
[null,"a) spessore 9, diam. 3/8\"","a) Stärke 9, Durchmesser 3/8\"","m","m",7.12]
[null,"b) spessore 11, diam. 1/2\"","b) Stärke 11, Durchmesser 1/2\"","m","m",7.12]
[null,"c) spessore 11, diam. 3/4\"","c) Stärke 11, Durchmesser 3/4\"","m","m",7.67]
[null,"d) spessore 11, diam. 1\"","d) Stärke 11, Durchmesser 1\"","m","m",8.17]
[null,"e) spessore 15, diam. 1\"1/4","e) Stärke 15, Durchmesser 1\"1/4","m","m",8.75]
[null,"f) spessore 15, diam. 1\"1/2","f) Stärke 15, Durchmesser 1\"1/2","m","m",9.25]
[null,"g) spessore 15, diam. 2\"","g) Stärke 15, Durchmesser 2\"","m","m",12.67]
[null,"h) spessore 18, diam. 2\"1/2","h) Stärke 18, Durchmesser 2\"1/2","m","m",15.93]
[null,"i) spessore 20, diam. 3\"","i) Stärke 20, Durchmesser 3\"","m","m",18.760000000000002]
[null,"l) spessore 22, diam. 4\"","l) Stärke 22, Durchmesser 4\"","m","m",51.09]
["14.03","DISPOSITIVI DI SICUREZZA","SICHERHEITSVORRICHTUNGEN"," "]
["14.03.01","Valvola di sicurezza a molla, PN10, orifizio 15 mm","Sicherheitsventil federbelastet, PN10, lichte Öffnung 15 mm"," "]
[null,"a) ordinaria, 1/2\"x1/2\"","a) Standard, 1/2\"x1/2\"","cad","St",32.75]
[null,"b) ordinaria, 1\"x1\"1/4","b) Standard, 1\"x1\"1/4","cad","St",39.909999999999997]
["14.04","DISPOSITIVI DI CONTROLLO DEI PARAMETRI DI ESERCIZIO","KONTROLLVORRICHTUNGEN ZUR ÜBERPRÜFUNG DER BETRIEBSWERTE"," "]
["14.04.01","Manometro in acciaio, DN100","Manometer aus Stahl, DN100","cad","St",44.06]
["14.04.02","Termometro in acciaio, DN100","Thermometer aus Stahl, DN100","cad","St",25.2]
["14.05","SISTEMI DI ESPANSIONE","AUSDEHNUNGSGEFÄSSE"," "]
["14.05.01","Vaso di espansione, parti metalliche in acciaio inox, con membrana anti-ristagno d'acqua","Ausdehnungsgefäße, Metallteile in Edelstahl (INOX), mit Schutzmembrane gegen stagnierendes Wasser"," "]
[null,"a) 8 l","a) 8 l","cad","St",130.63999999999999]
[null,"b) 12 l","b) 12 l","cad","St",144.76]
[null,"c) 18 l","c) 18 l","cad","St",161.24]
[null,"d) 25 l","d) 25 l","cad","St",190.66]
[null,"e) 35 l","e) 35 l","cad","St",230.67]
[null,"f) 50 l","f) 50 l","cad","St",306]
[null,"g) 80 l","g) 80 l","cad","St",403.68]
["14.06","ACCUMULATORI DI ACQUA CALDA SANITARIA","WARMWASSERSPEICHER FÜR SANITÄRANLAGE"," "]
["14.06.01","Bollitore in acciaio inox per carico tramite scambiatore esterno, completo di isolazione termica","Boiler aus Edelstahl (INOX) für externer Speicherladung über Wärmetauscher, komplett mit Wärmeisolierung"," "]
[null,"a) 200 l","a) 200 l","cad","St",2063.17]
[null,"b) 300 l","b) 300 l","cad","St",2192.12]
[null,"c) 500 l","c) 500 l","cad","St",2744.76]
[null,"d) 750 l","d) 750 l","cad","St",4028.1]
[null,"e) 1000 l","e) 1000 l","cad","St",4758.8100000000004]
[null,"f) 1500 l","f) 1500 l","cad","St",8179.01]
["14.07","VALVOLE DI INTERCETTAZIONE E DI RITEGNO","KUGELHAHN-VOLLSTROMVENTILE UND RÜCKSCHLAGVENTILE"," "]
["14.07.01","Valvola di intercettazione omologata per acqua potabile","Kugelhahn-Vollstromventil für Trinkwasser zugelassen "," "]
[null,"a) a sfera, 1/2\"","a) Kugelhahn, 1/2\"","cad","St",15.42]
[null,"b) a sfera, 3/4\"","b) Kugelhahn, 3/4\"","cad","St",22.48]
[null,"c) a sfera, 1\"","c) Kugelhahn, 1\"","cad","St",34.07]
[null,"d) a sfera, 1\"1/4","d) Kugelhahn, 1\"1/4","cad","St",54.03]
[null,"e) a sfera, 1\"1/2","e) Kugelhahn, 1\"1/2","cad","St",78.27]
[null,"f) a sfera, 2\"","f) Kugelhahn, 2\"","cad","St",118.16]
[null,"g) ad otturatore, flangiata, DN65","g) Flanschen-Absperrschieber, DN65","cad","St",464.62]
[null,"h) ad otturatore, flangiata, DN80","h) Flanschen-Absperrschieber, DN80","cad","St",563.89]
[null,"i) ad otturatore, flangiata, DN100","i) Flanschen-Absperrschieber, DN100","cad","St",789.04]
[null,"l) ad otturatore, flangiata, DN125","l) Flanschen-Absperrschieber, DN125","cad","St",1125.74]
[null,"m) ad otturatore, flangiata, DN150","m) Flanschen-Absperrschieber, DN150","cad","St",1575.01]
[null,"n) ad otturatore, flangiata, DN200","n) Flanschen-Absperrschieber, DN200","cad","St",3232.92]
["14.07.02","Valvola di ritegno omologata per acqua potabile","Rückschlagventile für Trinkwasser zugelassen "]
[null,"a) a piattello e molla, 1/2\"","a) Tellerrückschlagventil und Rückstellfeder, 1/2\"","cad","St",14.01]
[null,"b) a piattello e molla, 3/4\"","b) Tellerrückschlagventil und Rückstellfeder, 3/4\"","cad","St",16.329999999999998]
[null,"c) a piattello e molla, 1\"","c) Tellerrückschlagventil und Rückstellfeder, 1\" ","cad","St",20.78]
[null,"d) a piattello e molla, 1\"1/4","d) Tellerrückschlagventil und Rückstellfeder, 1\"1/4","cad","St",25.23]
[null,"e) a piattello e molla, 1\"1/2","e) Tellerrückschlagventil und Rückstellfeder, 1\"1/2","cad","St",39.74]
[null,"f) a doppio battente, montaggio wafer, DN50","f) Doppelklappen-Rückschlagventil, Zwischenflanschmontage, DN50","cad","St",150.44]
[null,"g) a doppio battente, montaggio wafer, DN65","g) Doppelklappen-Rückschlagventil, Zwischenflanschmontage, DN65","cad","St",167.84]
[null,"h) a doppio battente, montaggio wafer, DN80","h) Doppelklappen-Rückschlagventil, Zwischenflanschmontage, DN80","cad","St",187.28]
[null,"i) a doppio battente, montaggio wafer, DN100","i) Doppelklappen-Rückschlagventil, Zwischenflanschmont. DN100","cad","St",215.94]
[null,"l) a doppio battente, montaggio wafer, DN125","l) Doppelklappen-Rückschlagventil, Zwischenflanschmont., DN125","cad","St",272.22000000000003]
[null,"m) a doppio battente, montaggio wafer, DN150","m) Doppelklappen-Rückschlagventil, Zwischenflanschmont., DN150","cad","St",314.18]
[null,"n) a doppio battente, montaggio wafer, DN200","n) Doppelklappen-Rückschlagventil, Zwischenflanschmont., DN200","cad","St",565.94000000000005]
["14.08","DISPOSITIVI DI SFOGO ARIA","ENTLÜFTUNGSORGANE "," "]
["14.08.01","Valvola automatica di sfogo aria, 1/2\"","Automatischer Schnellentlüfter, ½”","cad","St",18.52]
["14.09","RIDUTTORI DI PRESSIONE ","DRUCKREDUZIERVENTIL "," "]
[null,"a) 1/2\"","a) 1/2\"","cad","St",129.46]
[null,"b) 3/4\"","b) 3/4\"","cad","St",171.83]
[null,"c) 1\"","c) 1\"","cad","St",210.67]
[null,"d) 1\"1/4","d) 1\"1/4","cad","St",336.6]
[null,"e) 1\"1/2","e) 1\"1/2","cad","St",546.09]
[null,"f) 2\"","f) 2\"","cad","St",1006.26]
[null,"g) DN65 ","g) DN65 ","cad","St",2036.05]
[null,"h) DN80 ","h) DN80 ","cad","St",2718.66]
[null,"i) DN100 ","i) DN100 ","cad","St",4025.03]
[null,"l) DN125 ","l) DN125 ","cad","St",6304.71]
[null,"m) DN150 ","m) DN150 ","cad","St",7057.93]
["14.10","DISPOSITIVI DI SEPARAZIONE IMPURITÀ ","SCHMUTZFÄNGER ",null," "]
["14.10.01","Filtri obliqui ","Schrägsitzfilter ",null," "]
[null,"a) 1/2\"","a) 1/2\"","cad","St",18.420000000000002]
[null,"b) 3/4\"","b) 3/4\"","cad","St",24.56]
[null,"c) 1\"","c) 1\"","cad","St",33.159999999999997]
[null,"d) 1\"1/4","d) 1\"1/4","cad","St",47.9]
[null,"e) 1\"1/2","e) 1\"1/2","cad","St",58.95]
[null,"f) 2\"","f) 2\"","cad","St",97.02]
[null,"g) 2\"1/2","g) 2\"1/2","cad","St",155.97]
[null,"h) 3\"","h) 3\"","cad","St",224.74]
[null,"i) DN100 ","i) DN100 ","cad","St",389.3]
[null,"l) DN125 ","l) DN125 ","cad","St",625.09]
[null,"m) DN150 ","m) DN150 ","cad","St",874.39]
["14.10.02","Filtro a cartuccia sostituibile, maglia 50 micron ","Feinfilter mit austauschbarer Filterkartusche, Maschenweite 50 Mikron ",null," "]
[null,"a) 3/4\"","a) 3/4\"","cad","St",208.77]
[null,"b) 1\"","b) 1\"","cad","St",208.77]
[null,"c) 1\"1/4","c) 1\"1/4","cad","St",257.89999999999998]
[null,"d) 1\"1/2","d) 1\"1/2","cad","St",417.55]
[null,"e) 2\"","e) 2\"","cad","St",552.64]
["14.10.03","Cartuccia e campana di protezione di ricambio, maglia 50 micron ","Filterkartusche und Filterglocke als Ersatzteil, Maschenweite 50 Mikron "]
[null,"a) 3/4\" - 1\"","a) 3/4\" - 1\"","cad","St",37.15]
[null,"b) 1\"1/4 - 1\"1/2","b) 1\"1/4 - 1\"1/2","cad","St",65.290000000000006]
[null,"c) 2\"","c) 2\"","cad","St",78.8]
["14.10.04","Filtro a cartuccia, con controlavaggio automatico, maglia inf./sup. 95/125 micron ","Automatischer Rückspülfilter mit Filterkartusche, mit Maschenweite (Unter-/ Obergrenze) 95/125 Mikron "]
[null,"a) 3/4\"","a) 3/4\"","cad","St",1151.94]
[null,"b) 1\"","b) 1\"","cad","St",1151.94]
[null,"c) 1\"1/4","c) 1\"1/4","cad","St",1258.78]
[null,"d) 1\"1/2","d) 1\"1/2","cad","St",1455.27]
[null,"e) 2\"","e) 2\"","cad","St",1565.8]
[null,"f) DN65 ","f) DN65 ","cad","St",2701.78]
[null,"g) DN80 ","g) DN80 ","cad","St",3051.78]
[null,"h) DN100 ","h) DN100 ","cad","St",4353.54]
["14.11","DISPOSITIVI DI PROTEZIONE ANTICALCARE","WASSERENTHÄRTUNGSANLAGE "]
[null,"a) 3/4\" - Qn 1,5 m³/h","a) 3/4\" - Qn 1,5 m³/h","cad","St",2000.54]
[null,"b) 1\" - Qn 2,5 m³/h","b) 1\" - Qn 2,5 m³/h","cad","St",2823.36]
[null,"c) 1\"1/2 - Qn 5,0 m³/h","c) 1\"1/2 - Qn 5,0 m³/h","cad","St",5471.1]
["14.12","CONTATORI D'ACQUA ","WASSERZÄHLER "]
["14.12.01","Contatori per acqua fredda, con lanciaimpulsi, versione verticale o orizzontale, a getto singolo, a quadrante asciutto","Kaltwasserzähler mit Impulsgeber, vertikale oder horizontale Ausführung, Einstrahl-Trockenläufer "]
[null,"a) 1/2\" - Q3 2,5 m³/h - 80 mm","a) 1/2\" - Q3 2,5 m³/h - 80 mm","cad","St",53.22]
[null,"b) 1/2\" - Q3 2,5 m³/h - 110 mm","b) 1/2\" - Q3 2,5 m³/h - 110 mm","cad","St",53.22]
[null,"c) 3/4\" - Q3 4,0 m³/h - 130 mm","c) 3/4\" - Q3 4,0 m³/h - 130 mm","cad","St",63.86]
["14.12.02","Contatori per acqua fredda, con lanciaimpulsi, versione orizzontale, a getto multiplo, a quadrante asciutto","Kaltwasserzähler mit Impulsgeber, horizontale Ausführung, Mehrstrahl -Trockenläufer "]
[null,"a) 1\" - Q3 6,3 m³/h - 260 mm","a) 1\" - Q3 6,3 m³/h - 260 mm","cad","St",132.63]
[null,"b) 1\"1/4 - Q3 10,0 m³/h - 260 mm","b) 1\"1/4 - Q3 10,0 m³/h - 260 mm","cad","St",158.41999999999999]
[null,"c) 1\"1/2 - Q3 16,0 m³/h - 300 mm","c) 1\"1/2 - Q3 16,0 m³/h - 300 mm","cad","St",261.58]
[null,"d) 2\" - Q3 25,0 m³/h - 300 mm","d) 2\" - Q3 25,0 m³/h - 300 mm","cad","St",324.20999999999998]
["14.12.03","Contatori per acqua calda, con lanciaimpulsi, versione verticale o orizzontale, a getto singolo, a quadrante asciutto ","Warmwasserzähler mit Impulsgeber, vertikale oder horizontale Ausführung, Einstrahl-Trockenläufer "]
[null,"a) 1/2\" - Q3 2,5 m³/h - 80 mm","a) 1/2\" - Q3 2,5 m³/h - 80 mm","cad","St",63.86]
[null,"b) 1/2\" - Q3 2,5 m³/h - 110 mm","b) 1/2\" - Q3 2,5 m³/h - 110 mm","cad","St",63.86]
[null,"c) 3/4\" - Q3 4,0 m³/h - 130 mm","c) 3/4\" - Q3 4,0 m³/h - 130 mm","cad","St",78.489999999999995]
["14.12.04","Contatori per acqua calda, con lanciaimpulsi, versione orizzontale, a getto multiplo, a quadrante asciutto","Warmwasserzähler mit Impulsgeber, horizontale Ausführung, Mehrstrahl -Trockenläufer "]
[null,"a) 1\" - Q3 6,3 m³/h - 260 mm","a) 1\" - Q3 6,3 m³/h - 260 mm","cad","St",270.18]
[null,"b) 1\"1/4 - Q3 10,0 m³/h - 260 mm","b) 1\"1/4 - Q3 10,0 m³/h - 260 mm","cad","St",271.41000000000003]
[null,"c) 1\"1/2 - Q3 16,0 m³/h - 300 mm","c) 1\"1/2 - Q3 16,0 m³/h - 300 mm","cad","St",435.97]
[null,"d) 2\" - Q3 25,0 m³/h - 300 mm","d) 2\" - Q3 25,0 m³/h - 300 mm","cad","St",589.48]
["14.12.05","Contatori per acqua calda, da incasso, estraibile, con lanciaimpulsi, a quadrante asciutto, con scatola a murare ed accessori","Warmwasserzähler mit Impulsgeber, für Unterputzeinbau, herausziehbar, Trockenläufer, mit Unterputz-Montageblock und Zubehör "]
[null,"a) Q3 2,5 m³/h","a) Q3 2,5 m³/h","cad","St",130.18]
["14.13","DISPOSITIVI DI REGOLAZIONE","REGELGERÄTE "]
["14.13.01","Dispositivi di regolazione del ricircolo","Zirkulationsregler  "]
[null,"a) 1/2\"","a) 1/2\"","cad","St",157.6]
[null,"b) 3/4\"","b) 3/4\"","cad","St",163.74]
["14.13.02","Miscelatori per acqua calda sanitaria","Mischer für sanitäres Warmwasser "]
[null,"a) DN 20 - 3/4\". Qmin 0,5 m³/h. Qmax 6,4 m³/h","a) DN 20 - 3/4\". Qmin 0,5 m³/h. Qmax 6,4 m³/h","cad","St",1195.54]
[null,"b) DN 25 - 1\". Qmin 0,7 m³/h. Qmax 11,0 m³/h","b) DN 25 - 1\". Qmin 0,7 m³/h. Qmax 11,0 m³/h","cad","St",1327.25]
[null,"c) DN 32 - 5/4\". Qmin 1,0 m³/h. Qmax 17,8 m³/h","c) DN 32 - 5/4\". Qmin 1,0 m³/h. Qmax 17,8 m³/h","cad","St",1348.64]
[null,"d) DN 40 - 6/4\". Qmin 1,5 m³/h. Qmax 28,0 m³/h","d) DN 40 - 6/4\". Qmin 1,5 m³/h. Qmax 28,0 m³/h","cad","St",2187.31]
[null,"e) DN 50 - 2\". Qmin 2,0 m³/h. Qmax 39,0 m³/h","e) DN 50 - 2\". Qmin 2,0 m³/h. Qmax 39,0 m³/h","cad","St",2559.9299999999998]
["14.13.03","Valvole miscelatrici a tre vie","Dreiweg-Mischventil "]
[null,"a) DN15","a) DN15","cad","St",791.09]
[null,"b) DN20","b) DN20","cad","St",841.23]
[null,"c) DN25","c) DN25","cad","St",891.38]
[null,"d) DN32","d) DN32","cad","St",920.04]
[null,"e) DN40","e) DN40","cad","St",996.79]
[null,"f) DN50","f) DN50","cad","St",1060.24]
[null,"g) DN65 ","g) DN65 ","cad","St",1200.45]
[null,"h) DN80 ","h) DN80 ","cad","St",2042.71]
[null,"i) DN100 ","i) DN100 ","cad","St",2570.17]
[null,"l) DN125 ","l) DN125 ","cad","St",2909.12]
[null,"m) DN150 ","m) DN150 ","cad","St",3254.21]
["14.15","POMPE","PUMPEN "]
["14.15.01","Pompe di ricircolo dell' a.c.s.","Zirkulationspumpen für sanitäres Warmwasser "]
[null,"a) 1\"1/2 - Qmax 1,5 m³/h - pmax 30 kPa","a) 1\"1/2 - Qmax 1,5 m³/h - pmax 30 kPa","cad","St",690.18]
[null,"b) 1\"1/2 - Qmax 2,5 m³/h - pmax 45 kPa","b) 1\"1/2 - Qmax 2,5 m³/h - pmax 45 kPa","cad","St",812.99]
[null,"c) 1\"1/2 - Qmax 5,5 m³/h - pmax 40 kPa","c) 1\"1/2 - Qmax 5,5 m³/h - pmax 40 kPa","cad","St",869.48]
[null,"d) 2\" - Qmax 5,5 m³/h - pmax 40 kPa","d) 2\" - Qmax 5,5 m³/h - pmax 40 kPa","cad","St",965.27]
[null,"e) 1\"1/2 - Qmax 8,0 m³/h - pmax 60 kPa","e) 1\"1/2 - Qmax 8,0 m³/h - pmax 60 kPa","cad","St",1011.94]
[null,"f) 2\" - Qmax 8,0 m³/h - pmax 60 kPa","f) 2\" - Qmax 8,0 m³/h - pmax 60 kPa","cad","St",1089.31]
[null,"g) 1\"1/2 - Qmax 9,0 m³/h - pmax 80 kPa","g) 1\"1/2 - Qmax 9,0 m³/h - pmax 80 kPa","cad","St",1122.47]
[null,"h) 2\" - Qmax 10,0 m³/h - pmax 80 kPa","h) 2\" - Qmax 10,0 m³/h - pmax 80 kPa","cad","St",1156.8499999999999]
[null,"i) 1\"1/2 - Qmax 10,0 m³/h - pmax 100 kPa","i) 1\"1/2 - Qmax 10,0 m³/h - pmax 100 kPa","cad","St",1193.69]
[null,"l) 2\" - Qmax 11,0 m³/h - pmax 100 kPa","l) 2\" - Qmax 11,0 m³/h - pmax 100 kPa","cad","St",1287.03]
["14.16","SANITARI","SANITÄRGERÄTE "]
["14.16.01","Lavabi con accessori","Waschbecken mit Zubehör "]
[null,"a) 55 x 45 cm","a) 55 x 45 cm","cad","St",137.65]
[null,"b) 65 x 55 cm","b) 65 x 55 cm","cad","St",171.42]
["14.16.02","Bidet con accessori","Bidet mit Zubehör","cad","St",204.07]
["14.16.03","Vasi WC con accessori","WC-Schale mit Zubehör"]
[null,"a) vaso WC con elemento di montaggio senza aspirazione odori","a) WC-Schale ohne Geruchs-Absaugvorrichtung","cad","St",475.37]
[null,"b) vaso WC con elemento di montaggio con aspirazione odori","b) WC-Schale mit Geruchs-Absaugvorrichtung","cad","St",502.39]
["14.16.04","Piatti doccia con accessori","Duschtassen mit Zubehör "]
[null,"a) 80 x 80 x 14 cm","a) 80 x 80 x 14 cm","cad","St",465.24]
[null,"b) 90 x 90 x 14 cm","b) 90 x 90 x 14 cm","cad","St",473.12]
["14.16.05","Vasche da bagno con accessori","Badewannen mit Zubehör "]
[null,"a) 170 x 70 cm","a) 170 x 70 cm","cad","St",718.84]
[null,"b) 170 x 75 cm","b) 170 x 75 cm","cad","St",713.21]
[null,"c) 180 x 80 cm","c) 180 x 80 cm","cad","St",974.38]
["14.17","RUBINETTI","ARMATUREN "]
["14.17.01","Rubinetti per lavabi","Mischbatterie für Waschbecken","cad","St",209.85]
["14.17.02","Rubinetti per bidet","Mischbatterie für Bidet","cad","St",209.85]
["14.17.03","Rubinetti per docce con accessori","Mischbatterie für Duschen mit Zubehör","cad","St",295.05]
["14.17.04","Rubinetti per vasche con accessori","Mischbatterie für Badewannen mit Zubehör "]
[null,"a) con asta doccia","a) mit Wandstange","cad","St",368.12]
[null,"b) con supporto a muro","b) mit Wandhalterung","cad","St",309.02]
["14.17.05","Rubinetti per lavello cucina (fornito in confezione originale)","Mischbatterie für Küchenbecken (in originaler Verpackung geliefert)","cad","St",238.45]
["14.17.06","Rubinetti per intercettazione sanitari","Absperrhähne für Sanitärgeräte","cad","St",18.05]
["14.17.07","Rubinetti antigelo per esterni","Auslaufhähne für Kaltwasser mit Frostschutz","cad","St",128.94999999999999]
["14.18","VENTILATORI DI AERAZIONE","ENTLÜFTUNGSVENTILATOREN "]
["14.18.01","Ventilatori da incasso con relé temporizzatore","Unterputz-Entlüftungsventilatoren mit Nachlaufzeitrelais "]
[null,"a) 60 m³/h, con aspirazione da cassetta WC","a) 60 m³/h, mit Anschluss für WC-Absaugung","cad","St",287.37]
[null,"b) 60 m³/h, senza aspirazione da cassetta WC","b) 60 m³/h, ohne Anschluss für WC- Absaugung","cad","St",281.74]
[null,"c) 60 m³/h, con rivestimento antincendio, senza aspirazione cassetta WC","c) 60 m³/h, mit Brandschutzverkleidung, ohne WC-Absaugung","cad","St",370.68]
[null,"d) 100 m³/h, con aspirazione da cassetta WC","d) 100 m³/h, mit Anschluss für WC- Absaugung","cad","St",283.99]
[null,"e) 100 m³/h, senza aspirazione da cassetta WC","e) 100 m³/h, ohne Anschluss für WC- Absaugung","cad","St",278.36]
[null,"f) 100 m³/h, con rivestimento antincendio, senza aspirazione da cassetta WC","f) 100 m³/h, mit Brandschutzverkleidung, ohne WC-Absaugung","cad","St",367.3]
["14.18.02","Ventilatori da incasso senza relé temporizzatore","Unterputz-Entlüftungsventilatoren ohne Nachlaufzeitrelais "]
[null,"a) 60 m³/h, con aspirazione da cassetta WC","a) 60 m³/h, mit Anschluss für WC-Absaugung","cad","St",223.2]
[null,"b) 60 m³/h, con rivestimento antincendio, senza aspirazione da cassetta WC ","b) 60 m³/h, mit Brandschutzverkleidung, ohne WC-Absaugung","cad","St",306.51]
[null,"c) 100 m³/h, con aspirazione da cassetta WC","c) 100 m³/h, mit Anschluss für WC- Absaugung","cad","St",222.08]
[null,"d) 100 m³/h, con rivestimento antincendio, senza aspirazione da cassetta WC","d) 100 m³/h, mit Brandschutzverkleidung, ohne WC-Absaugung","cad","St",305.38]
["14.19","DISPOSITIVI ANTIRIFLUSSO PER FOGNATURA","RÜCKSTAUVERSCHLÜSSE FÜR SCHWARZWASSER "]
["14.19.01","Valvole antiriflusso","Rückstauverschluss "]
[null,"a) tipo 2, DN 50","a) Typ 2, DN 50","cad","St",134.07]
[null,"b) tipo 2, DN 70","b) Typ 2, DN 70","cad","St",180.12]
[null,"c) tipo 2, DN 100","c) Typ 2, DN 100","cad","St",337.72]
[null,"d) tipo 2, DN 125","d) Typ 2, DN 125","cad","St",376.61]
[null,"e) tipo 2, DN 150","e) Typ 2, DN 150","cad","St",416.52]
[null,"f) tipo 3F motorizzata, DN100","f) Typ 3F motorisiert, DN100","cad","St",2574.06]
[null,"g) tipo 3F motorizzata, DN125","g) Typ 3F motorisiert, DN125","cad","St",2574.06]
[null,"h) tipo 3F motorizzata, DN150","h) Typ 3F motorisiert, DN150","cad","St",2574.06]
[null,"i) tipo 3F motorizzata con pozzetto, DN100","i) Typ 3F motorisiert mit Gully, DN100","cad","St",3070.2]
[null,"l) tipo 3F motorizzata con pozzetto, DN125","l) Typ 3F motorisiert mit Gully, DN125","cad","St",3070.2]
[null,"m) tipo 3F motorizzata con pozzetto, DN150","m) Typ 3F motorisiert mit Gully, DN150","cad","St",3070.2]
[null,"n) tipo 5, DN 50","n) Typ 5, DN 50","cad","St",97.22]
[null,"o) tipo 5, DN 50 con sifone","o) Typ 5, DN 50 mit Siphon","cad","St",101.32]
[null,"p) tipo 5, DN 50 con imbuto di scarico","p) Typ 5, DN 50 mit Abflusstrichter","cad","St",103.88]
[null,"q) tipo 5, DN 70 con pozzetto","q) Typ 5, DN 70 mit Gully","cad","St",254.72]
["14.19.02","Gruppi di pompaggio antiriflusso","Rückstauverschluss-Pumpanlagen "]
[null,"a) tipo 3, DN100","a) Typ 3, DN100","cad","St",2935.11]
[null,"b) tipo 3, DN125","b) Typ 3, DN125","cad","St",2935.11]
[null,"c) tipo 3, DN150","c) Typ 3, DN150","cad","St",2935.11]
[null,"d) tipo 3 con pozzetto, DN100","d) Typ 3 mit Gully, DN100","cad","St",3377.22]
[null,"e) tipo 3 con pozzetto, DN125","e) Typ 3 mit Gully, DN125","cad","St",3377.22]
[null,"f) tipo 3 con pozzetto, DN150","f) Typ 3 mit Gully, DN150","cad","St",3377.22]
["14.20","COMPONENTI PER IMPIANTI PER LA RACCOLTA DI ACQUA PIOVANA","BAUTEILE FÜR REGENWASSERNUTZUNG "]
["14.20.01","Serbatoi di raccolta","Regenwassertanks "]
[null,"a) a) 3000 litri","a) 3000 Liter","cad","St",3254.41]
[null,"b) b) 4500 litri","b) 4500 Liter","cad","St",3776.35]
[null,"c) c) 6000 litri","c) 6000 Liter","cad","St",4543.8999999999996]
[null,"d) d) 9000 litri","d) 9000 Liter","cad","St",5239.8100000000004]
["14.20.02","Filtri","Regenwasserfilter",null," "]
[null,"a) Filtro in pozzetto per superfici sino a 300 m²","a) Schachtfilter für Oberflächen bis 300 m²","cad","St",719.96]
[null,"b) Filtro in pozzetto per superfici sino a 1000 m²","b) Schachtfilter für Oberflächen bis 1000 m²","cad","St",3990.24]
[null,"c) Filtro in pozzetto per superfici sino a 2000 m²","c) Schachtfilter für Oberflächen bis 2000 m²","cad","St",5141.87]
["14.20.03","Pompe ed unità di controllo con carico supplementare acqua potabile","Pumpen und Kontrollsysteme mit Trinkwassernachspeisung"]
[null,"a) Unità con serbatoio tampone 15 litri, pompa esterna, pmax 4,2 bar, Qmax 4 m³/h a 1,0 bar","a) Einheit mit 15 lt. Puffertank, externer Pumpe, pmax 4,2 bar, Qmax 4 m³/h bei 1,0 bar","cad","St",3162.82]
[null,"b) Unità con serbatoio tampone 15 litri, pompa sommersa, pmax 4,7 bar, Qmax 5 m³/h a 1,2 bar","b) Einheit mit 15 lt. Puffertank, Tauchpumpe, pmax 4,7 bar, Qmax 5 m³/h bei 1,2 bar","cad","St",3905.81]
[null,"c) Unità con serbatoio tampone 150 litri, 2 pompe esterne, serbatoio intermedio 150 litri, pmax 4,4 bar, Qmax 10 m³/h a 1,3 bar","c) Einheit mit 150 lt. Puffertank, 2 externen Pumpen, Zwischentank zu 150 lt., pmax 4,4 bar, Qmax 10 m³/h bei 1,3 bar","cad","St",5633.82]
[null,"d) Unità con serbatoio tampone 150 litri, 2 pompe esterne, serbatoio intermedio 150 litri, pmax 5,5 bar, Qmax 10 m³/h a 1,8 bar","d) Einheit mit 150 lt. Puffertank, 2 externen Pumpen, Zwischentank zu 150 lt., pmax 5,5 bar, Qmax 10 m³/h bei 1,8 bar","cad","St",5723.88]
[null,"e) Unità con serbatoio tampone 150 litri, 2 pompe esterne, serbatoio intermedio 150 litri, pmax 4,3 bar, Qmax 16 m³/h a 1,1 bar","e) Einheit mit 150 lt. Puffertank, 2 externen Pumpen, Zwischentank zu 150 lt., pmax 4,3 bar, Qmax 16 m³/h bei 1,1 bar ","cad","St",5903.99]
[null,"f) Unità con serbatoio tampone 150 litri, 2 pompe esterne, serbatoio intermedio 150 litri, pmax 5,6 bar, Qmax 16 m³/h a 1,9 bar","f) Einheit mit 150 lt. Puffertank, 2 externen Pumpen, Zwischentank zu 150 lt., pmax 5,6 bar, Qmax 16 m³/h bei 1,9 bar","cad","St",6095.37]
["14.21","COMPONENTI PER IMPIANTI DI IRRIGAZIONE","BAUTEILE FÜR BEWÄSSERUNGSANLAGEN"]
["14.21.01","Tubazioni PE100 PN10 SDR17","Rohrleitungen PE100 PN10 SDR17"]
[null,"a) Ø 20x1,6 mm","a) Ø 20x1,6 mm","m","m",3.53]
[null,"b) Ø 25x1,6 mm","b) Ø 25x1,6 mm","m","m",4.8099999999999996]
[null,"c) Ø 32x2,0 mm","c) Ø 32x2,0 mm","m","m",7.47]
[null,"d) Ø 40x2,4 mm","d) Ø 40x2,4 mm","m","m",10.64]
[null,"e) Ø 50x3,0 mm","e) Ø 50x3,0 mm","m","m",13.14]
[null,"f) Ø 63x3,8 mm","f) Ø 63x3,8 mm","m","m",15.66]
[null,"g) Ø 75x4,5 mm","g) Ø 75x4,5 mm","m","m",21.74]
[null,"h) Ø 90x5,4 mm","h) Ø 90x5,4 mm","m","m",31.41]
[null,"i) Ø 110x6,6 mm","i) Ø 110x6,6 mm","m","m",46.79]
["14.21.02","Irrigatori statici","Statische Versenkregner "]
[null,"a) Torretta 10 cm, portata sino a 12,5 l/min (a 2,0 bar)","a) Aufsteiger 10 cm, Menge bis 12,5 l/min (bei 2,0 bar)","cad","St",40.159999999999997]
[null,"b) Torretta 15 cm, portata sino a 12,5 l/min (a 2,0 bar)","b) Aufsteiger 15 cm, Menge bis 12,5 l/min (bei 2,0 bar)","cad","St",55.51]
[null,"c) Torretta 30 cm, portata sino a 12,5 l/min (a 2,0 bar)","c) Aufsteiger 30 cm, Menge bis 12,5 l/min (bei 2,0 bar)","cad","St",75.040000000000006]
[null,"d) Sovraprezzo per uso con acqua non potabile per i cod. da a) a c)","d) Aufpreis bei Verwendung von Nichttrinkwasser für Kodexe a) bis c)","cad","St",4.09]
[null,"e) Ugello gittata 1,5 m - angolo fisso","e) Düse mit Reichweite 1,5 m – fixer Winkel","cad","St",6.55]
[null,"f) Ugello gittata 2,4 m - angolo fisso o variabile","f) Düse mit Reichweite 2,4 m – fixer oder variabler Winkel","cad","St",6.55]
[null,"g) Ugello gittata 3,0 m - angolo fisso o variabile","g) Düse mit Reichweite 3,0 m – fixer oder variabler Winkel","cad","St",6.55]
[null,"h) Ugello gittata 3,7 m - angolo fisso o variabile","h) Düse mit Reichweite 3,7 m – fixer oder variabler Winkel","cad","St",6.55]
[null,"i) Ugello gittata 4,6 m - angolo fisso o variabile","i) Düse mit Reichweite 4,6 m – fixer oder variabler Winkel","cad","St",6.55]
[null,"l) Ugello gittata 5,2 m - angolo variabile","l) Düse mit Reichweite 5,2 m – fixer oder variabler Winkel","cad","St",6.55]
["14.21.03","Irrigatori dinamici","Dynamische Versenkregner "]
[null,"a) Torretta 9 cm, portata sino a 12,9 l/min (a 2,0 bar), con 5 ugelli con gittata da 6,1 a 10,3 m","a) Aufsteiger 9 cm, Menge bis 12,9 l/min (bei 2,0 bar), mit 5 Düsen mit Wurfweite von 6,1 bis 10,3 m","cad","St",35]
[null,"b) Torretta 7 cm, portata sino a 21,1 l/min (a 3,5 bar)","b) Aufsteiger 7 cm, Menge bis 21,1 l/min (bei 3,5 bar)","cad","St",60.79]
[null,"c) Torretta 30 cm, portata sino a 21,1 l/min (a 3,5 bar)","c) Aufsteiger 30 cm, Menge bis 21,1 l/min (bei 3,5 bar)","cad","St",113.6]
[null,"d) Sovraprezzo per uso con acqua non potabile per i cod. da a) a c)","d) Aufpreis bei Verwendung von Nichttrinkwasser für Kodexe a) bis c)","cad","St",4.09]
[null,"e) Ugello gittata variabile 6,0-10,0 m, angolo variabile","e) Düse mit variabler Reichweite 6,0-10,0 m, variabler Winkel","cad","St",17.7]
[null,"f) Ugello gittata 5,5 m - angolo fisso con parzializzatore","f) Düse mit Reichweite 5,5 m - fixer Winkel mit Bereichsbegrenzung","cad","St",25.07]
[null,"g) Ugello gittata 7,4 m - angolo fisso con parzializzatore","g) Düse mit Reichweite 7,4 m - fixer Winkel mit Bereichsbegrenzung","cad","St",25.07]
[null,"h) Ugello gittata 9,2 m - angolo fisso con parzializzatore","h) Düse mit Reichweite 9,2 m - fixer Winkel mit Bereichsbegrenzung","cad","St",25.07]
["14.21.04","Ali gocciolanti","Tropfschläuche"]
[null,"a) ala gocciolante Ø16 mm, spaziatura 33 cm","a) Tropfschlauch Ø16 mm, Abstand 33 cm","m","m",8.6]
[null,"b) ala gocciolante Ø16 mm, spaziatura 33 cm, da interro","b) Tropfschlauch Ø16 mm, Abstand 33 cm, in Unterflurausführung ","m","m",9.89]
[null,"c) ala gocciolante Ø16 mm, spaziatura 20 cm, da interro","c) Tropfschlauch Ø16 mm, Abstand 20 cm, in Unterflurausführung","m","m",10.54]
["14.21.05","Cavi elettrici","Elektrokabel"]
[null,"a) Cavo unipolare bassissima tensione, 1,5 mm²","a) Einpoliger Elektrokabel für Kleinstspannung, 1,5 mm²","m","m",1.51]
[null,"b) Cavo unipolare bassissima tensione, 2,5 mm²","b) Einpoliger Elektrokabel für Kleinstspannung, 2,5 mm²","m","m",2.31]
[null,"c) Cavo 2 conduttori bassissima tensione, 0,8 mm²","c) Zweipoliger Elektrokabel für Kleinstspannung, 0,8 mm²","m","m",2.09]
[null,"d) Cavo 5 conduttori bassissima tensione, 0,8 mm²","d) Fünfpoliger Elektrokabel für Kleinstspannung, 0,8 mm²","m","m",4.6500000000000004]
[null,"e) Cavo armato per b.t., tripolare 2,5 mm²","e) Panzerkabel für NS, dreipolig 2,5 mm²","m","m",9.67]
[null,"f) Cavo armato per b.t., tripolare 4,0 mm²","f) Panzerkabel für NS, dreipolig 4,0 mm²","m","m",12.74]
[null,"g) Cavo armato per b.t., tripolare 6,0 mm²","g) Panzerkabel für NS, dreipolig 6,0 mm²","m","m",18.57]
["14.21.06","Tubi di protezione per cavi elettrici","Schutzrohre für Elektrokabel"]
[null,"a) Tubo corrugato flessibile in PVC, Ø25 mm","a) Druckfestes flexibles PVC-Schutzrohr, Ø25 mm","m","m",1.29]
[null,"b) Tubo corrugato flessibile in PVC, Ø32 mm","b) Druckfestes flexibles PVC-Schutzrohr, Ø32 mm","m","m",1.82]
[null,"c) Tubo corrugato flessibile in PVC, Ø40 mm","c) Druckfestes flexibles PVC-Schutzrohr, Ø40 mm","m","m",2.36]
[null,"d) Tubo corrugato flessibile in PVC, Ø50 mm","d) Druckfestes flexibles PVC-Schutzrohr, Ø50 mm","m","m",3.03]
["14.21.07","Valvole automatiche","Automatische Ventile "]
[null,"a) Ø1\", in PVC, portata sino a 113 l/min","a) Ø1\", in PVC, Menge bis zu 113 l/min","cad","St",48.55]
[null,"b) Ø1\", in PVC, portata sino a 151 l/min, autopulente","b) Ø1\", in PVC, Menge bis zu 151 l/min, selbstreinigend","cad","St",63.78]
[null,"c) Ø1\", in vetroresina, portata sino a 114 l/min","c) Ø1\", in Glasfaserkunststoff, Menge bis 114 l/min","cad","St",158.46]
[null,"d) Ø1\"1/2, in vetroresina, portata da 114 a 265 l/min","d) Ø1\"1/2, in Glasfaserkunststoff, Menge bis 114 a 265 l/min","cad","St",223.8]
[null,"e) Ø2\", in vetroresina, portata da 300 a 530 l/min","e) Ø2\", in Glasfaserkunststoff, Menge bis 300 a 530 l/min","cad","St",330.52]
[null,"f) Ø2\", in vetroresina, portata da 568 a 852 l/min","f) Ø2\", in Glasfaserkunststoff, Menge bis 568 a 852 l/min ","cad","St",670.08]
[null,"g) Regolatore della pressione in uscita 0,3-2,0 bar per i cod. da c) a f)","g) Druckregler mit Ausgangsdruck von 0,3-2,0 bar für die Kod. von c) bis f)","cad","St",109.5]
[null,"h) Regolatore della pressione in uscita 0,3-7,0 bar per i cod. da c) a f)","h) Druckregler mit Ausgangsdruck von 0,3-7,0 bar für die Kod. da c) bis f)","cad","St",109.5]
[null,"i) Sovraprezzo per uso con acqua non potabile per i cod. da a) a f)","i) Aufpreis bei Verwendung von Nichttrinkwasser für die Kodexe von a) bis f)","cad","St",6.14]
["14.21.08","Unità di programmazione","Programmiereinheiten "]
[null,"a) 3 programmi, 3 partenze/progr., 4 stazioni, 1 valvola/staz.","a) 3 Programme, 3 Zyklen pro Progr., 4 Stationen, 1 Ventil pro Station","cad","St",140]
[null,"b) 3 programmi, 3 partenze/progr., 6 stazioni, 1 valvola/staz.","b) 3 Programme, 3 Zyklen pro Progr., 6 Stationen, 1 Ventil pro Station","cad","St",196.49]
[null,"c) 3 programmi, 3 partenze/progr., 8 stazioni, 1 valvola/staz.","c) 3 Programme, 3 Zyklen pro Progr., 8 Stationen, 1 Ventil pro Station","cad","St",241.93]
[null,"d) 3 programmi, 4 partenze/progr., 4 stazioni, 2 valvole/staz.","d) 3 Programme, 4 Zyklen pro Progr., 4 Stationen, 2 Ventil pro Station","cad","St",219.83]
[null,"e) 3 programmi, 4 partenze/progr., 6 stazioni, 2 valvole/staz.","e) 3 Programme, 4 Zyklen pro Progr., 6 Stationen, 2 Ventil pro Station","cad","St",260.76]
[null,"f) 3 programmi, 4 partenze/progr., 8 stazioni, 2 valvole/staz.","f) 3 Programme, 4 Zyklen pro Progr., 8 Stationen, 2 Ventil pro Station","cad","St",301.7]
[null,"g) 3 programmi, 4 partenze/progr., 10 stazioni, 2 valvole/staz.","g) 3 Programme, 4 Zyklen pro Progr., 10 Stationen, 2 Ventil pro Stat.","cad","St",342.63]
[null,"h) 3 programmi, 4 partenze/progr., 12 stazioni, 2 valvole/staz.","h) 3 Programme, 4 Zyklen pro Progr., 12 Stationen, 2 Ventil pro Stat.","cad","St",383.57]
[null,"i) Sensore pioggia con cavo","i) Regensensor mit Kabel","cad","St",73.56]
[null,"l) Sensore pioggia a onde radio","l) Regensensor über Funk","cad","St",220.81]
["15","IMPIANTO ELETTRICO ","ELEKTROANLAGE "]
["15.01","Messa a terra, protezione contro le scariche atmosferiche e collegamenti equipotenziali","Erdung, Blitzschutz und Potential-Ausgleichsleitungen"]
["15.01.01","Dispersori di profondità:","Tiefenerder:"]
["15.01.01.01","A picchetto, lunghezza 1.5 m:","Pro Erder, Länge 1,5m:"]
[null,"a) diametro 20 mm","a) Durchmesser 20 mm","cad","St",29.37]
[null,"b) diametro 25 mm","b) Durchmesser 25 mm","cad","St",34.590000000000003]
["15.01.01.02","A croce, sezione 50x50x5 mm","Mit Kreuzprofil, Querschnitt 50x50x5 mm"]
[null,"a) lunghezza 1,0 m","a) Länge 1,0 m","cad","St",20.16]
[null,"b) lunghezza 1,5 m","b) Länge 1,5 m","cad","St",21.29]
[null,"c) lunghezza 2,0 m","c) Länge 2,0 m","cad","St",29.88]
[null,"d) lunghezza 2,5 m","d) Länge 2,5 m","cad","St",34.49]
["15.01.02","Dispersore a piastra, spessore 3 mm","Erdungsplatte, Stärke 3 mm"]
[null,"a) 500x500 mm ","a) 500x500 mm ","cad","St",103.36]
[null,"b) 500x1000 mm","b) 500x1000 mm","cad","St",156.58000000000001]
["15.01.03","Dispersori orizzontali / lineari","Horizontale/Lineare Erder"]
["15.01.03.01","Dispersore piatto:","Erdungsband:"]
[null,"a) Sezione 30x3,5 mm","a) Querschnitt 30x3,5 mm","m","m",6.86]
[null,"b) Sezione 40x4 mm","b) Querschnitt 40x4 mm","m","m",10.130000000000001]
["15.01.03.02","Dispersore tondo:","Runder Erder:"]
[null,"a) diametro 10 mm ","a) Durchmesser 10 mm ","m","m",7.68]
["15.01.03.03","Dispersore a fune spiroidale:","Erder aus Spiralseil"]
[null,"a) diametro 16 mm","a) Durchmesser 16 mm","m","m",6.75]
[null,"b) diametro 25 mm ","b) Durchmesser 25 mm ","m","m",9.82]
[null,"c) Diametro 35 mm","c) Durchmesser 35 mm","m","m",12.18]
["15.01.04","Elementi di captazione e calata:","Fangeinrichtungen und Ableiter"]
["15.01.04.01","Asta di captazione:","Fangstange:"]
[null,"a) diametro 20 mm lunghezza 1,0 m","a) Durchmesser 20 mm Länge 1,0 m","cad","St",31.42]
[null,"b) diametro 20 mm lunghezza 1,5 m","b) Durchmesser 20 mm Länge 1,5 m","cad","St",35.1]
["15.01.04.02","Piatto di captazione e calata:","Fangvorrichtung und Ableitung aus Flachstahl"]
[null,"a) Sezione 20x3 mm","a) Querschnitt 20x3 mm","m","m",6.04]
[null,"b) Sezione 30x3 mm","b) Querschnitt 30x3 mm","m","m",6.45]
[null,"c) Sezione 30x3,5 mm","c) Querschnitt 30x3,5 mm","m","m",6.86]
["15.01.04.03","Tondo di captazione e calata:","Fangvorrichtung und Ableitung aus Rundstahl:"]
[null,"a) diametro 8 mm","a) Durchmesser 8 mm","m","m",16.170000000000002]
[null,"b) diametro 10 mm ","b) Durchmesser 10 mm ","m","m",18.73]
["15.01.04.04","Fune spiroidale di captazione e calata:","Fangvorrichtung und Ableitung aus Spiralseil:"]
[null,"a) diametro 10 mm","a) Durchmesser 10 mm","m","m",6.14]
[null,"b) diametro 11 mm ","b) Durchmesser 11 mm ","m","m",6.55]
["15.01.05","Attacchi equipotenziali:","Potentialausgleich"]
["15.01.05.01","Barra equipotenziale in conformità al progetto","Potentialausgleichsschiene wie im Projekt vorgesehen","cad","St",62.63]
["15.01.05.02","Collegamento equipotenziale nel locale bagno, in conformità al progetto","Potential-ausgleichsverbindungen in Baderäumen wie im Projekt vorgesehen","cad","St",20.16]
["15.01.05.03","nel locale centrale termica","in der Heizzentrale","cad","St",150.13]
["15.01.05.04","Palo antenna","Antennenmast","cad","St",65.09]
["15.01.05.05","Centrale Tv-Sat e cavi coassiali","Zentraleinheit TV-SAT und Koaxialkabel","cad","St",15.56]
["15.02","Messa in opera delle condutture elettriche e relativi sistemi di posa","Verlegung der Elektroleitungen und der zugehörigen Verlegesysteme"]
["15.02.01","Canali","Kanäle"]
["15.02.01.01","Canale portacavi metallico:","Kabelkanal aus Metall:"]
[null,"a) dimensioni 100 x 75 mm","a) Abmessungen 100 x 75 mm","m","m",32.340000000000003]
[null,"b) dimensioni 200 x 75 mm","b) Abmessungen 200 x 75 mm","m","m",39.090000000000003]
[null,"c) dimensioni 300 x 75 mm","c) Abmessungen 300 x 75 mm","m","m",54.04]
[null,"d) dimensioni 400 x 75 mm","d) Abmessungen 400 x 75 mm","m","m",65.5]
["15.02.01.02","Canale portacavi in materiale plastico isolante","Kabelkanal aus isolierendem Kunststoff"]
[null,"a) dimensioni 40x40 mm","a) Abmessungen 40x40 mm","m","m",8.19]
[null,"b) dimensioni 80x40 mm","b) Abmessungen 80x40 mm","m","m",12.89]
[null,"c) dimensioni 100x40 mm","c) Abmessungen 100x40 mm","m","m",15.97]
[null,"d) dimensioni 100x60 mm","d) Abmessungen 100x60 mm","m","m",18.010000000000002]
[null,"e) dimensioni 120x60 mm","e) Abmessungen 120x60 mm","m","m",18.86]
[null,"f) dimensioni 200x60 mm","f) Abmessungen 200x60 mm","m","m",26.51]
["15.02.02","Tubi:","Rohre:"]
["15.02.02.01","Tubo rigido per montaggio a vista, del tipo \"medio\" e liscio","Starres Rohr für Verwendung in Sicht, vom Typ \"Mittel\" und glatt"]
[null,"a) D = 20 mm","a) Durchmesser = 20 mm","m","m",5.12]
[null,"b) D = 25 mm","b) Durchmesser = 25 mm","m","m",5.42]
[null,"c) D = 32 mm","c) Durchmesser = 32 mm","m","m",5.94]
[null,"d) D = 40 mm","d) Durchmesser = 40 mm","m","m",7.16]
["15.02.02.02","Tubo flessibile (guaina spiralata), del tipo \"leggero\", esterno a spirale, interno liscio","flexibles Rohr (Spiralhülle), vom Typ \"leicht\", außen spiralförmig, innen glatt"]
[null,"a) D = 16 mm","a) Durchmesser = 16 mm","m","m",5.42]
[null,"b) D = 28 mm","b) Durchmesser = 28 mm","m","m",8.19]
["15.02.02.03","Tubo pieghevole, per montaggio sotto traccia del tipo corrugato \"medio\"","Biegsames Rohr, für die Verwendung unter Putz vom Typ gerillt \"mittel\""]
[null,"a) D = 25 mm","a) Durchmesser = 25 mm","m","m",2.35]
[null,"b) D = 32 mm","b) Durchmesser = 32 mm","m","m",2.97]
[null,"c) D = 40 mm","c) Durchmesser = 40 mm","m","m",3.48]
[null,"d) D = 50 mm","d) Durchmesser = 50 mm","m","m",4.3]
["15.02.02.04","Tubo pieghevole, per montaggio in getti di calcestruzzo, del tipo corrugato \"medio\", e autorinvenente.","Biegsames Rohr, für die Verwendung in Beton, vom Typ gerillt \"mittel\" und formstabil (kehrt nach Belastung in Ursprungsform zurück)."]
[null,"a) D = 25 mm","a) Durchmesser = 25 mm","m","m",2.25]
[null,"b) D = 32 mm","b) Durchmesser = 32 mm","m","m",2.87]
[null,"c) D = 40 mm","c) Durchmesser = 40 mm","m","m",3.27]
[null,"d) D = 50 mm","d) Durchmesser = 50 mm","m","m",4.09]
["15.02.02.05","Cavidotto per montaggio entro terra, a doppia parete, esterno corrugato e interno liscio, del tipo \"450\"","Kaberohr für die Erdverlegung, mit doppelter Wand, außen gerillt und innen glatt, vom Typ \"450\""]
[null,"a) DN 110/94","a) DN 110/94","m","m",12.18]
[null,"b) DN 125/107","b) DN 125/107","m","m",13.1]
[null,"c) DN 140/120","c) DN 140/120","m","m",13.92]
[null,"d) DN 160/138","d) DN 160/138","m","m",15.15]
["15.02.02.06","Tubo rigido per montaggio in esterni, in acciaio zincato TAZ, del tipo \"molto pesante\".","Stahlpanzerrohr für die Verwendung im Außenbereich, aus verzinktem Stahl TAZ, vom Typ \"sehr schwer\"."]
[null,"a) D = 20 mm","a) Durchmesser = 20 mm","m","m",6.45]
[null,"b) D = 25 mm","b) Durchmesser = 25 mm","m","m",8.19]
[null,"c) D = 32 mm","c) Durchmesser = 32 mm","m","m",9.7200000000000006]
[null,"d) D = 40 mm","d) Durchmesser = 40 mm","m","m",11.77]
["15.02.03","Scatole portafrutto e cassette di derivazione:","Geräte- und Abzweigdosen"]
["15.02.03.01","Cassetta di derivazione per montaggio a vista ","Abzweigdose für Aufputzmontage"]
[null,"a) 100x100x50 mm ","a) 100x100x50 mm ","cad","St",7.27]
[null,"b) 110x150x70 mm","b) 110x150x70 mm","cad","St",9.11]
[null,"c) 190x240x90 mm","c) 190x240x90 mm","cad","St",16.989999999999998]
[null,"d) 300x380x120 mm","d) 300x380x120 mm","cad","St",32.24]
["15.02.03.02","Scatola portafrutto per montaggio a vista","Gerätedose für Aufputzmontage"]
[null,"a) 1 posto modulare","a) 1 Modulplatz","cad","St",5.32]
[null,"b) 2 posti modulari","b) 2 Modulplätze","cad","St",7.16]
[null,"c) 3 posti modulari","c) 3 Modulplätze","cad","St",7.98]
[null,"d) 4 posti modulari","d) 4 Modulplätze","cad","St",8.49]
["15.02.03.03","Cassetta di derivazione per montaggio ad incasso","Abzweigdose für Unterputzmontage"]
[null,"a) 92x92x45 mm","a) 92x92x45 mm","cad","St",7.98]
[null,"b) 152x196x70 mm","b) 152x196x70 mm","cad","St",10.75]
[null,"c) 152x294x70 mm","c) 152x294x70 mm","cad","St",16.07]
[null,"d) 160x480x70 mm","d) 160x480x70 mm","cad","St",17.399999999999999]
["15.02.03.04","Scatola portafrutto per montaggio ad incasso","Gerätedose für Unterputzmontage"]
[null,"a) rotonda","a) Runddose","cad","St",2.0499999999999998]
[null,"b) 3 posti modulari","b) 3 Modulplätze","cad","St",2.25]
[null,"c) 4 posti modulari","c) 4 Modulplätze","cad","St",2.66]
[null,"d) 5 posti modulari","d) 5 Modulplätze","cad","St",2.87]
[null,"e) 6 posti modulari","e) 6 Modulplätze","cad","St",3.17]
["15.02.03.05","Cassetta di derivazione metallica, per montaggio in esterni","Abzweigdose aus Metall für die Montage im Außenbereich"]
[null,"a) 100x100x59 mm","a) 100x100x59 mm","cad","St",18.52]
[null,"b) 140x115x60 mm","b) 140x115x60 mm","cad","St",26.61]
[null,"c) 166x142x64 mm","c) 166x142x64 mm","cad","St",35.51]
["15.02.03.06","Pozzetti e chiusini carrabili","Befahrbare Schächte und Deckel"]
[null,"a) 30x30x30","a) 30x30x30","cad","St",134.47]
[null,"b) 40x40x40","b) 40x40x40","cad","St",166.51]
[null,"c) 50x50x50","c) 50x50x50","cad","St",235.79]
["15.02.04","Cavi","Kabel"]
["15.02.04.01","Cavo elettrico tipo \"N07V-K\" / \"H07V-K\":","Elektrokabel Typ \"N07V-K\"/\"H07V-K\":"]
[null,"a) 1 x 1,5 mm2","a) 1 x 1,5 mm2","m","m",0.57999999999999996]
[null,"b) 1 x 2,5 mm2","b) 1 x 2,5 mm2","m","m",0.87]
[null,"c) 1 x 4mm2","c) 1 x 4mm2","m","m",1.2]
[null,"d) 1 x 6mm2","d) 1 x 6mm2","m","m",1.52]
[null,"e) 1 x 10 mm2","e) 1 x 10 mm2","m","m",2.0499999999999998]
[null,"f) 1 x 16 mm2","f) 1 x 16 mm2","m","m",2.63]
["15.02.04.02","Cavo elettrico tipo \"FG7OR\", unipolare","Elektrokabel Typ \"FG7OR\", einpolig"]
[null,"a) 1 x 1,5 mm2","a) 1 x 1,5 mm2","m","m",1.1299999999999999]
[null,"b) 1 x 2,5 mm2","b) 1 x 2,5 mm2","m","m",1.43]
[null,"c) 1 x 4 mm2","c) 1 x 4 mm2","m","m",1.77]
[null,"d) 1 x 6 mm2","d) 1 x 6 mm2","m","m",2.23]
[null,"e) 1 x 10 mm2","e) 1 x 10 mm2","m","m",2.72]
[null,"f) 1 x 16 mm2","f) 1 x 16 mm2","m","m",3.27]
[null,"g) 1 x 25 mm2","g) 1 x 25 mm2","m","m",4.4000000000000004]
[null,"h) 1 x 35 mm2","h) 1 x 35 mm2","m","m",5.22]
[null,"i) 1 x 50 mm2","i) 1 x 50 mm2","m","m",6.65]
[null,"j) 1 x 70 mm2","j) 1 x 70 mm2","m","m",8.8000000000000007]
[null,"k) 1 x 95 mm2","k) 1 x 95 mm2","m","m",10.85]
[null,"l) 1 x 120 mm2","l) 1 x 120 mm2","m","m",13.3]
["15.02.04.03","Cavo elettrico tipo \"FG7OR\", bipolare","Elektrokabel Typ \"FG7OR\", zweipolig"]
[null,"a) 2 x 1,5 mm2","a) 2 x 1,5 mm2","m","m",2.0499999999999998]
[null,"b) 2 x 2,5 mm2","b) 2 x 2,5 mm2","m","m",2.46]
[null,"c) 2 x 4mm2","c) 2 x 4mm2","m","m",2.97]
[null,"d) 2 x 6mm2","d) 2 x 6mm2","m","m",3.58]
[null,"e) 2 x 10 mm2","e) 2 x 10 mm2","m","m",4.5]
[null,"f) 2 x 16 mm2","f) 2 x 16 mm2","m","m",6.45]
[null,"g) 2 x 25 mm2","g) 2 x 25 mm2","m","m",8.49]
[null,"h) 2 x 35 mm2","h) 2 x 35 mm2","m","m",11.67]
["15.02.04.04","Cavo elettrico tipo \"FG7OR\", tripolare","Elektrokabel Typ \"FG7OR\", dreipolig"]
[null,"a) 3 x 1,5 mm2","a) 3 x 1,5 mm2","m","m",2.35]
[null,"b) 3 x 2,5 mm2","b) 3 x 2,5 mm2","m","m",2.87]
[null,"c) 3 x 4mm2","c) 3 x 4mm2","m","m",3.48]
[null,"d) 3 x 6mm2","d) 3 x 6mm2","m","m",4.2]
[null,"e) 3 x 10 mm2","e) 3 x 10 mm2","m","m",6.14]
[null,"f) 3 x 16 mm2","f) 3 x 16 mm2","m","m",7.88]
[null,"g) 3 x 25 mm2","g) 3 x 25 mm2","m","m",11.26]
[null,"h) 3 x 35 mm2","h) 3 x 35 mm2","m","m",13.92]
["15.02.04.05","Cavo elettrico tipo \"FG7OR\", tetrapolare","Elektrokabel Typ \"FG7OR\", vierpolig"]
[null,"a) 4 x 1,5 mm2","a) 4 x 1,5 mm2","m","m",2.79]
[null,"b) 4 x 2,5 mm2","b) 4 x 2,5 mm2","m","m",3.27]
[null,"c) 4 x 4mm2","c) 4 x 4mm2","m","m",4.09]
[null,"d) 4 x 6mm2","d) 4 x 6mm2","m","m",5.12]
[null,"e) 4 x 10 mm2","e) 4 x 10 mm2","m","m",7.57]
[null,"f) 4 x 16 mm2","f) 4 x 16 mm2","m","m",9.7200000000000006]
[null,"g) 4 x 25 mm2","g) 4 x 25 mm2","m","m",13.64]
[null,"h) 4 x 35 mm2","h) 4 x 35 mm2","m","m",16.2]
["15.02.04.06","Cavo elettrico tipo \"FG7OR\", pentapolare","Elektrokabel Typ \"FG7OR\", fünfpolig"]
[null,"a) 5 x 1,5 mm2","a) 5 x 1,5 mm2","m","m",3.29]
[null,"b) 5 x 2,5 mm2","b) 5 x 2,5 mm2","m","m",3.87]
[null,"c) 5 x 4mm2","c) 5 x 4mm2","m","m",4.9800000000000004]
[null,"d) 5 x 6mm2","d) 5 x 6mm2","m","m",6.14]
[null,"e) 5 x 10 mm2","e) 5 x 10 mm2","m","m",9.3699999999999992]
[null,"f) 5 x 16 mm2","f) 5 x 16 mm2","m","m",12.37]
[null,"g) 5 x 25 mm2","g) 5 x 25 mm2","m","m",16.78]
["15.02.04.07","Cavo elettrico tipo \"N07V-K\", in \"trecciola\" per citofonia","Elektrokabel Typ \"N07V-K\", aus \"Litzendraht\" für die Sprechanlage"]
[null,"a) 2cp","a) 2 adrig","m","m",2.44]
["15.02.04.08","Cuscinetti antifuoco","Feuerschutzkissen"]
[null,"a) 250 g, 34x18x1,5 cm","a) 250 g 34x18x1,5 cm","cad","St",29.72]
["15.03","Messa in opera delle Apparecchiature elettriche (Quadri BT)","Einbau der Elektrogeräte (NS Verteilerkästen)"]
["15.03.01","Quadri di distribuzione (involucri)","Verteilerkästen (Gehäuse)"]
["15.03.01.01","Quadro a pavimento","Bodenkasten"]
[null,"a) Dimensioni 1800x600x250","a) Abmessungen 1800x600x250","cad","St",1070.97]
["15.03.01.02","Quadro da incasso, per alloggi e vani commerciali","Unterputzkasten für Wohnungen und Geschäftsräume"]
[null,"a) dimensioni 12/14 moduli ","a) Abmessungen 12/14 Module","cad","St",66.930000000000007]
[null,"b) dimensioni 24/28 moduli","b) Abmessungen 24/28 Module","cad","St",82.84]
[null,"c) dimensioni 36/42 moduli","c) Abmessungen 36/42 Module","cad","St",96.23]
[null,"d) dimensioni 48/56 moduli","d) Abmessungen 48/56 Module","cad","St",132.5]
[null,"e) Dimensione 120 moduli","e) Abmessungen 120 Module","cad","St",229.36]
["15.03.01.03","Quadro da parete, per la partenza delle linee delle unità immobiliari (alloggio e relativa cantina e garage,vani commerciali)","Wandkasten für den Abgang der Leitungen zu den Immobiliareinheiten (Wohnung und zugehöriger Kellerraum und Garage, Geschäftsräume)"]
[null,"a) dimensioni 4 moduli ","a) Abmessungen 4 Module","cad","St",14.96]
[null,"b) dimensioni 8 moduli","b) Abmessungen 8 Module","cad","St",33.47]
[null,"c) dimensioni 12 moduli","c) Abmessungen 12 Module","cad","St",46.12]
[null,"d) dimensioni 24 moduli","d) Abmessungen 24 Module","cad","St",67.83]
[null,"e) dimensioni 36 moduli","e) Abmessungen 36 Module","cad","St",97.22]
[null,"f) dimensioni 54 moduli","f) Abmessungen 54 Module","cad","St",149.37]
[null,"g) dimensioni 72 moduli","g) Abmessungen 72 Module","cad","St",200.06]
["15.03.01.04","Centralini elettrici per centrale termica","Schaltkasten für Zentralsteuereinheiten für Heizzentralen"]
[null,"a) dimensioni 4 moduli ","a) Abmessungen 4 Module","cad","St",31.09]
[null,"b) dimensioni 8 moduli","b) Abmessungen 8 Module","cad","St",41.73]
["15.03.02","Apparecchi e dispositivi elettrici","Schutzschalter und elektrische Schaltvorrichtungen"]
["15.03.02.01","Interruttore automatico magnetotermico","Magnetothermische Leitungsschutzschalter"]
[null,"a) Da 6 a 32 A, bipolare","a) von 6 bis 32 A, zweipolig","cad","St",35.94]
[null,"b) Da 6 a 32 A, quadripolare","b) von 6 bis 32 A, vierpolig","cad","St",61.18]
[null,"c) Da 40 a 63 A quadripolare","c) von 40 bis 63 A, vierpolig","cad","St",92.11]
["15.03.02.02","Interruttore non automatico","Nicht automatische Schalter"]
[null,"a) Da 6 a 32 A, bipolare","a) von 6 bis 32 A, zweipolig","cad","St",25.92]
[null,"b) Da 6 a 32 A, quadripolare","b) von 6 bis 32 A, vierpolig","cad","St",37.200000000000003]
[null,"c) Da 40 a 80 A quadripolare","c) von 40 bis 80 A, vierpolig","cad","St",56.18]
["15.03.02.03","Interruttore differenziale istantaneo, classe A","Fehlerstromschutzschalter, verzögerungslos, Klasse A"]
[null,"a) 2x25 A / 30 mA","a) 2x25 A/30 mA","cad","St",80.709999999999994]
[null,"b) 4x25A / 30 mA","b) 4x25A/30 mA","cad","St",119.05]
[null,"c) 4x25A / 300 mA","c) 4x25A/300 mA","cad","St",101.11]
[null,"d) 4x40A / 300 mA","d) 4x40A/300 mA","cad","St",112.15]
["15.03.02.04","Interruttore differenziale istantaneo, classe B","Fehlerstromschutzschalter, verzögerungslos, Klasse B"]
[null,"a) 4x25A /300 mA","a) 4x25A/300 mA","cad","St",505.97]
["15.03.02.05","Interruttore differenziale magnetotermico, classe A","Magnetothermischer Fehlerstromschutzschalter, Klasse A"]
[null,"a) 2x25A / 30 mA","a) 2x25A/30 mA","cad","St",107.2]
[null,"b) 4x25A / 300 mA","b) 4x25A/300 mA","cad","St",146.62]
["15.03.02.06","Contatto ausiliario modulare in commutazione ","Modularer Hilfsschalter","cad","St",44.9]
["15.03.02.07","Sganciatore a lancio di corrente","Arbeitsstromauslöser","cad","St",16.440000000000001]
["15.03.02.08","Temporizzatore per punto luce a tempo(contatto 16 A)","Zeitschalter für zeitgesteuerten Lichtpunkt(Anschluss 16 A)","cad","St",54.38]
["15.03.02.09","Presa fissa di corrente da quadro 16 A","Ortsfeste Steckdose für Schaltkästen 16 A","cad","St",17.489999999999998]
["15.03.02.10","Lampada di segnalazione (colore rosso)","Anzeigelampe (Farbe: rot)","cad","St",13.91]
["15.03.02.11","Sezionatore con fusibile 1 polo 6-32 A","Trenner mit Schmelzsicherung, einpolig, 6-32 A","cad","St",10.64]
["15.03.02.12","Interruttore orario, 1 contatto in scambio","Einbauschaltuhr, 1 Wechsler","cad","St",121.74]
["15.03.02.13","Orologio digitale 1 canale","Digitale Zeitschaltuhr, 1 Kanal","cad","St",145.57]
["15.03.02.14","Interruttore crepuscolare con fotocellula separata","Dämmerungsschalter mit getrennter Fotozelle","cad","St",203.86]
["15.03.02.15","Contattore:","Schütz:"]
[null,"a) bipolare 20A","a) zweipolig 20A","cad","St",32.36]
[null,"b) quadripolare 40A","b) vierpolig 40A","cad","St",97.28]
["15.03.02.16","Relè passo passo","Schrittrelais"]
[null,"a) Contatto semplice unipolare","a) Einfachkontakt, einpolig","cad","St",31.19]
[null,"b) Contatto in scambio","b) Wechselkontakt","cad","St",53.86]
["15.03.02.17","Trasformatore di sicurezza SELV","Trenntransformator SELV","cad","St",29.93]
["15.03.02.18","Trasformatore per suoneria","Klingeltransformator","cad","St",19.18]
["15.03.02.19","Limitatori di sovratensioni","Überspannungsbegrenzer"]
[null,"a) Scaricatore combinato di tipo 1, 2P","a) Kombinierter Überspannungsableiter, Typ 1, 2P","cad","St",478.95]
[null,"b) Scaricatore combinato di tipo 1, 4P","b) Kombinierter Überspannungsableiter, Typ 1, 4P","cad","St",1096.27]
[null,"c) Scaricatore combinato di tipo 2, 2P","c) Kombinierter Überspannungsableiter, Typ 2, 2P","cad","St",141.99]
[null,"d) Scaricatore combinato di tipo 2, 4P","d) Kombinierter Überspannungsableiter, Typ 2, 4P","cad","St",241.91]
["15.03.02.20","Salvamotori 3P","Motorschütz 3P"]
[null,"a) Campo di regolazione relè termico: 0,1-0,40 A","a) Regelbereich des thermischen Relais: 0,1-0,40 A","cad","St",49.33]
[null,"b) Campo di regolazione relè termico: 0,40-0,63 A","b) Regelbereich des thermischen Relais: 0,40-0,63 A","cad","St",50.38]
[null,"c) Campo di regolazione relè termico: 0,63-6,5A","c) Regelbereich des thermischen Relais: 0,63-6,5A","cad","St",58.28]
[null,"d) Campo di regolazione relè termico: 4-6,5 A","d) Regelbereich des thermischen Relais: 4-6,5 A","cad","St",58.28]
[null,"e) Campo di regolazione relè termico: 6,3-14 A","e) Regelbereich des thermischen Relais: 6,3-14 A","cad","St",71.150000000000006]
["15.04","Messa in opera di apparecchi di comando, di prese fisse, di citofono/portiere elettrico e di apparecchi di illuminazione","Einbau der Steuergeräte, ortsfesten Steckdosen, Gegensprechanlagen/elektrische Türöffner und Leuchten"]
["15.04.01","Punti luce:","Lichtpunkte:"]
["15.04.01.01","Punti luce con sistemi di posa \"sotto traccia\":","Lichtpunkte mit Verlegungssystem \"unter Putz\":"]
[null,"a) Punto luce con interruttore ","a) Lichtpunkt mit Schalter ","cad","St",46.08]
[null,"b) Punto luce con due deviatori","b) Lichtpunkt mit zwei Wechselschaltern","cad","St",55.73]
[null,"c) Punto luce invertito con un invertitore e due dev.","c) Lichtpunkt in Kreuzschaltung mit einem Kreuzschalter und zwei Wechselschaltern","cad","St",80.7]
[null,"d) Punto luce invertito con due invertitori e due dev.","d) Lichtpunkt in Kreuzschaltung mit zwei Kreuzschaltern und zwei Wechselschaltern","cad","St",98.77]
[null,"e) Punto luce a relè con due pulsanti","e) Relaisgesteuerter Lichtpunkt mit zwei Tastern","cad","St",118.26]
[null,"f) Per ogni pulsante/deviatore in più","f) Für jeden Taster/Wechselschalter mehr","cad","St",17.66]
[null,"g) Per ogni punto luce in parallelo in più","g) Für jeden parallelgeschalteten Lichtpunkt mehr","cad","St",14.23]
["15.04.01.02","Punti luce con sistemi di posa \"a vista\" IP 44","Lichtpunkte mit Verlegungssystem \"in Sicht\" IP 44"]
[null,"a) Punto luce con interruttore, ","a) Lichtpunkt mit Schalter ","cad","St",61.98]
[null,"b) Punto luce con due deviatori","b) Lichtpunkt mit zwei Wechselschaltern","cad","St",69.88]
[null,"c) Punto luce invertito con un invertitore e due dev.","c) Lichtpunkt in Kreuzschaltung mit einem Kreuzschalter und zwei Wechselschaltern","cad","St",85.69]
[null,"d) Punto luce invertito con due invertitori e due dev.","d) Lichtpunkt in Kreuzschaltung mit zwei Kreuzschaltern und zwei Wechselschaltern","cad","St",107.72]
[null,"e) Punto luce a relè con due pulsanti","e) Relaisgesteuerter Lichtpunkt mit zwei Tastern","cad","St",112.26]
[null,"f) Per ogni pulsante/deviatore in più","f) Für jeden Taster/Wechselschalter mehr","cad","St",18.760000000000002]
[null,"g) Per ogni pulsante illuminato in più","g) Für jeden Leuchtaster mehr","cad","St",4.0999999999999996]
[null,"h) Per ogni punto luce in parallelo in più","h) Für jeden parallelgeschalteten Lichtpunkt mehr","cad","St",14.23]
["15.04.02","Punti presa fissa, del tipo universale bipasso:","Ortsfeste Steckdose, Universaltyp Schuko"]
["15.04.02.01","Punti prese con sistemi di posa \"sotto traccia\":","Steckdose mit Verlegungssystem \"unter Putz\":"]
[null,"a) Punto presa","a) Steckdose","cad","St",48.69]
["15.04.02.02","Punti presa con sistemi di posa \"a vista\":","Steckdose mit Verlegungssystem \"in Sicht\":"]
[null,"a) Punto presa","a) Steckdose","cad","St",59.13]
["15.04.03","Altre tipologie di punti \"utilizzatori\":","Andere Arten von \"Verbraucherauslässen\":"]
["15.04.03.01","Punto chiamata \"allarme bagno\"","Notrufauslass \"Notruf Bad\"","cad","St",111.3]
["15.04.03.02","Punto per comando di emergenza","Auslass für Notschalter","cad","St",61.34]
["15.04.03.03","Punto per apparecchio di ventilazione/aspirazione","Auslass für Ventilator/Absauggerät","cad","St",20.78]
["15.04.03.04","Punto per sensore crepuscolare","Auslass für Dämmerungsschalter","cad","St",35.520000000000003]
["15.04.03.05","Punto per motore persiana avvolgibile","Auslass für Rollladenmotor","cad","St",64.349999999999994]
["15.04.03.06","Punto per termostato/valvola di zona","Auslass für Zonenthermostat/ventil","cad","St",28.88]
["15.04.03.07","Punto presa telefono:","Telefonsteckdose"]
[null,"a) Punto presa telefonicocompleto","a) Telefonsteckdose, komplett","cad","St",44.06]
[null,"b) Punto presa telefonico predisposto","b) Telefonsteckdose, vorbereitet","cad","St",20.97]
["15.04.03.08","Punto presa Tv-Sat","Anschlusspunkt TV-SAT:"]
[null,"a) Punto presa Tv-Sat completo","TV-SAT-Steckdose, komplett","cad","St",61.98]
[null,"b) Punto presa Tv-Sat predisposto","TV-SAT-Steckdose, vorbereitet","cad","St",20.97]
["15.04.04","Impianto citofonico/portiere elettrico, con i componenti di cui al cod. 15.A5:","Gegensprechanlage/elektrischer Türöffner, mit den entsprechenden Komponenten laut Abschnitt 15.A5:"]
[null,"a) Pulsantiera esterna fino a 14 pulsanti","a) Türsprechstelle außen, für bis zu 14 Tastern","cad","St",508.6]
[null,"b) Pulsantiera esterna fino a 20 pulsanti","b) Türsprechstelle außen, für bis zu 20 Tastern","cad","St",633.82000000000005]
[null,"c) Centrale con alimentatore per impianto citofonico/portiere elettrico","c) Zentraleinheit mit Netzgerät für die Gegensprechanlage/elektrischer Türöffner","cad","St",132.6]
[null,"d) Punto citofonico alloggio","d) Wohnungssprechstelle","cad","St",92.11]
[null,"e) Attacco apriporta","e) Anschluss Türöffner","cad","St",71.459999999999994]
["15.04.05","Apparecchi di illuminazione","Beleuchtungskörper"]
["15.04.05.01","Plafoniera per interni, a parete /a soffitto, con lampadina fluorescente:","Leuchten für den Innenbereich, für Wand-/ Deckenmontage, mit Leuchtstofflampe:"]
[null,"a) da 18 W","a) zu 18 W","cad","St",72.42]
[null,"b) da 36 W","b) zu 36 W","cad","St",80]
["15.04.05.02","Plafoniera per interni, a parete /a soffitto, con lampadinaa risparmio:","Leuchten für den Innenbereich, für Wand-/ Deckenmontage, mit Sparlampe:"]
[null,"a) da 7 W","a) zu 7 W","cad","St",61.03]
[null,"b) da 15 W","b) zu 15 W","cad","St",64.92]
[null,"c) da 23 W","c) zu 23 W","cad","St",76.42]
["15.04.05.03","Plafoniera stagna per cantine:","Wasserdichte Leuchte für den Keller:"]
[null,"a) da 18 W","a) zu 18 W","cad","St",22.14]
[null,"b) da 36 W","b) zu 36 W","cad","St",25.82]
["15.04.05.04","Plafoniera stagna per esterni, a parete /a soffitto, con lampadina fluorescente:","Wasserdichte Leuchte für den Außenbereich, für Wand-/ Deckenmontage, mit Leuchtstofflampe:"]
[null,"a) da 18 W","a) zu 18 W","cad","St",56.6]
[null,"b) da 36 W","b) zu 36 W","cad","St",82.74]
[null,"c) da 58 W","c) zu 58 W","cad","St",86.01]
[null,"d) da 2x18 W","d) zu 2x18 W","cad","St",65.349999999999994]
[null,"e) da 2x 36 W","e) zu 2x 36 W","cad","St",86.44]
[null,"f) da 2x 58 W","f) zu 2x 58 W","cad","St",102.34]
["15.04.05.05","Apparecchio per illuminazione esterna a palo","Beleuchtungskörper für Mastmontage für die Außenbeleuchtung:"]
[null,"a) da 70 W","a) zu 70 W","cad","St",943.42]
["15.04.06","Impianto di illuminazione di emergenza/sicurezza","Sicherheits- und Notbeleuchtungsanlage"]
["15.04.06.01","Punto illuminazione di emergenza:","Auslass für die Notbeleuchtung"]
[null,"a) Sotto traccia","a) unter Putz","cad","St",22.87]
[null,"b)  A vista","b) in Sicht","cad","St",38.68]
["15.04.06.02","Corpo illuminante di emergenza, sia \"sotto traccia\" che\"a vista\", autonomia 3 h e con lampade:","Notbeleuchtungskörper, sei es \"unter Putz\" als auch \"in Sicht\", 3 h Notleuchtdauer, inkl. Leuchtmittel:"]
[null,"a) da 18 W","a) zu 18 W","cad","St",153.41]
[null,"b) da 24 W","b) zu 24 W","cad","St",166.71]
["15.04.07","Impianto centralizzato d'antenna Tv-Sat","Zentrale Antennenanlage für TV-SAT"]
["15.04.07.01","Palo di sostegno per antenne","Antennenmast","cad","St",134.71]
["15.04.07.02","Antenne TV terrestri","Terrestrische TV-Antennen","cad","St",206.49]
["15.04.07.03","Antenna parabolica","Parabolantenne","cad","St",381.27]
["15.04.07.04","Quadro in metallo","Verteilerkasten aus Metall","cad","St",164.12]
["15.04.07.05","Amplificatore LB","Verstärker LB","cad","St",139.13999999999999]
["15.04.07.06","Centralina base per sistema in cascata (16 Sat+1Tv), 12 uscite","Zentraleinheit für Kaskadensystem(16 SAT+1TV), 12 Ausgänge","cad","St",691.82]
["15.04.07.07","Multiswitch","Multiswitch"]
[null,"a) con 6 uscite","a) mit 6 Ausgängen","cad","St",432.81]
[null,"b) con 12 uscite","b) mit 12 Ausgängen","cad","St",538.01]
[null,"c) Con 16 uscite","c) mit 16 Ausgängen","cad","St",643.72]
["15.05","Prove, misure e documentazione","Prüfungen, Messungen und Dokumentation"]
["15.05.01","Misura resistenza di terra","Erdungswiderstandsmessung","cad","St",37.869999999999997]
["15.05.02","Certificazione e collaudo prese Tv-Sat","Zertifikat und Abnahme der TV-SAT-Steckdose","cad","St",5.27]
["15.05.03","Dichiarazione di conformità dell'impianto Tv-Sat","Konformitätserklärung der TV-SAT-Anlage","cad","St",68.569999999999993]
["15.05.04","Dichiarazione di conformità dell'impianto rilevazione incendio","Konformitätserklärung der Brandmeldeanlage","cad","St",68.569999999999993]
["15.05.05","Dichiarazione di conformità dei servizi comuni per l'intero edificio","Konformitätserklärung der gemeinschaftlichen Dienste für das gesamte Gebäude"]
[null,"a) Fino a 12 unità immobiliari","a) bis 12 Wohneinheiten","cad","St",157.6]
[null,"b) Fino a 24 unità immobiliari","b) bis 24 Wohneinheiten","cad","St",179.1]
[null,"c) Fino a 36 unità immobiliari","c) bis 36 Wohneinheiten","cad","St",200.59]
[null,"d) Fino a 50 unità immobiliari","d) bis 50 Wohneinheiten","cad","St",210.82]
[null,"e) Oltre 50 unità immobiliari","e) über 50 Wohneinheiten","cad","St",271.2]
["15.05.06","Dichiarazione di conformità per ogni unità immobiliare con elaborazione dei disegni e degli schemi elettrici allo stato finale","Konformitätserklärungen für jede Wohneinheit inkl. Planunterlagen und Schemas \"as built\"","cad","St",21.08]
["15.05.07","Raccolta di tutta la documentazione per il collaudo e per la realizzazione del fascicolo dell'opera","Einholung und Zusammenstellung der gesamten Dokumentation für die Abnahme und die Zusammenstellung der Gebäudedokumentation","cad","St",31.73]
[16,"ASCENSORE","AUFZÜGE"]
["16.01","ASCENSORE ELETTRICO A FUNE","ELEKTRISCH BETRIEBENER AUFZUG"]
["16.01.01","Ascensore elettrico (MRL) senza apposito locale macchinario, 480 kg, 6 fermate, 6 servizi","Elektrische betriebener Aufzug (MRL) ohne eigenem Triebwerksraum, 480 kg, 6 Haltestellen, 6 Dienste","cad","St",27120.1]
["16.01.02","Ascensore elettrico con apposito locale macchinario, 480 kg, 6 fermate, 6 servizi","Elektrisch betriebener Aufzug mit eigenem Triebwerksraum, 480 kg, 6 Haltestellen, 6 Dienste","cad","St",25380.32]
["16.02","ASCENSORE OLEODINAMICO","HYDRAULISCHE BETRIEBENER AUFZUG"]
["16.02.01","Ascensore oleodinamico con apposito locale macchinario, 480 kg, 4 fermate, 4 porte","Hydraulisch betriebener Aufzug mit eigenem Triebwerksraum, 480 kg, 4 Haltestellen, 4 Türen","cad","St",23435.86]
["16.02.02","Ascensore oleodinamico senza apposito locale macchinario, 480 kg, 4 fermate, 4 porte","Hydraulisch betriebener Aufzug ohne eigenem Triebwerksraum, 480 kg, 4 Haltestellen, 4 Türen","cad","St",24254.58]
["16.03","SOVRAPPREZZO PER OGNI ULTERIORE FERMATA OLTRE LA SESTA PER L'ASCENSORE ELETTRICO E OLTRE LA QUARTA PER L' ASCENSORE OLEODINAMICO","AUFPREIS FÜR JEDE ZUSÄTZLICHE HALTESTELLE; ÜBER DIE SECHSTE HINAUS BEI ELEKTRISCH BETRIEBENEN AUFZÜGEN UND ÜBER DIE VIERTE HINAUS BEI HYDRAULISCH BETRIEBENEN AUFZÜGEN"]
["16.03.01","per ascensore elettrico senza apposito locale macchine","für elektrisch betriebene Aufzüge ohne eigenem Triebwerksraum","cad","St",2302.65]
["16.03.02","per ascensore elettrico con apposito locale macchinario","für elektrisch betriebene Aufzüge mit eigenem Triebwerksraum ","cad","St",2302.65]
["16.03.03","per ascensore oleodinamico con apposito locale macchinario","für hydraulisch betriebene Aufzüge mit eigenem Triebwerksraum","cad","St",2302.65]
["16.03.04","per ascensore oleodinamico senza apposito locale macchinario","für hydraulisch betriebene Aufzüge ohne eigenem Triebwerksraum","cad","St",2302.65]
["16.04","SOVRAPPREZZO PER PORTE TAGLIAFUOCO AL PIANO","AUFPREIS FÜR BRANDSCHUTZTÜREN AUF DEN STOCKWERKEN"]
["16.04.01","EI 60","EI 60","cad","St",685.68]
["16.05","SOVRAPPREZZO PER CABINA CON 2 ACCESSI OPPOSTI","AUFPREIS FÜR FAHRKORB MIT 2 GEGENÜBER LIEGENDEN ZUGÄNGEN","cad","St",2302.65]

{"sheet":"voce agg_Zusatzpos","index":5,"n_rows":38,"n_cols":6,"rows_kept":38,"cut":false,"hidden":false,"merged":[]}
[]
[null,"VOCI AGGIUNTIVE","ZUSATZPOSITIONEN"]
[]
[null,"Nel caso fosse necessario aggiungere una voce, va creato un nuovo codice articolo seguendo questo metodo.","Im Falle einer Zusatzposition ist ein neuer Positionskodex wie folgt zu erstellen."]
[null,"Il nuovo codice articolo:","Der neue Kodex:"]
[null,"- ovviamente non deve essere già esistente nelle Norme Tecniche","- darf selbstverständlich nicht schon in den Technischen Normen vorkommen"]
[null,"- va contrassegnato alla fine con un asterisco. Per esempio: 02.17.00.50*","- ist am Ende mit einem Sternchen zu kennzeichnen , z.B.: 02.17.00.50*"]
[null,"- andrà inserito nella categoria di lavorazione corrispondente (opera di lavoro)","- ist im entsprechenden Gewerk einzufügen"]
[null,"- eventuali sottoarticoli saranno anche loro identificati con un asterisco","- eventuelle neue Unterpositionen sind ebenfalls mit einem Sternchen zu kennzeichnen"]
[null,"- se invece ad essere nuovo, è solo il sottoarticolo, l´asterisco verrá aggiunto solo al codice del sottoarticolo in questione","- ist nur eine Unterposition neu, ist nur letztere mit einem Sternchen zu kennzeichnen"]
[]
[null,"Esempio di sottovoce aggiuntiva","Beispiel einer neuen Unterposition"]
["02.01","DEMOLIZIONI E RIMOZIONI","ABBRUCH UND ABTRAGARBEITEN"]
["02.01.01","DEMOLIZIONI TOTALI","TOTALABBRUCH"]
["02.01.01.01","Demolizione completa di fabbricato con:","Totalabbruch Gebäude:"]
[null,"a) muratura pietrame, solai in legno, ferro o voltine","a) Steinmauerwerk, Holzbalkendecken, Stahlträger, Kappengewölbe","m³","m³",7.68]
[null,"b) muratura con blocchi di cemento o laterizio, solai in legno, ferro o voltine","b) Betonblock- oder Ziegelmauerwerk, Holzbalkendecken, Stahlträger, Kappengewölbe","m³","m³",7.68]
[null,"c) muratura con blocchi di cemento o laterizio, solai in c.a. oppure laterocemento, tetto in legno, acciaio oppure come solai","c) Betonblock- oder Ziegelmauerwerk, Massiv- oder Hohlsteindecken, Dachkonstruktion aus Holz, Stahl oder wie Decken","m³","m³",8.6]
[null,"d) struttura portante in c.a. con solai in c.a. oppure laterocemento, tetto in legno,acciaio o come solai","d) Tragende Struktur aus Stahlbeton, Massiv- oder Hohlsteindecken, Dachkonstruktion aus Holz, Stahl oder wie Decken","m³","m³",9.2100000000000009]
[null,"e)* struttura prefabbricata in c.a.","e)* Fertigteil-Struktur in STB","m³","m³","x,xx"]
[]
[]
[null,"Esempio di voce aggiuntiva","Beispiel einer neuen Zusatzposition"]
["09","SERRAMENTI IN LEGNO E LEGNO-ALLUMINIO","TÜREN UND FENSTER AUS HOLZ UND AUS HOLZ-ALUMINIUM"]
["09.05","PORTE INTERNE","INNENTÜREN"]
["09.05.01","Porta ad anta battente in legno:","Tür als Drehflügeltür aus Holz:"]
[null,"a) Tanganica","a) Tanganika","cad","St",337.72]
[null,"b) Rovere","b) Eiche","cad","St",368.42]
[null,"c) Faggio","c) Buche","cad","St",368.42]
["09.05.02","Porta ad anta scorrevole in legno:","Tür als Schiebetür aus Holz:"]
[null,"a) Tanganica","a) Tanganika","cad","St",757.32]
[null,"b) Rovere","b) Eiche","cad","St",777.78]
[null,"c) Faggio","c) Buche","cad","St",777.78]
["09.05.03","Sovrapprezzo per fuori misura:","Aufpreis für Übermaß:"]
[null,"a) fino a 10 cm","a) bis 10 cm","%","%",15.35]
[null,"b) oltre 10 cm","b) mehr als 10 cm","%","%",20.47]
["09.05.04","Sovrapprezzo per specchiatura vetrata (vetro di sicurezza 4+0,38+4 mm)","Aufpreis für verspiegelte Glasflächen (Sicherheitsglas 4+0,38+4 mm)","cad","St",135.09]
["09.05.05*","Porta ad anta battente in legno: (P03,P04) (PF6) Porta interna 45 mm - insonorizzazione 39 dB. Telaio a battuta singola in truciolare impiallacciato (38 mm) con contorno inferiore massiccio contro assorbimento di umidità, coprifilo interno in listellare impiallacciato (larghezza 80 mm, spessore 16 mm), coprifilo esterno in truciolare impiallacciato (spessore 16 mm) arrotondato su entrambi i lati (senza listelli coprifuga), bordo in massiccio 2 mm, guarnizione sui 3 lati, tre cerniere a tre perni (da 16 mm). Pannello in struttura a 3 strati (spessore 45 mm) con rimesso di prima qualità, contorno in massello sui 4 lati, serratura Patent inclusa. Porta liscia con impiallacciatura trasversale in larice. Finitura ecologica e senza sostanze inquinanti con vernice a base d'acqua con asciugatura UV. Protezione termica: classe II (DIN EN 12219) se eseguito con alupan!","Tur als Drehflugeltur aus Holz: (P03,P04) (PF6) Innentur 45 mm – schallgepruft (RW 39 dB – Schallschutzklasse II). Einfachfalz-Holzstock in Spanplatte furniert (38 mm stark), verzahnter Massivholzanleimer unten als Schutz vor Feuchtigkeitsaufnahme, Falzverkleidungsseite in Spandeckplatte furniert (80 mm breit, 16 mm stark), Zierverkleidungsseite in Spanplatte (16 mm stark) stosfrei ummantelt mit Edelholzfurnier, beidseitig abgerundet (ohne Zierputzleisten), Massivkante 2 mm, dreiseitig umlaufende Gummidichtung, drei Stuck 3-teilige Bander (16 mm). Turblatt (45 mm stark), edelholzfurniert, mit umlaufenden Massivholzanleimern, Einstemmschloss O-Norm fur Profilzylinder. Glattes, schlichtes Turblatt in Larche – Querfurniert . Oberflache mit umweltfreundlichem, SCHADSTOFFFREIEM Wasserlack mit UVTrocknung. Klimaschutz: Gepruft nach DIN EN 1121, Prufklima c: Toleranzklasse II nach DIN EN 12219 (entspricht alter Klimaklasse III)\nwenn mit Alu-Dampfsperre ausgestattet! Zu beachten: Zur Erreichung der angegebenen Schallschutzwerte ist der Einbau der vorgesehenen Bodentürdichtung (Kaltefeind) erforderlich! ","cad","St",99]